Service Area,Dept,Expenses Type,Capital/Revenue,Detailed Expenses Type,Date,Amount,Supplier Name,Supplier ID
CS,,OTH LA,Revenue,CONTRIBUTION - WESTMINSTER,24-Mar-17,105746.00,CITY OF WESTMINSTER,Invoice
CS,,COMMUNICATIONS & COMP,Revenue,I.T. SOFTWARE,03-Mar-17,8008.14,NORTHGATE PUBLIC SERVICES (UK) LTD,Invoice
CS,,COMMUNICATIONS & COMP,Revenue,I.T. SOFTWARE,29-Mar-17,200.00,NORTHGATE PUBLIC SERVICES (UK) LTD,Invoice
CS,FINANCE,"REPAIRS, ALTERATIONS & MTCE",Revenue,"REPS, ALTS & MTCE-BUILDINGS",20-Mar-17,499.37,T BROWN GROUP LTD,Invoice
CS,,SERVICES,Revenue,CONSULTANTS FEES,21-Mar-17,9000.00,MOTT MACDONALD LIMITED,Invoice
CS,,SERVICES,Revenue,CONSULTANTS FEES,03-Mar-17,2689.29,QUATRO PUBLIC RELATIONS,Invoice
CS,,OTHER AGENCIES,Revenue,HEALTHWATCH CONTRACT,08-Mar-17,4490.00,WANDSWORTH CARE ALLIANCE,Invoice
CS,,PRINTING STAT & GEN OFFICE EXP,Revenue,PRINTING AND STATIONERY,03-Mar-17,2417.43,ADARE SEC LIMITED,Invoice
CS,,PRINTING STAT & GEN OFFICE EXP,Revenue,PRINTING AND STATIONERY,09-Mar-17,572.75,ADARE SEC LIMITED,Invoice
CS,,PRINTING STAT & GEN OFFICE EXP,Revenue,PRINTING AND STATIONERY,20-Mar-17,245.84,BANNER GROUP LTD,Invoice
CS,,PRINTING STAT & GEN OFFICE EXP,Revenue,PRINTING AND STATIONERY,20-Mar-17,65.26,BANNER GROUP LTD,Invoice
CS,,PRINTING STAT & GEN OFFICE EXP,Revenue,PRINTING AND STATIONERY,20-Mar-17,323.44,BANNER GROUP LTD,Invoice
CS,,PRINTING STAT & GEN OFFICE EXP,Revenue,PRINTING REGISTER,09-Mar-17,579.50,F J BLISSETT & CO LTD,Invoice
CS,,COMMUNICATIONS & COMP,Revenue,COMMUNICATIONS - POSTAGE,03-Mar-17,4243.40,ADARE SEC LIMITED,Invoice
CS,,COMMUNICATIONS & COMP,Revenue,COMMUNICATIONS - POSTAGE,20-Mar-17,796.51,ROYAL MAIL,Invoice
CS,,COMMUNICATIONS & COMP,Revenue,COMMUNICATIONS - POSTAGE,28-Mar-17,1729.90,ROYAL MAIL,Invoice
CS,,COMMUNICATIONS & COMP,Revenue,COMMUNICATIONS - POSTAGE,28-Mar-17,12.18,ROYAL MAIL,Invoice
CS,,COMMUNICATIONS & COMP,Revenue,I.T. DEVELOPMENTS,15-Mar-17,450.00,THE ELECTORAL  REFORM SERVICE,Invoice
CS,,"EQUIPMENT, FURNITURE & MATS",Revenue,FLOWERS,23-Mar-17,646.00,PATRICIA WONG,Invoice
CS,,"EQUIPMENT, FURNITURE & MATS",Revenue,FLOWERS,29-Mar-17,646.00,PATRICIA WONG,Invoice
CS,FINANCE,MISC,Revenue,MISCELLANEOUS EXPENSES,27-Mar-17,1412.71,MR R BAKER,Invoice
CS,FINANCE,MISC,Revenue,MISCELLANEOUS EXPENSES,30-Mar-17,1208.47,MR R BAKER,Invoice
CS,,MISC,Revenue,MISCELLANEOUS EXPENSES,29-Mar-17,135.00,UNIQUE OFFICE SOLUTIONS LTD,Invoice
CS,,MISC,Revenue,MISCELLANEOUS EXPENSES,29-Mar-17,644.00,UNIQUE OFFICE SOLUTIONS LTD,Invoice
CS,,MISC,Revenue,MISCELLANEOUS EXPENSES,29-Mar-17,300.00,UNIQUE OFFICE SOLUTIONS LTD,Invoice
CS,,MISC,Revenue,MISCELLANEOUS EXPENSES,29-Mar-17,760.00,UNIQUE OFFICE SOLUTIONS LTD,Invoice
CS,,MISC,Revenue,MISCELLANEOUS EXPENSES,29-Mar-17,256.00,UNIQUE OFFICE SOLUTIONS LTD,Invoice
CS,,MISC,Revenue,MISCELLANEOUS EXPENSES,29-Mar-17,384.00,UNIQUE OFFICE SOLUTIONS LTD,Invoice
CS,,MISC,Revenue,MISCELLANEOUS EXPENSES,29-Mar-17,770.00,UNIQUE OFFICE SOLUTIONS LTD,Invoice
CS,,MISC,Revenue,MISCELLANEOUS EXPENSES,29-Mar-17,260.00,UNIQUE OFFICE SOLUTIONS LTD,Invoice
CS,,MISC,Revenue,MISCELLANEOUS EXPENSES,29-Mar-17,420.00,UNIQUE OFFICE SOLUTIONS LTD,Invoice
PH,,HEALTH,Revenue,EMERG HORMONAL CONTRACEPTION,29-Mar-17,506.00,ABC PHARMACY FGT10,Invoice
PH,,HEALTH,Revenue,EMERG HORMONAL CONTRACEPTION,29-Mar-17,529.00,AMICHEM LIMITED FNQ61 T/A KRYSTAL PHARMA,Invoice
PH,,HEALTH,Revenue,EMERG HORMONAL CONTRACEPTION,29-Mar-17,690.00,AMICHEM LTD,Invoice
PH,,HEALTH,Revenue,EMERG HORMONAL CONTRACEPTION,29-Mar-17,529.00,BOOTS THE CHEMISTS LTD,Invoice
PH,,HEALTH,Revenue,EMERG HORMONAL CONTRACEPTION,29-Mar-17,5980.00,BOOTS UK LTD FC061 T/A BOOTS THE CHEMIST,Invoice
PH,,HEALTH,Revenue,EMERG HORMONAL CONTRACEPTION,29-Mar-17,805.00,BOOTS UK LTD FD303,Invoice
PH,,HEALTH,Revenue,EMERG HORMONAL CONTRACEPTION,29-Mar-17,322.00,BOOTS UK LTD FDN74 T/A BOOTS THE CHEMIST,Invoice
PH,,HEALTH,Revenue,EMERG HORMONAL CONTRACEPTION,31-Mar-17,4899.00,BOOTS UK LTD FR560,Invoice
PH,,HEALTH,Revenue,EMERG HORMONAL CONTRACEPTION,29-Mar-17,1035.00,BOOTS UK LTD FYN24 T/A BOOTS THE CHEMIST,Invoice
PH,,HEALTH,Revenue,EMERG HORMONAL CONTRACEPTION,29-Mar-17,322.00,DAY LEWIS PLC,Invoice
PH,,HEALTH,Revenue,EMERG HORMONAL CONTRACEPTION,29-Mar-17,621.00,I PATEL T/A TOOTING PHARMACY PRACT FK076,Invoice
PH,,HEALTH,Revenue,EMERG HORMONAL CONTRACEPTION,29-Mar-17,782.00,JAYACHOICE  LTD,Invoice
PH,,HEALTH,Revenue,EMERG HORMONAL CONTRACEPTION,31-Mar-17,483.00,MARKRISE PHARMACY,Invoice
PH,,HEALTH,Revenue,EMERG HORMONAL CONTRACEPTION,29-Mar-17,690.00,NSK LTD,Invoice
PH,,HEALTH,Revenue,EMERG HORMONAL CONTRACEPTION,29-Mar-17,782.00,OAKLON LIMITED FMC 35 T/A EAST HILL PHAR,Invoice
PH,,HEALTH,Revenue,EMERG HORMONAL CONTRACEPTION,29-Mar-17,230.00,PATEL JG & KG LLP T/A AURA PHARMAC FV302,Invoice
PH,,HEALTH,Revenue,EMERG HORMONAL CONTRACEPTION,03-Mar-17,690.00,PEARL CHEMIST GROUP T/A BARRONS CHEMIST,Invoice
PH,,HEALTH,Revenue,EMERG HORMONAL CONTRACEPTION,29-Mar-17,552.00,PEARL CHEMIST LTD FHL06 T/A AUCKLAND ROG,Invoice
PH,,HEALTH,Revenue,EMERG HORMONAL CONTRACEPTION,29-Mar-17,207.00,POLYPHARM LTD FNG23,Invoice
PH,,HEALTH,Revenue,EMERG HORMONAL CONTRACEPTION,29-Mar-17,207.00,PRIMARY CARE CHEMISTS LTD FKP10 -TRINITY,Invoice
PH,,HEALTH,Revenue,EMERG HORMONAL CONTRACEPTION,29-Mar-17,1012.00,QUIZCHOICE LTD FCL10,Invoice
PH,,HEALTH,Revenue,EMERG HORMONAL CONTRACEPTION,29-Mar-17,23.00,SAAJ LTD,Invoice
PH,,HEALTH,Revenue,EMERG HORMONAL CONTRACEPTION,29-Mar-17,851.00,SALASJI LTD FG443 T/A DUMLERS PHARMACY,Invoice
PH,,HEALTH,Revenue,EMERG HORMONAL CONTRACEPTION,29-Mar-17,414.00,TINDACOL LTD T/A CARE CHEMISTS FW023,Invoice
PH,,HEALTH,Revenue,EMERG HORMONAL CONTRACEPTION,09-Mar-17,828.00,WRICKLEMARSH LTD FVM91,Invoice
PH,,HEALTH,Revenue,EMERG HORMONAL CONTRACEPTION,31-Mar-17,828.00,WRICKLEMARSH LTD FVM91,Invoice
PH,,HEALTH,Revenue,CHLAMYDIA SCREENING,03-Mar-17,20.00,PEARL CHEMIST GROUP T/A BARRONS CHEMIST,Invoice
PH,,HEALTH,Revenue,THIRD PARTY PAYMENTS- TRAINING,29-Mar-17,666.67,SMART HEALTH SOLUTIONS,Invoice
PH,,HEALTH,Revenue,PHARMACY LCS,29-Mar-17,42.00,NSK LTD,Invoice
PH,,HEALTH,Revenue,ADULT WEIGHT MGT SERVICE,20-Mar-17,440.40,THE PROMOTIONAL MIX LTD,Invoice
ASC,,HEALTH,Revenue,EY OBESITY PREVENT/TREATMENT,15-Mar-17,35000.00,ENABLE LEISURE AND CULTURE,Invoice
PH,,PRINTING STAT & GEN OFFICE EXP,Revenue,EVENTS PUBLICITY,20-Mar-17,60.00,GASP,Invoice
PH,,PRINTING STAT & GEN OFFICE EXP,Revenue,EVENTS PUBLICITY,20-Mar-17,439.50,GASP,Invoice
PH,,GRANTS & SUBSCRIPTIONS,Revenue,SUBSCRIPTIONS,09-Mar-17,23834.00,LONDON BOROUGH OF HARINGEY,Invoice
PH,,MISC,Revenue,MISCELLANEOUS EXPENSES,29-Mar-17,292.50,INTERMEDICAL (UK) LTD,Invoice
PH,,MISC,Revenue,MISCELLANEOUS EXPENSES,29-Mar-17,1190.00,INTERMEDICAL (UK) LTD,Invoice
PH,,MISC,Revenue,MISCELLANEOUS EXPENSES,29-Mar-17,12.00,INTERMEDICAL (UK) LTD,Invoice
PH,,HEALTH,Revenue,PRESCRIBING SERVICES,07-Mar-17,92.00,PEARL CHEMIST LTD,Invoice
PH,,HEALTH,Revenue,PRESCRIBING SERVICES,07-Mar-17,959.42,PEARL CHEMIST LTD,Invoice
PH,,HEALTH,Revenue,PRESCRIBING SERVICES,23-Mar-17,68.00,PEARL CHEMIST LTD,Invoice
PH,,HEALTH,Revenue,PRESCRIBING SERVICES,23-Mar-17,763.87,PEARL CHEMIST LTD,Invoice
PH,,HEALTH,Revenue,PRESCRIBING SERVICES,09-Mar-17,56.00,PEARL CHEMIST LTD FDV93 T/A LORDS PHARMA,Invoice
PH,,HEALTH,Revenue,PRESCRIBING SERVICES,09-Mar-17,684.10,PEARL CHEMIST LTD FDV93 T/A LORDS PHARMA,Invoice
PH,,HEALTH,Revenue,PRESCRIBING SERVICES,23-Mar-17,76.00,PEARL CHEMIST LTD FDV93 T/A LORDS PHARMA,Invoice
PH,,HEALTH,Revenue,PRESCRIBING SERVICES,23-Mar-17,999.56,PEARL CHEMIST LTD FDV93 T/A LORDS PHARMA,Invoice
PH,,HEALTH,Revenue,PRESCRIBING SERVICES,09-Mar-17,34.00,SALASJI LTD FG443 T/A DUMLERS PHARMACY,Invoice
PH,,HEALTH,Revenue,PRESCRIBING SERVICES,09-Mar-17,452.43,SALASJI LTD FG443 T/A DUMLERS PHARMACY,Invoice
PH,,HEALTH,Revenue,PRESCRIBING SERVICES,29-Mar-17,46.00,SALASJI LTD FG443 T/A DUMLERS PHARMACY,Invoice
PH,,HEALTH,Revenue,PRESCRIBING SERVICES,29-Mar-17,485.27,SALASJI LTD FG443 T/A DUMLERS PHARMACY,Invoice
PH,,HEALTH,Revenue,PHARMACY LCS,29-Mar-17,70.00,ABC PHARMACY FGT10,Invoice
PH,,HEALTH,Revenue,PHARMACY LCS,29-Mar-17,420.00,AMICHEM LIMITED FNQ61 T/A KRYSTAL PHARMA,Invoice
PH,,HEALTH,Revenue,PHARMACY LCS,29-Mar-17,420.00,BOOTS UK LTD FC061 T/A BOOTS THE CHEMIST,Invoice
PH,,HEALTH,Revenue,PHARMACY LCS,31-Mar-17,490.00,BOOTS UK LTD FR560,Invoice
PH,,HEALTH,Revenue,PHARMACY LCS,29-Mar-17,210.00,DAY LEWIS PLC,Invoice
PH,,HEALTH,Revenue,PHARMACY LCS,29-Mar-17,70.00,JAYACHOICE  LTD,Invoice
PH,,HEALTH,Revenue,PHARMACY LCS,31-Mar-17,140.00,MARKRISE PHARMACY,Invoice
PH,,HEALTH,Revenue,PHARMACY LCS,29-Mar-17,280.00,NSK LTD,Invoice
PH,,HEALTH,Revenue,PHARMACY LCS,29-Mar-17,140.00,OAKLON LIMITED FMC 35 T/A EAST HILL PHAR,Invoice
PH,,HEALTH,Revenue,PHARMACY LCS,29-Mar-17,280.00,PATEL JG & KG LLP T/A AURA PHARMAC FV302,Invoice
PH,,HEALTH,Revenue,PHARMACY LCS,29-Mar-17,140.00,POLYPHARM LTD FNG23,Invoice
PH,,HEALTH,Revenue,PHARMACY LCS,29-Mar-17,70.00,QUIZCHOICE LTD FCL10,Invoice
PH,,HEALTH,Revenue,PHARMACY LCS,29-Mar-17,350.00,SALASJI LTD FG443 T/A DUMLERS PHARMACY,Invoice
PH,,HEALTH,Revenue,SCREENING IN COMMUNTIES,09-Mar-17,16186.12,WILLIAMS & ASSOCIATES,Invoice
PH,,VOL ASS,Revenue,THIRD PARTY PYMT - VOL ASS,20-Mar-17,3333.00,AGE UK WANDSWORTH,Invoice
PH,,VOL ASS,Revenue,THIRD PARTY PYMT - VOL ASS,20-Mar-17,3333.00,AGE UK WANDSWORTH,Invoice
PH,,VOL ASS,Revenue,THIRD PARTY PYMT - VOL ASS,20-Mar-17,2000.00,LEONARD CHESHIRE,Invoice
PH,,VOL ASS,Revenue,THIRD PARTY PYMT - VOL ASS,20-Mar-17,2000.00,LEONARD CHESHIRE,Invoice
PH,,VOL ASS,Revenue,THIRD PARTY PYMT - VOL ASS,20-Mar-17,2000.00,LEONARD CHESHIRE,Invoice
PH,,VOL ASS,Revenue,THIRD PARTY PYMT - VOL ASS,09-Mar-17,11233.00,THINKING WORKS,Invoice
PH,,GRANTS & SUBSCRIPTIONS,Revenue,SUBSCRIPTIONS,15-Mar-17,13914.00,LONDON BOROUGH OF HARINGEY,Invoice
NGF HS,,SERVICES,Revenue,HIPS,09-Mar-17,780.00,GORDON BROWN,Invoice
NGF HS,,SERVICES,Revenue,HIPS,29-Mar-17,660.00,GORDON BROWN,Invoice
NGF HS,ADMINISTRATION,OTHER AGENCIES,Revenue,EQUITY SERVICE CHARGE,24-Mar-17,4875.00,Dean Manson LLP,Invoice
NGF CS,,PRIVATE,Revenue,REFUSE COLLECTN & PEST CONTROL,13-Mar-17,1202.69,SITA UK LTD,Invoice
NGF CS,,PRIVATE,Revenue,REFUSE COLLECTN & PEST CONTROL,13-Mar-17,534.79,SITA UK LTD,Invoice
NGF CS,,CLEANING & DOMESTIC SUPPLIES,Revenue,CLEANING & DOMESTIC SUPPLIES,30-Mar-17,2105.35,WESSEX PRODUCTS (LEASING) LTD,Invoice
NGF CS,,CLEANING & DOMESTIC SUPPLIES,Revenue,CLEANING CONTRACT,01-Mar-17,31087.99,KINGDOM SECURITY LTD,Invoice
NGF CS,,CLEANING & DOMESTIC SUPPLIES,Revenue,CLEANING CONTRACT,13-Mar-17,824.76,PHS GROUP PLC,Invoice
NGF CS,,CLEANING & DOMESTIC SUPPLIES,Revenue,CLEANING CONTRACT,13-Mar-17,648.37,PHS GROUP PLC,Invoice
NGF CS,,CLEANING & DOMESTIC SUPPLIES,Revenue,CLEANING CONTRACT,13-Mar-17,444.09,PHS GROUP PLC,Invoice
NGF CS,,CLEANING & DOMESTIC SUPPLIES,Revenue,CLEANING CONTRACT,13-Mar-17,1442.80,PHS GROUP PLC,Invoice
NGF CS,,CLEANING & DOMESTIC SUPPLIES,Revenue,CLEANING CONTRACT,31-Mar-17,515.25,PHS GROUP PLC,Invoice
NGF CS,,CLEANING & DOMESTIC SUPPLIES,Revenue,WINDOW CLEANING,27-Mar-17,978.25,PARKERS CLEANING CONTRACTORS LTD,Invoice
NGF CS,,"EQUIPMENT, FURNITURE & MATS",Revenue,FIRE EXTINGUISHERS,21-Mar-17,1165.05,HOME COUNTY FIRE AND CATERHAM LTD,Invoice
NGF CS,FINANCE,PRIVATE,Revenue,GENERAL CONTRACT WORK,27-Mar-17,7550.00,DEBA UK LTD,Invoice
NGF CS,,PRIVATE,Revenue,REFUSE COLLECTN & PEST CONTROL,09-Mar-17,481.88,HOME COUNTY FIRE AND CATERHAM LTD,Invoice
NGF CS,FINANCE,"REPAIRS, ALTERATIONS & MTCE",Revenue,"REPS, ALTS & MTCE-BUILDINGS",20-Mar-17,194.03,DEBA UK LTD,Invoice
NGF CS,FINANCE,"REPAIRS, ALTERATIONS & MTCE",Revenue,"REPS, ALTS & MTCE-BUILDINGS",27-Mar-17,232.83,DEBA UK LTD,Invoice
NGF CS,,COMMUNICATIONS & COMP,Revenue,I.T. EQUIPMENT & MAINTENANCE,15-Mar-17,650.00,EMIS INTELLECTUAL TECHNOLOGY,Invoice
NGF CS,,OTHER AGENCIES,Revenue,DISBURSEMENTS,02-Mar-17,600.00,1 GARDEN COURT CHAMBERS,Invoice
NGF CS,,OTHER AGENCIES,Revenue,DISBURSEMENTS,03-Mar-17,2625.00,1 GARDEN COURT CHAMBERS,Invoice
NGF CS,,OTHER AGENCIES,Revenue,DISBURSEMENTS,03-Mar-17,600.00,1 GARDEN COURT CHAMBERS,Invoice
NGF CS,,OTHER AGENCIES,Revenue,DISBURSEMENTS,14-Mar-17,1550.00,1 GARDEN COURT CHAMBERS,Invoice
NGF CS,,OTHER AGENCIES,Revenue,DISBURSEMENTS,14-Mar-17,800.00,1 GARDEN COURT CHAMBERS,Invoice
NGF CS,,OTHER AGENCIES,Revenue,DISBURSEMENTS,28-Mar-17,500.00,1 GARDEN COURT CHAMBERS,Invoice
NGF CS,,OTHER AGENCIES,Revenue,DISBURSEMENTS,15-Mar-17,1250.00,11 KBW LTD,Invoice
NGF CS,,OTHER AGENCIES,Revenue,DISBURSEMENTS,28-Mar-17,800.00,36 BEDFORD ROW,Invoice
NGF CS,,OTHER AGENCIES,Revenue,DISBURSEMENTS,28-Mar-17,525.00,36 BEDFORD ROW,Invoice
NGF CS,,OTHER AGENCIES,Revenue,DISBURSEMENTS,28-Mar-17,450.00,36 BEDFORD ROW,Invoice
NGF CS,,OTHER AGENCIES,Revenue,DISBURSEMENTS,14-Mar-17,1250.00,39 ESSEX CHAMBERS,Invoice
NGF CS,,OTHER AGENCIES,Revenue,DISBURSEMENTS,02-Mar-17,650.00,4 BRICK COURT MANAGEMENT LIMITED,Invoice
NGF CS,,OTHER AGENCIES,Revenue,DISBURSEMENTS,02-Mar-17,500.00,4 BRICK COURT MANAGEMENT LIMITED,Invoice
NGF CS,,OTHER AGENCIES,Revenue,DISBURSEMENTS,03-Mar-17,800.00,4 BRICK COURT MANAGEMENT LIMITED,Invoice
NGF CS,,OTHER AGENCIES,Revenue,DISBURSEMENTS,08-Mar-17,500.00,4 BRICK COURT MANAGEMENT LIMITED,Invoice
NGF CS,,OTHER AGENCIES,Revenue,DISBURSEMENTS,08-Mar-17,2062.50,4 BRICK COURT MANAGEMENT LIMITED,Invoice
NGF CS,,OTHER AGENCIES,Revenue,DISBURSEMENTS,09-Mar-17,500.00,4 BRICK COURT MANAGEMENT LIMITED,Invoice
NGF CS,,OTHER AGENCIES,Revenue,DISBURSEMENTS,09-Mar-17,425.00,4 BRICK COURT MANAGEMENT LIMITED,Invoice
NGF CS,,OTHER AGENCIES,Revenue,DISBURSEMENTS,09-Mar-17,620.00,4 BRICK COURT MANAGEMENT LIMITED,Invoice
NGF CS,,OTHER AGENCIES,Revenue,DISBURSEMENTS,13-Mar-17,425.00,4 BRICK COURT MANAGEMENT LIMITED,Invoice
NGF CS,,OTHER AGENCIES,Revenue,DISBURSEMENTS,14-Mar-17,550.00,4 BRICK COURT MANAGEMENT LIMITED,Invoice
NGF CS,,OTHER AGENCIES,Revenue,DISBURSEMENTS,16-Mar-17,2093.75,4 BRICK COURT MANAGEMENT LIMITED,Invoice
NGF CS,,OTHER AGENCIES,Revenue,DISBURSEMENTS,16-Mar-17,700.00,4 BRICK COURT MANAGEMENT LIMITED,Invoice
NGF CS,,OTHER AGENCIES,Revenue,DISBURSEMENTS,16-Mar-17,1050.00,4 BRICK COURT MANAGEMENT LIMITED,Invoice
NGF CS,,OTHER AGENCIES,Revenue,DISBURSEMENTS,16-Mar-17,600.00,4 BRICK COURT MANAGEMENT LIMITED,Invoice
NGF CS,,OTHER AGENCIES,Revenue,DISBURSEMENTS,16-Mar-17,425.00,4 BRICK COURT MANAGEMENT LIMITED,Invoice
NGF CS,,OTHER AGENCIES,Revenue,DISBURSEMENTS,16-Mar-17,780.00,4 BRICK COURT MANAGEMENT LIMITED,Invoice
NGF CS,,OTHER AGENCIES,Revenue,DISBURSEMENTS,16-Mar-17,500.00,4 BRICK COURT MANAGEMENT LIMITED,Invoice
NGF CS,,OTHER AGENCIES,Revenue,DISBURSEMENTS,20-Mar-17,850.00,4 BRICK COURT MANAGEMENT LIMITED,Invoice
NGF CS,,OTHER AGENCIES,Revenue,DISBURSEMENTS,20-Mar-17,1150.00,4 BRICK COURT MANAGEMENT LIMITED,Invoice
NGF CS,,OTHER AGENCIES,Revenue,DISBURSEMENTS,20-Mar-17,800.00,4 BRICK COURT MANAGEMENT LIMITED,Invoice
NGF CS,,OTHER AGENCIES,Revenue,DISBURSEMENTS,20-Mar-17,2450.00,4 BRICK COURT MANAGEMENT LIMITED,Invoice
NGF CS,,OTHER AGENCIES,Revenue,DISBURSEMENTS,20-Mar-17,800.00,4 BRICK COURT MANAGEMENT LIMITED,Invoice
NGF CS,,OTHER AGENCIES,Revenue,DISBURSEMENTS,20-Mar-17,1050.00,4 BRICK COURT MANAGEMENT LIMITED,Invoice
NGF CS,,OTHER AGENCIES,Revenue,DISBURSEMENTS,20-Mar-17,500.00,4 BRICK COURT MANAGEMENT LIMITED,Invoice
NGF CS,,OTHER AGENCIES,Revenue,DISBURSEMENTS,20-Mar-17,425.00,4 BRICK COURT MANAGEMENT LIMITED,Invoice
NGF CS,,OTHER AGENCIES,Revenue,DISBURSEMENTS,23-Mar-17,1656.25,4 BRICK COURT MANAGEMENT LIMITED,Invoice
NGF CS,,OTHER AGENCIES,Revenue,DISBURSEMENTS,28-Mar-17,630.00,4 BRICK COURT MANAGEMENT LIMITED,Invoice
NGF CS,,OTHER AGENCIES,Revenue,DISBURSEMENTS,31-Mar-17,2360.00,ASHFORDS,Invoice
NGF CS,,OTHER AGENCIES,Revenue,DISBURSEMENTS,31-Mar-17,1367.00,ASHFORDS,Invoice
NGF CS,,OTHER AGENCIES,Revenue,DISBURSEMENTS,16-Mar-17,1293.80,BEVERLEY F NUNNERY & CO,Invoice
NGF CS,,OTHER AGENCIES,Revenue,DISBURSEMENTS,29-Mar-17,940.00,CAROLYNE PEARSON,Invoice
NGF CS,,OTHER AGENCIES,Revenue,DISBURSEMENTS,08-Mar-17,2080.40,CARTER BROWN-THE EXPERT SERVICE,Invoice
NGF CS,,OTHER AGENCIES,Revenue,DISBURSEMENTS,09-Mar-17,1000.00,CORNERSTONE BACS,Invoice
NGF CS,,OTHER AGENCIES,Revenue,DISBURSEMENTS,14-Mar-17,1000.00,CORNERSTONE BACS,Invoice
NGF CS,,OTHER AGENCIES,Revenue,DISBURSEMENTS,03-Mar-17,900.00,DR RODGER KENNEDY,Invoice
NGF CS,,OTHER AGENCIES,Revenue,DISBURSEMENTS,03-Mar-17,556.40,DR TOMAS CAMPBELL,Invoice
NGF CS,,OTHER AGENCIES,Revenue,DISBURSEMENTS,13-Mar-17,575.00,FIELD COURT CHAMBERS,Invoice
NGF CS,,OTHER AGENCIES,Revenue,DISBURSEMENTS,14-Mar-17,1125.00,FIELD COURT CHAMBERS,Invoice
NGF CS,,OTHER AGENCIES,Revenue,DISBURSEMENTS,02-Mar-17,525.00,FIVE PAPER,Invoice
NGF CS,,OTHER AGENCIES,Revenue,DISBURSEMENTS,08-Mar-17,1000.00,FIVE PAPER,Invoice
NGF CS,,OTHER AGENCIES,Revenue,DISBURSEMENTS,14-Mar-17,1000.00,FIVE PAPER,Invoice
NGF CS,,OTHER AGENCIES,Revenue,DISBURSEMENTS,14-Mar-17,900.00,FIVE PAPER,Invoice
NGF CS,,OTHER AGENCIES,Revenue,DISBURSEMENTS,16-Mar-17,1750.00,FIVE PAPER,Invoice
NGF CS,,OTHER AGENCIES,Revenue,DISBURSEMENTS,28-Mar-17,1000.00,FIVE PAPER,Invoice
NGF CS,,OTHER AGENCIES,Revenue,DISBURSEMENTS,03-Mar-17,700.00,FOURTEEN,Invoice
NGF CS,,OTHER AGENCIES,Revenue,DISBURSEMENTS,03-Mar-17,600.00,FOURTEEN,Invoice
NGF CS,,OTHER AGENCIES,Revenue,DISBURSEMENTS,09-Mar-17,700.00,FOURTEEN,Invoice
NGF CS,,OTHER AGENCIES,Revenue,DISBURSEMENTS,09-Mar-17,950.00,FOURTEEN,Invoice
NGF CS,,OTHER AGENCIES,Revenue,DISBURSEMENTS,09-Mar-17,625.00,FOURTEEN,Invoice
NGF CS,,OTHER AGENCIES,Revenue,DISBURSEMENTS,09-Mar-17,1050.00,FOURTEEN,Invoice
NGF CS,,OTHER AGENCIES,Revenue,DISBURSEMENTS,09-Mar-17,500.00,FOURTEEN,Invoice
NGF CS,,OTHER AGENCIES,Revenue,DISBURSEMENTS,09-Mar-17,900.00,FOURTEEN,Invoice
NGF CS,,OTHER AGENCIES,Revenue,DISBURSEMENTS,09-Mar-17,1115.00,FOURTEEN,Invoice
NGF CS,,OTHER AGENCIES,Revenue,DISBURSEMENTS,09-Mar-17,560.00,FOURTEEN,Invoice
NGF CS,,OTHER AGENCIES,Revenue,DISBURSEMENTS,09-Mar-17,425.00,FOURTEEN,Invoice
NGF CS,,OTHER AGENCIES,Revenue,DISBURSEMENTS,09-Mar-17,1025.00,FOURTEEN,Invoice
NGF CS,,OTHER AGENCIES,Revenue,DISBURSEMENTS,09-Mar-17,3600.00,FOURTEEN,Invoice
NGF CS,,OTHER AGENCIES,Revenue,DISBURSEMENTS,23-Mar-17,800.00,FOURTEEN,Invoice
NGF CS,,OTHER AGENCIES,Revenue,DISBURSEMENTS,03-Mar-17,379.57,SEARCHFLOW LIMITED,Invoice
NGF CS,,OTHER AGENCIES,Revenue,DISBURSEMENTS,03-Mar-17,440.00,SEARCHFLOW LIMITED,Invoice
NGF CS,,OTHER AGENCIES,Revenue,DISBURSEMENTS,30-Mar-17,3125.00,SHARPE PRITCHARD LLP,Invoice
NGF CS,,OTHER AGENCIES,Revenue,DISBURSEMENTS,28-Mar-17,500.00,THE CHAMBERS OF ANDREW TROLLOPE QC,Invoice
NGF CS,,OTHER AGENCIES,Revenue,DISBURSEMENTS,16-Mar-17,1800.00,ZACK SIMONS,Invoice
NGF CS,,OTHER AGENCIES,Revenue,DISBURSEMENTS,16-Mar-17,1500.00,ZACK SIMONS,Invoice
NGF CS,,PRIVATE,Revenue,CONTRACT 4- LITIGATION,03-Mar-17,13613.59,ASHFORDS,Invoice
NGF CS,,PRIVATE,Revenue,CONTRACT 4- LITIGATION,14-Mar-17,11380.98,ASHFORDS,Invoice
NGF CS,,PRIVATE,Revenue,"CONTRACT 6- HWYS, PLAN ETC",30-Mar-17,1100.00,FURLEY PAGE LLP,Invoice
NGF CS,,PRIVATE,Revenue,"CONTRACT 6- HWYS, PLAN ETC",30-Mar-17,11984.00,SHARPE PRITCHARD LLP,Invoice
NGF CS,,PRIVATE,Revenue,LOT 1 - LLORD SERVS PROP MGMT,21-Mar-17,15699.74,LAMBERT SMITH HAMPTON,Invoice
NGF CS,,PRIVATE,Revenue,LOT 2 - GEN VALUATIONS,30-Mar-17,1240.00,LAMBERT SMITH HAMPTON,Invoice
NGF CS,,PRINTING STAT & GEN OFFICE EXP,Revenue,OUTWORK - WEB OFFSET,31-Mar-17,10551.31,ASPENLINK LTD,Invoice
NGF CS,,PRINTING STAT & GEN OFFICE EXP,Revenue,OUTWORK - WEB OFFSET,31-Mar-17,3278.86,ASPENLINK LTD,Invoice
NGF CS,,PRINTING STAT & GEN OFFICE EXP,Revenue,OUTWORK - WEB OFFSET,20-Mar-17,835.00,WARNERS MIDLANDS PLC,Invoice
NGF CS,,PRINTING STAT & GEN OFFICE EXP,Revenue,OUTWORK - WEB OFFSET,08-Mar-17,2479.00,WYNDEHAM PETERBOROUGH LTD,Invoice
NGF CS,,PRINTING STAT & GEN OFFICE EXP,Revenue,OUTWORK - LITHO,20-Mar-17,625.72,DELTOR COMMUNICATIONS LTD,Invoice
NGF CS,,PRINTING STAT & GEN OFFICE EXP,Revenue,OUTWORK - LITHO,20-Mar-17,459.40,FINANCIAL DATA MANAGEMENT LTD,Invoice
NGF CS,,PRINTING STAT & GEN OFFICE EXP,Revenue,OUTWORK - LITHO,08-Mar-17,3000.00,IMPRESS PRINT SERVICES LTD,Invoice
NGF CS,,PRINTING STAT & GEN OFFICE EXP,Revenue,OUTWORK - LITHO,20-Mar-17,890.00,IMPRESS PRINT SERVICES LTD,Invoice
NGF CS,,PRINTING STAT & GEN OFFICE EXP,Revenue,OUTWORK - LITHO,20-Mar-17,1463.00,IMPRESS PRINT SERVICES LTD,Invoice
NGF CS,,PRINTING STAT & GEN OFFICE EXP,Revenue,OUTWORK - LITHO,20-Mar-17,742.00,IMPRESS PRINT SERVICES LTD,Invoice
NGF CS,,PRINTING STAT & GEN OFFICE EXP,Revenue,OUTWORK - LITHO,31-Mar-17,510.00,IMPRESS PRINT SERVICES LTD,Invoice
NGF CS,,PRINTING STAT & GEN OFFICE EXP,Revenue,OUTWORK - LITHO,08-Mar-17,1692.02,KALL KWIK,Invoice
NGF CS,,PRINTING STAT & GEN OFFICE EXP,Revenue,OUTWORK - LITHO,08-Mar-17,1237.98,KALL KWIK,Invoice
NGF CS,,PRINTING STAT & GEN OFFICE EXP,Revenue,OUTWORK - LITHO,08-Mar-17,849.99,KALL KWIK,Invoice
NGF CS,,PRINTING STAT & GEN OFFICE EXP,Revenue,OUTWORK - LITHO,08-Mar-17,982.92,KALL KWIK,Invoice
NGF CS,,PRINTING STAT & GEN OFFICE EXP,Revenue,OUTWORK - LITHO,20-Mar-17,1072.04,KALL KWIK,Invoice
NGF CS,,PRINTING STAT & GEN OFFICE EXP,Revenue,OUTWORK - LITHO,20-Mar-17,4558.89,KALL KWIK,Invoice
NGF CS,,PRINTING STAT & GEN OFFICE EXP,Revenue,OUTWORK - LITHO,20-Mar-17,1505.72,KALL KWIK,Invoice
NGF CS,,PRINTING STAT & GEN OFFICE EXP,Revenue,OUTWORK - LITHO,20-Mar-17,1190.39,KALL KWIK,Invoice
NGF CS,,PRINTING STAT & GEN OFFICE EXP,Revenue,OUTWORK - LITHO,31-Mar-17,3586.56,KALL KWIK,Invoice
NGF CS,,PRINTING STAT & GEN OFFICE EXP,Revenue,OUTWORK - LITHO,31-Mar-17,550.06,KALL KWIK,Invoice
NGF CS,,PRINTING STAT & GEN OFFICE EXP,Revenue,OUTWORK - LITHO,31-Mar-17,632.00,KALL KWIK,Invoice
NGF CS,,PRINTING STAT & GEN OFFICE EXP,Revenue,OUTWORK - LITHO,31-Mar-17,553.00,SLS PRINT,Invoice
NGF CS,,PRINTING STAT & GEN OFFICE EXP,Revenue,OUTWORK - LITHO,31-Mar-17,1902.00,SLS PRINT,Invoice
NGF CS,,PRINTING STAT & GEN OFFICE EXP,Revenue,OUTWORK - EXTERN NON FRAMEWORK,08-Mar-17,600.00,SERVICE GRAPHICS LTD,Invoice
NGF CS,,PRINTING STAT & GEN OFFICE EXP,Revenue,URGENT PRINT CONTRACT,08-Mar-17,455.37,KALL KWIK,Invoice
NGF CS,,PRINTING STAT & GEN OFFICE EXP,Revenue,URGENT PRINT CONTRACT,20-Mar-17,2250.75,KALL KWIK,Invoice
NGF CS,,PRINTING STAT & GEN OFFICE EXP,Revenue,URGENT PRINT CONTRACT,20-Mar-17,1388.69,KALL KWIK,Invoice
NGF CS,,PRINTING STAT & GEN OFFICE EXP,Revenue,URGENT PRINT CONTRACT,31-Mar-17,1317.37,KALL KWIK,Invoice
NGF CS,,PRINTING STAT & GEN OFFICE EXP,Revenue,URGENT PRINT CONTRACT,31-Mar-17,789.19,KALL KWIK,Invoice
NGF CS,,PRINTING STAT & GEN OFFICE EXP,Revenue,URGENT PRINT CONTRACT,20-Mar-17,983.14,THAMES DIGITAL REPROGRAPHICS LTD,Invoice
NGF CS,,PRINTING STAT & GEN OFFICE EXP,Revenue,URGENT PRINT CONTRACT,31-Mar-17,10210.00,THAMES DIGITAL REPROGRAPHICS LTD,Invoice
NGF CS,,MISC,Revenue,MISCELLANEOUS EXPENSES,20-Mar-17,432.03,LONDON LETTERBOX MARKETING,Invoice
NGF CS,,MISC,Revenue,MISCELLANEOUS EXPENSES,20-Mar-17,8195.00,LONDON LETTERBOX MARKETING,Invoice
NGF CS,,MISC,Revenue,MISCELLANEOUS EXPENSES,31-Mar-17,598.45,LONDON LETTERBOX MARKETING,Invoice
NGF CS,,MISC,Revenue,MISCELLANEOUS EXPENSES,31-Mar-17,641.00,ONNEKAS LTD (MARTINS),Invoice
NGF CDC,FINANCE,"EQUIPMENT, FURNITURE & MATS",Revenue,"EQUIPMENT, FURNITURE & MATS",22-Mar-17,1675.23,DH CROFTS LTD,Invoice
NGF CDC,,"EQUIPMENT, FURNITURE & MATS",Revenue,"EQUIPMENT, FURNITURE & MATS",09-Mar-17,621.12,XMA LIMITED,Invoice
NGF CDC,,PRINTING STAT & GEN OFFICE EXP,Revenue,PUBLICITY,09-Mar-17,649.00,DOTMAILER LTD,Invoice
NGF CDC,,PRINTING STAT & GEN OFFICE EXP,Revenue,PUBLICITY,09-Mar-17,649.00,DOTMAILER LTD,Invoice
NGF CS,,"EQUIPMENT, FURNITURE & MATS",Revenue,"EQUIPMENT, FURNITURE & MATS",30-Mar-17,510.00,JT & SONS RELOCATIONS,Invoice
NGF CS,,INDIRECT,Revenue,IN-SERVICE TRAINING-SLA,09-Mar-17,1500.00,ISV SOFTWARE LTD,Invoice
NGF CS,,INDIRECT,Revenue,IN-SERVICE TRAINING-SLA,15-Mar-17,7184.00,THE KNOWLEDGE ACADEMY LIMITED,Invoice
NGF CS,,INDIRECT,Revenue,IN-SERVICE TRAINING-SLA,29-Mar-17,230.00,TRAINING OUTSOURCE LIMITED,Invoice
NGF CS,,INDIRECT,Revenue,IN-SERVICE TRAINING-SLA,29-Mar-17,230.00,TRAINING OUTSOURCE LIMITED,Invoice
NGF CS,,INDIRECT,Revenue,IN-SERVICE TRAINING-SLA,29-Mar-17,230.00,TRAINING OUTSOURCE LIMITED,Invoice
NGF CS,,INDIRECT,Revenue,IN-SERVICE TRAINING-SLA,29-Mar-17,230.00,TRAINING OUTSOURCE LIMITED,Invoice
NGF CS,,INDIRECT,Revenue,IN-SERVICE TRAINING-SLA,09-Mar-17,1200.00,VERITY BARTON,Invoice
NGF CS,,INDIRECT,Revenue,IN-SERVICE TRAINING-SLA,09-Mar-17,135.00,VERITY BARTON,Invoice
NGF CS,,INDIRECT,Revenue,CHILDCARE VOUCHERS,20-Mar-17,567.63,COMPUTERSHARE VOUCHER SERVICES,Invoice
NGF CS,,INDIRECT,Revenue,CHILDCARE VOUCHERS,29-Mar-17,131.59,COMPUTERSHARE VOUCHER SERVICES,Invoice
NGF CS,,INDIRECT,Revenue,TRAINING - EXTERNAL COURSES,15-Mar-17,580.00,FIRE PROTECTION ASSOCIATION,Invoice
NGF CS,,INDIRECT,Revenue,STAFF ADVERTISING - VACANCIES,29-Mar-17,33750.00,JGP RESOURCING LTD (JOBGOPUBLIC),Invoice
NGF CS,,PRINTING STAT & GEN OFFICE EXP,Revenue,PRINTING AND STATIONERY,23-Mar-17,366.84,DANWOOD GROUP LTD,Invoice
NGF CS,,PRINTING STAT & GEN OFFICE EXP,Revenue,PRINTING AND STATIONERY,23-Mar-17,145.40,DANWOOD GROUP LTD,Invoice
NGF CS,,PRINTING STAT & GEN OFFICE EXP,Revenue,PRINTING AND STATIONERY,23-Mar-17,366.84,DANWOOD GROUP LTD,Invoice
NGF CS,,PRINTING STAT & GEN OFFICE EXP,Revenue,PRINTING AND STATIONERY,23-Mar-17,366.84,DANWOOD GROUP LTD,Invoice
NGF CS,,PRINTING STAT & GEN OFFICE EXP,Revenue,PRINTING AND STATIONERY,23-Mar-17,615.00,DANWOOD GROUP LTD,Invoice
NGF CS,,PRINTING STAT & GEN OFFICE EXP,Revenue,PRINTING AND STATIONERY,23-Mar-17,289.80,DANWOOD GROUP LTD,Invoice
NGF CS,,PRINTING STAT & GEN OFFICE EXP,Revenue,PRINTING AND STATIONERY,23-Mar-17,615.00,DANWOOD GROUP LTD,Invoice
NGF CS,,SERVICES,Revenue,OHS SESSIONAL DOCTOR,15-Mar-17,785.00,EXPEDITE HEALTH LTD,Invoice
NGF CS,,SERVICES,Revenue,OHS SESSIONAL DOCTOR,16-Mar-17,4082.12,HJM ASSOCIATES,Invoice
NGF CS,,SERVICES,Revenue,OHS SESSIONAL DOCTOR,29-Mar-17,5103.90,HJM ASSOCIATES,Invoice
NGF CDC,,CATERING,Revenue,CATERING,20-Mar-17,1124.80,NOVAL CATERING LTD,Invoice
NGF CS,,"EQUIPMENT, FURNITURE & MATS",Revenue,"EQUIPMENT, FURNITURE & MATS",20-Mar-17,273.00,WAGSTAFF INTERIORS GROUP,Invoice
NGF CS,,"EQUIPMENT, FURNITURE & MATS",Revenue,"EQUIPMENT, FURNITURE & MATS",20-Mar-17,168.00,WAGSTAFF INTERIORS GROUP,Invoice
PH,ADMINISTRATION,INDIRECT,Revenue,TRAINING - EXTERNAL COURSES,15-Mar-17,1000.00,Practive Ltd,Invoice
NGF CS,,"EQUIPMENT, FURNITURE & MATS",Revenue,"EQUIPMENT, FURNITURE & MATS",24-Mar-17,1112.00,ACS LTD,Invoice
NGF CS,,"EQUIPMENT, FURNITURE & MATS",Revenue,"EQUIPMENT, FURNITURE & MATS",24-Mar-17,9.95,ACS LTD,Invoice
NGF CS,,COMMUNICATIONS & COMP,Revenue,I.T. EQUIPMENT & MAINTENANCE,10-Mar-17,556.00,ACS LTD,Invoice
NGF CS,,COMMUNICATIONS & COMP,Revenue,I.T. EQUIPMENT & MAINTENANCE,10-Mar-17,9.95,ACS LTD,Invoice
NGF CS,,COMMUNICATIONS & COMP,Revenue,I.T. EQUIPMENT & MAINTENANCE,30-Mar-17,478.00,INSIGHT DIRECT (UK) LTD,Invoice
NGF CS,,COMMUNICATIONS & COMP,Revenue,I.T. EQUIPMENT & MAINTENANCE,31-Mar-17,11023.00,INSIGHT DIRECT (UK) LTD,Invoice
NGF CS,,COMMUNICATIONS & COMP,Revenue,I.T. EQUIPMENT & MAINTENANCE,29-Mar-17,1900.00,XMA LIMITED,Invoice
NGF CS,,"EQUIPMENT, FURNITURE & MATS",Revenue,ADAPTATIONS - COUNCIL,06-Mar-17,5426.00,SUNA COMMUNICATION LTD,Invoice
NGF CS,,"EQUIPMENT, FURNITURE & MATS",Revenue,CCTV FIBRE RENTALS,16-Mar-17,1240.00,VODAFONE CORPORATE,Invoice
NGF CS,,"EQUIPMENT, FURNITURE & MATS",Revenue,CCTV MAINTENANCE,07-Mar-17,72824.93,VODAFONE CORPORATE,Invoice
NGF CS,,"EQUIPMENT, FURNITURE & MATS",Revenue,CCTV MAINTENANCE,07-Mar-17,224.40,VODAFONE CORPORATE,Invoice
NGF CS,,"EQUIPMENT, FURNITURE & MATS",Revenue,CONSUMABLES,17-Mar-17,4255.46,BT PAYMENT SERVICES LTD,Invoice
NGF CS,,"EQUIPMENT, FURNITURE & MATS",Revenue,"EQUIPMENT, FURNITURE & MATS",02-Mar-17,2400.00,BERKLEY TECHNICAL SERVICES LTD,Invoice
NGF CS,,"EQUIPMENT, FURNITURE & MATS",Revenue,"EQUIPMENT, FURNITURE & MATS",02-Mar-17,2800.00,BERKLEY TECHNICAL SERVICES LTD,Invoice
NGF CS,,"EQUIPMENT, FURNITURE & MATS",Revenue,"EQUIPMENT, FURNITURE & MATS",27-Mar-17,4662.00,DAISY CORPORATE SERVICES LTD,Invoice
NGF CS,,"EQUIPMENT, FURNITURE & MATS",Revenue,"EQUIPMENT, FURNITURE & MATS",14-Mar-17,14000.00,DAISY CORPORATE SERVICES LTD,Invoice
NGF CS,,"EQUIPMENT, FURNITURE & MATS",Revenue,"EQUIPMENT, FURNITURE & MATS",15-Mar-17,14000.00,DAISY CORPORATE SERVICES LTD,Invoice
NGF CS,,COMMUNICATIONS & COMP,Revenue,I.T. SOFTWARE,02-Mar-17,2400.00,BERKLEY TECHNICAL SERVICES LTD,Invoice
NGF CS,,"EQUIPMENT, FURNITURE & MATS",Revenue,"EQUIPMENT, FURNITURE & MATS",01-Mar-17,50000.00,AGILISYS LIMITED,Invoice
NGF CS,,"EQUIPMENT, FURNITURE & MATS",Revenue,"EQUIPMENT, FURNITURE & MATS",23-Mar-17,15000.00,AGILISYS PROFESSIONAL SERVICES,Invoice
NGF CS,,"EQUIPMENT, FURNITURE & MATS",Revenue,"EQUIPMENT, FURNITURE & MATS",23-Mar-17,5200.00,AMT DATA TECHNOLOGIES LTD T/A AMT EVOLVE,Invoice
NGF CS,,"EQUIPMENT, FURNITURE & MATS",Revenue,"EQUIPMENT, FURNITURE & MATS",20-Mar-17,850.00,AWAKEN LEARNING LTD,Invoice
NGF CS,,"EQUIPMENT, FURNITURE & MATS",Revenue,"EQUIPMENT, FURNITURE & MATS",31-Mar-17,16800.00,COMPUTACENTER (UK) LTD,Invoice
NGF CS,,"EQUIPMENT, FURNITURE & MATS",Revenue,"EQUIPMENT, FURNITURE & MATS",23-Mar-17,5412.75,COMPUTACENTER (UK) LTD,Invoice
NGF CS,,"EQUIPMENT, FURNITURE & MATS",Revenue,"EQUIPMENT, FURNITURE & MATS",31-Mar-17,10800.00,CREATIVE TECHNOLOGY MANAGEMENT SOLUTIONS,Invoice
NGF CS,,"EQUIPMENT, FURNITURE & MATS",Revenue,"EQUIPMENT, FURNITURE & MATS",31-Mar-17,4350.00,CREATIVE TECHNOLOGY MANAGEMENT SOLUTIONS,Invoice
NGF CS,,"EQUIPMENT, FURNITURE & MATS",Revenue,"EQUIPMENT, FURNITURE & MATS",31-Mar-17,3000.00,CREATIVE TECHNOLOGY MANAGEMENT SOLUTIONS,Invoice
NGF CS,,"EQUIPMENT, FURNITURE & MATS",Revenue,"EQUIPMENT, FURNITURE & MATS",30-Mar-17,2654.86,ESSENTIAL NET LTD,Invoice
NGF CS,,"EQUIPMENT, FURNITURE & MATS",Revenue,"EQUIPMENT, FURNITURE & MATS",06-Mar-17,990.00,HARDWARE.COM,Invoice
NGF CS,,"EQUIPMENT, FURNITURE & MATS",Revenue,"EQUIPMENT, FURNITURE & MATS",24-Mar-17,420.00,MISCO,Invoice
NGF CS,,"EQUIPMENT, FURNITURE & MATS",Revenue,"EQUIPMENT, FURNITURE & MATS",24-Mar-17,5.00,MISCO,Invoice
NGF CS,,"EQUIPMENT, FURNITURE & MATS",Revenue,"EQUIPMENT, FURNITURE & MATS",29-Mar-17,980.00,MISCO,Invoice
NGF CS,,"EQUIPMENT, FURNITURE & MATS",Revenue,"EQUIPMENT, FURNITURE & MATS",29-Mar-17,630.00,NCC SERVICES LTD,Invoice
NGF CS,,"EQUIPMENT, FURNITURE & MATS",Revenue,"EQUIPMENT, FURNITURE & MATS",23-Mar-17,30691.92,PARK PLACE TECHNOLOGIES LTD,Invoice
NGF CS,,"EQUIPMENT, FURNITURE & MATS",Revenue,"EQUIPMENT, FURNITURE & MATS",24-Mar-17,3500.00,QA LTD,Invoice
NGF CS,,"EQUIPMENT, FURNITURE & MATS",Revenue,"EQUIPMENT, FURNITURE & MATS",24-Mar-17,11500.00,QA LTD,Invoice
NGF CS,,SERVICES,Revenue,SERVICES - GENERAL,31-Mar-17,10337.66,RETAIL ASSIST LTD,Invoice
NGF CS,,COMMUNICATIONS & COMP,Revenue,I.T. EQUIPMENT & MAINTENANCE,23-Mar-17,23012.40,CDW LTD,Invoice
NGF CS,,COMMUNICATIONS & COMP,Revenue,I.T. EQUIPMENT & MAINTENANCE,23-Mar-17,1156.07,CDW LTD,Invoice
NGF CS,,"EQUIPMENT, FURNITURE & MATS",Revenue,"EQUIPMENT, FURNITURE & MATS",09-Mar-17,649.00,KENTICO SOFTWARE LTD,Invoice
NGF CS,,"EQUIPMENT, FURNITURE & MATS",Revenue,"EQUIPMENT, FURNITURE & MATS",09-Mar-17,930.00,NCC SERVICES LTD,Invoice
NGF CS,,COMMUNICATIONS & COMP,Revenue,I.T. SLA RECHARGE,16-Mar-17,2436.10,ARDENTA LTD,Invoice
NGF CS,,COMMUNICATIONS & COMP,Revenue,I.T. SLA RECHARGE,13-Mar-17,15700.00,DORSET SOFTWARE SERVICES LIMITED,Invoice
NGF CS,,"EQUIPMENT, FURNITURE & MATS",Revenue,"EQUIPMENT, FURNITURE & MATS",15-Mar-17,646.50,XMA LIMITED,Invoice
NGF CS,,"EQUIPMENT, FURNITURE & MATS",Revenue,"EQUIPMENT, FURNITURE & MATS",15-Mar-17,150.00,XMA LIMITED,Invoice
NGF CS,,"EQUIPMENT, FURNITURE & MATS",Revenue,"EQUIPMENT, FURNITURE & MATS",15-Mar-17,1350.00,XMA LIMITED,Invoice
NGF CS,,"EQUIPMENT, FURNITURE & MATS",Revenue,"EQUIPMENT, FURNITURE & MATS",02-Mar-17,461.93,XMA LIMITED,Invoice
NGF CS,,COMMUNICATIONS & COMP,Revenue,I.T. EQUIPMENT & MAINTENANCE,14-Mar-17,4500.00,I3IT LIMITED,Invoice
NGF CS,,COMMUNICATIONS & COMP,Revenue,I.T. EQUIPMENT & MAINTENANCE,14-Mar-17,4500.00,I3IT LIMITED,Invoice
NGF CS,,COMMUNICATIONS & COMP,Revenue,I.T. EQUIPMENT & MAINTENANCE,21-Mar-17,2250.00,I3IT LIMITED,Invoice
NGF CS,,COMMUNICATIONS & COMP,Revenue,I.T. EQUIPMENT & MAINTENANCE,29-Mar-17,1800.00,I3IT LIMITED,Invoice
NGF CS,,COMMUNICATIONS & COMP,Revenue,I.T. EQUIPMENT & MAINTENANCE,21-Mar-17,6000.00,OBSTAR LTD,Invoice
NGF CS,,COMMUNICATIONS & COMP,Revenue,I.T. EQUIPMENT & MAINTENANCE,29-Mar-17,2000.00,OBSTAR LTD,Invoice
NGF CS,,COMMUNICATIONS & COMP,Revenue,I.T. EQUIPMENT & MAINTENANCE,07-Mar-17,1900.00,SAN DIVISION,Invoice
NGF CS,,COMMUNICATIONS & COMP,Revenue,I.T. EQUIPMENT & MAINTENANCE,14-Mar-17,2090.00,SAN DIVISION,Invoice
NGF CS,,COMMUNICATIONS & COMP,Revenue,I.T. EQUIPMENT & MAINTENANCE,21-Mar-17,1900.00,SAN DIVISION,Invoice
NGF CS,,COMMUNICATIONS & COMP,Revenue,I.T. EQUIPMENT & MAINTENANCE,29-Mar-17,1900.00,SAN DIVISION,Invoice
NGF CS,,COMMUNICATIONS & COMP,Revenue,I.T. EQUIPMENT & MAINTENANCE,06-Mar-17,461.93,XMA LIMITED,Invoice
NGF CS,,COMMUNICATIONS & COMP,Revenue,I.T. EQUIPMENT & MAINTENANCE,06-Mar-17,919.60,XMA LIMITED,Invoice
NGF CS,,COMMUNICATIONS & COMP,Revenue,I.T. EQUIPMENT & MAINTENANCE,24-Mar-17,336.40,XMA LIMITED,Invoice
NGF CS,,COMMUNICATIONS & COMP,Revenue,I.T. EQUIPMENT & MAINTENANCE,24-Mar-17,643.72,XMA LIMITED,Invoice
NGF CS,,COMMUNICATIONS & COMP,Revenue,I.T. EQUIPMENT & MAINTENANCE,24-Mar-17,249.20,XMA LIMITED,Invoice
NGF CS,,COMMUNICATIONS & COMP,Revenue,I.T. EQUIPMENT & MAINTENANCE,24-Mar-17,9238.60,XMA LIMITED,Invoice
NGF CS,,COMMUNICATIONS & COMP,Revenue,I.T. EQUIPMENT & MAINTENANCE,06-Mar-17,461.93,XMA LIMITED,Invoice
CS,,INDIRECT,Revenue,STAFF ADVERTISING - VACANCIES,03-Mar-17,849.11,PENNA PLC,Invoice
CS,,INDIRECT,Revenue,STAFF ADVERTISING - VACANCIES,03-Mar-17,869.00,PENNA PLC,Invoice
CS,,INDIRECT,Revenue,STAFF ADVERTISING - VACANCIES,15-Mar-17,838.25,PENNA PLC,Invoice
CS,,INDIRECT,Revenue,STAFF ADVERTISING - VACANCIES,15-Mar-17,838.25,PENNA PLC,Invoice
CS,,INDIRECT,Revenue,STAFF ADVERTISING - VACANCIES,15-Mar-17,932.75,PENNA PLC,Invoice
CS,,INDIRECT,Revenue,STAFF ADVERTISING - VACANCIES,24-Mar-17,458.00,PENNA PLC,Invoice
CS,,PRINTING STAT & GEN OFFICE EXP,Revenue,PUBLICITY,07-Mar-17,1945.92,NEWSQUEST MEDIA GROUP,Invoice
ASC,SOCIAL SERVICES,VOL ASS,Revenue,SUPPORTED HOUSING PROGRAMME,08-Mar-17,198.72,THE BRANDON TRUST,Invoice
ASC,SOCIAL SERVICES,VOL ASS,Revenue,SUPPORTED HOUSING PROGRAMME,08-Mar-17,66.24,THE BRANDON TRUST,Invoice
ASC,SOCIAL SERVICES,VOL ASS,Revenue,SUPPORTED HOUSING PROGRAMME,29-Mar-17,198.72,THE BRANDON TRUST,Invoice
ASC,SOCIAL SERVICES,VOL ASS,Revenue,SUPPORTED HOUSING PROGRAMME,29-Mar-17,66.24,THE BRANDON TRUST,Invoice
ASC,SOCIAL SERVICES,CUSTOMER & CLIENT RECPTS - EXT,Revenue,CL CONT EXTERNAL RESIDENTIAL,29-Mar-17,-578.82,BIRCC,Invoice
ASC,SOCIAL SERVICES,HIRE,Revenue,HIRE - TRANSPORT,13-Mar-17,420.00,247 TRANSPORT SOLUTIONS LTD,Invoice
ASC,SOCIAL SERVICES,HIRE,Revenue,HIRE - TRANSPORT,22-Mar-17,480.00,A STAR TRANSPORT LTD,Invoice
ASC,SOCIAL SERVICES,HIRE,Revenue,HIRE - TRANSPORT,22-Mar-17,1022.00,A STAR TRANSPORT LTD,Invoice
ASC,SOCIAL SERVICES,HIRE,Revenue,HIRE - TRANSPORT,22-Mar-17,1033.33,A STAR TRANSPORT LTD,Invoice
ASC,SOCIAL SERVICES,HIRE,Revenue,HIRE - TRANSPORT,22-Mar-17,1453.33,A STAR TRANSPORT LTD,Invoice
ASC,SOCIAL SERVICES,HIRE,Revenue,HIRE - TRANSPORT,22-Mar-17,1685.00,A STAR TRANSPORT LTD,Invoice
ASC,SOCIAL SERVICES,HIRE,Revenue,HIRE - TRANSPORT,22-Mar-17,1368.00,A STAR TRANSPORT LTD,Invoice
ASC,SOCIAL SERVICES,HIRE,Revenue,HIRE - TRANSPORT,22-Mar-17,767.36,A STAR TRANSPORT LTD,Invoice
ASC,SOCIAL SERVICES,HIRE,Revenue,HIRE - TRANSPORT,22-Mar-17,1400.00,A STAR TRANSPORT LTD,Invoice
ASC,SOCIAL SERVICES,HIRE,Revenue,HIRE - TRANSPORT,22-Mar-17,746.00,A STAR TRANSPORT LTD,Invoice
ASC,SOCIAL SERVICES,HIRE,Revenue,HIRE - TRANSPORT,22-Mar-17,1800.00,A STAR TRANSPORT LTD,Invoice
ASC,SOCIAL SERVICES,HIRE,Revenue,HIRE - TRANSPORT,22-Mar-17,561.29,A STAR TRANSPORT LTD,Invoice
ASC,SOCIAL SERVICES,HIRE,Revenue,HIRE - TRANSPORT,22-Mar-17,528.00,A STAR TRANSPORT LTD,Invoice
ASC,SOCIAL SERVICES,HIRE,Revenue,HIRE - TRANSPORT,22-Mar-17,432.00,A STAR TRANSPORT LTD,Invoice
ASC,SOCIAL SERVICES,HIRE,Revenue,HIRE - TRANSPORT,22-Mar-17,2080.00,A STAR TRANSPORT LTD,Invoice
ASC,SOCIAL SERVICES,HIRE,Revenue,HIRE - TRANSPORT,22-Mar-17,928.00,A STAR TRANSPORT LTD,Invoice
ASC,SOCIAL SERVICES,HIRE,Revenue,HIRE - TRANSPORT,22-Mar-17,840.00,A STAR TRANSPORT LTD,Invoice
ASC,SOCIAL SERVICES,HIRE,Revenue,HIRE - TRANSPORT,22-Mar-17,840.00,A STAR TRANSPORT LTD,Invoice
ASC,SOCIAL SERVICES,HIRE,Revenue,HIRE - TRANSPORT,22-Mar-17,1347.00,A STAR TRANSPORT LTD,Invoice
ASC,SOCIAL SERVICES,HIRE,Revenue,HIRE - TRANSPORT,22-Mar-17,1208.00,A STAR TRANSPORT LTD,Invoice
ASC,SOCIAL SERVICES,HIRE,Revenue,HIRE - TRANSPORT,22-Mar-17,575.60,A STAR TRANSPORT LTD,Invoice
ASC,SOCIAL SERVICES,HIRE,Revenue,HIRE - TRANSPORT,22-Mar-17,448.00,A STAR TRANSPORT LTD,Invoice
ASC,SOCIAL SERVICES,HIRE,Revenue,HIRE - TRANSPORT,22-Mar-17,975.00,A STAR TRANSPORT LTD,Invoice
ASC,SOCIAL SERVICES,HIRE,Revenue,HIRE - TRANSPORT,22-Mar-17,788.00,A STAR TRANSPORT LTD,Invoice
ASC,SOCIAL SERVICES,HIRE,Revenue,HIRE - TRANSPORT,22-Mar-17,704.00,A STAR TRANSPORT LTD,Invoice
ASC,SOCIAL SERVICES,HIRE,Revenue,HIRE - TRANSPORT,22-Mar-17,576.00,A STAR TRANSPORT LTD,Invoice
ASC,SOCIAL SERVICES,HIRE,Revenue,HIRE - TRANSPORT,22-Mar-17,564.00,A STAR TRANSPORT LTD,Invoice
ASC,SOCIAL SERVICES,HIRE,Revenue,HIRE - TRANSPORT,22-Mar-17,544.00,A STAR TRANSPORT LTD,Invoice
ASC,SOCIAL SERVICES,HIRE,Revenue,HIRE - TRANSPORT,22-Mar-17,544.00,A STAR TRANSPORT LTD,Invoice
ASC,SOCIAL SERVICES,HIRE,Revenue,HIRE - TRANSPORT,22-Mar-17,880.00,A STAR TRANSPORT LTD,Invoice
ASC,SOCIAL SERVICES,HIRE,Revenue,HIRE - TRANSPORT,22-Mar-17,1088.00,A STAR TRANSPORT LTD,Invoice
ASC,SOCIAL SERVICES,HIRE,Revenue,HIRE - TRANSPORT,22-Mar-17,800.00,A STAR TRANSPORT LTD,Invoice
ASC,SOCIAL SERVICES,HIRE,Revenue,HIRE - TRANSPORT,22-Mar-17,1000.00,A STAR TRANSPORT LTD,Invoice
ASC,SOCIAL SERVICES,HIRE,Revenue,HIRE - TRANSPORT,22-Mar-17,1000.00,A STAR TRANSPORT LTD,Invoice
ASC,SOCIAL SERVICES,HIRE,Revenue,HIRE - TRANSPORT,22-Mar-17,512.00,A STAR TRANSPORT LTD,Invoice
ASC,SOCIAL SERVICES,HIRE,Revenue,HIRE - TRANSPORT,22-Mar-17,512.00,A STAR TRANSPORT LTD,Invoice
ASC,SOCIAL SERVICES,HIRE,Revenue,HIRE - TRANSPORT,22-Mar-17,640.00,A STAR TRANSPORT LTD,Invoice
ASC,SOCIAL SERVICES,HIRE,Revenue,HIRE - TRANSPORT,22-Mar-17,640.00,A STAR TRANSPORT LTD,Invoice
ASC,SOCIAL SERVICES,HIRE,Revenue,HIRE - TRANSPORT,22-Mar-17,640.00,A STAR TRANSPORT LTD,Invoice
ASC,SOCIAL SERVICES,HIRE,Revenue,HIRE - TRANSPORT,22-Mar-17,656.00,A STAR TRANSPORT LTD,Invoice
ASC,SOCIAL SERVICES,HIRE,Revenue,HIRE - TRANSPORT,09-Mar-17,630.80,BECKETT CORPORATION LTD T/A TINAS CARS,Invoice
ASC,SOCIAL SERVICES,HIRE,Revenue,HIRE - TRANSPORT,09-Mar-17,1566.00,BECKETT CORPORATION LTD T/A TINAS CARS,Invoice
ASC,SOCIAL SERVICES,HIRE,Revenue,HIRE - TRANSPORT,09-Mar-17,270.88,BECKETT CORPORATION LTD T/A TINAS CARS,Invoice
ASC,SOCIAL SERVICES,HIRE,Revenue,HIRE - TRANSPORT,09-Mar-17,490.72,BECKETT CORPORATION LTD T/A TINAS CARS,Invoice
ASC,SOCIAL SERVICES,HIRE,Revenue,HIRE - TRANSPORT,09-Mar-17,420.00,BECKETT CORPORATION LTD T/A TINAS CARS,Invoice
ASC,SOCIAL SERVICES,HIRE,Revenue,HIRE - TRANSPORT,09-Mar-17,509.96,BECKETT CORPORATION LTD T/A TINAS CARS,Invoice
ASC,SOCIAL SERVICES,HIRE,Revenue,HIRE - TRANSPORT,09-Mar-17,509.96,BECKETT CORPORATION LTD T/A TINAS CARS,Invoice
ASC,SOCIAL SERVICES,HIRE,Revenue,HIRE - TRANSPORT,09-Mar-17,509.96,BECKETT CORPORATION LTD T/A TINAS CARS,Invoice
ASC,SOCIAL SERVICES,HIRE,Revenue,HIRE - TRANSPORT,09-Mar-17,1520.00,BECKETT CORPORATION LTD T/A TINAS CARS,Invoice
ASC,SOCIAL SERVICES,HIRE,Revenue,HIRE - TRANSPORT,09-Mar-17,1610.00,BECKETT CORPORATION LTD T/A TINAS CARS,Invoice
ASC,SOCIAL SERVICES,HIRE,Revenue,HIRE - TRANSPORT,09-Mar-17,495.00,BECKETT CORPORATION LTD T/A TINAS CARS,Invoice
ASC,SOCIAL SERVICES,HIRE,Revenue,HIRE - TRANSPORT,09-Mar-17,910.00,BECKETT CORPORATION LTD T/A TINAS CARS,Invoice
ASC,SOCIAL SERVICES,HIRE,Revenue,HIRE - TRANSPORT,09-Mar-17,483.00,BECKETT CORPORATION LTD T/A TINAS CARS,Invoice
ASC,SOCIAL SERVICES,HIRE,Revenue,HIRE - TRANSPORT,09-Mar-17,483.00,BECKETT CORPORATION LTD T/A TINAS CARS,Invoice
ASC,SOCIAL SERVICES,HIRE,Revenue,HIRE - TRANSPORT,09-Mar-17,483.00,BECKETT CORPORATION LTD T/A TINAS CARS,Invoice
ASC,SOCIAL SERVICES,HIRE,Revenue,HIRE - TRANSPORT,09-Mar-17,720.00,BECKETT CORPORATION LTD T/A TINAS CARS,Invoice
ASC,SOCIAL SERVICES,HIRE,Revenue,HIRE - TRANSPORT,09-Mar-17,720.00,BECKETT CORPORATION LTD T/A TINAS CARS,Invoice
ASC,SOCIAL SERVICES,HIRE,Revenue,HIRE - TRANSPORT,09-Mar-17,550.00,BECKETT CORPORATION LTD T/A TINAS CARS,Invoice
ASC,SOCIAL SERVICES,HIRE,Revenue,HIRE - TRANSPORT,15-Mar-17,648.64,BECKETT CORPORATION LTD T/A TINAS CARS,Invoice
ASC,SOCIAL SERVICES,HIRE,Revenue,HIRE - TRANSPORT,08-Mar-17,614.60,HEALTHCARE & TRANSPORT SERVICES (HATS),Invoice
ASC,SOCIAL SERVICES,HIRE,Revenue,HIRE - TRANSPORT,22-Mar-17,614.60,HEALTHCARE & TRANSPORT SERVICES (HATS),Invoice
ASC,SOCIAL SERVICES,HIRE,Revenue,HIRE - TRANSPORT,22-Mar-17,599.60,HEALTHCARE & TRANSPORT SERVICES (HATS),Invoice
ASC,SOCIAL SERVICES,HIRE,Revenue,HIRE - TRANSPORT,27-Mar-17,614.60,HEALTHCARE & TRANSPORT SERVICES (HATS),Invoice
ASC,SOCIAL SERVICES,HIRE,Revenue,HIRE - TRANSPORT,27-Mar-17,599.60,HEALTHCARE & TRANSPORT SERVICES (HATS),Invoice
ASC,SOCIAL SERVICES,HIRE,Revenue,HIRE - TRANSPORT,13-Mar-17,511.50,PARKER CARS LIMITED,Invoice
ASC,SOCIAL SERVICES,HIRE,Revenue,HIRE - TRANSPORT,13-Mar-17,492.00,PARKER CARS LIMITED,Invoice
ASC,SOCIAL SERVICES,HIRE,Revenue,HIRE - TRANSPORT,13-Mar-17,475.20,PARKER CARS LIMITED,Invoice
ASC,SOCIAL SERVICES,HIRE,Revenue,HIRE - TRANSPORT,13-Mar-17,714.00,PARKER CARS LIMITED,Invoice
ASC,SOCIAL SERVICES,HIRE,Revenue,HIRE - TRANSPORT,13-Mar-17,746.10,PARKER CARS LIMITED,Invoice
ASC,SOCIAL SERVICES,HIRE,Revenue,HIRE - TRANSPORT,13-Mar-17,583.50,PARKER CARS LIMITED,Invoice
ASC,SOCIAL SERVICES,HIRE,Revenue,HIRE - TRANSPORT,13-Mar-17,540.00,PARKER CARS LIMITED,Invoice
ASC,SOCIAL SERVICES,HIRE,Revenue,HIRE - TRANSPORT,16-Mar-17,504.00,PARKER CARS LIMITED,Invoice
ASC,SOCIAL SERVICES,HIRE,Revenue,HIRE - TRANSPORT,06-Mar-17,630.00,SWALLOWNEST & AIRPORT TAXI LTD,Invoice
ASC,SOCIAL SERVICES,HIRE,Revenue,HIRE - TRANSPORT,15-Mar-17,760.00,WANDSWORTH COMMUNITY TRANSPORT,Invoice
ASC,SOCIAL SERVICES,HIRE,Revenue,HIRE - TRANSPORT,10-Mar-17,3456.02,WORCESTERSHIRE COUNTY COUNCIL,Invoice
ASC,SOCIAL SERVICES,HIRE,Revenue,NEW TRANSPORT CONTRACT,09-Mar-17,1566.00,BECKETT CORPORATION LTD T/A TINAS CARS,Invoice
ASC,SOCIAL SERVICES,HIRE,Revenue,NEW TRANSPORT CONTRACT,09-Mar-17,233.76,BECKETT CORPORATION LTD T/A TINAS CARS,Invoice
ASC,SOCIAL SERVICES,SERVICES,Revenue,TRAVEL BUDDY SCHEME,02-Mar-17,569.88,HARINGEY ASSOCIATION FOR INDEPENDENT LIV,Invoice
ASC,SOCIAL SERVICES,SERVICES,Revenue,TRAVEL BUDDY SCHEME,02-Mar-17,569.88,HARINGEY ASSOCIATION FOR INDEPENDENT LIV,Invoice
ASC,SOCIAL SERVICES,SERVICES,Revenue,TRAVEL BUDDY SCHEME,02-Mar-17,680.69,HARINGEY ASSOCIATION FOR INDEPENDENT LIV,Invoice
ASC,SOCIAL SERVICES,SERVICES,Revenue,TRAVEL BUDDY SCHEME,02-Mar-17,641.12,HARINGEY ASSOCIATION FOR INDEPENDENT LIV,Invoice
ASC,SOCIAL SERVICES,SERVICES,Revenue,TRAVEL BUDDY SCHEME,02-Mar-17,538.22,HARINGEY ASSOCIATION FOR INDEPENDENT LIV,Invoice
ASC,SOCIAL SERVICES,SERVICES,Revenue,TRAVEL BUDDY SCHEME,02-Mar-17,747.97,HARINGEY ASSOCIATION FOR INDEPENDENT LIV,Invoice
ASC,SOCIAL SERVICES,SERVICES,Revenue,TRAVEL BUDDY SCHEME,02-Mar-17,633.20,HARINGEY ASSOCIATION FOR INDEPENDENT LIV,Invoice
ASC,SOCIAL SERVICES,SERVICES,Revenue,TRAVEL BUDDY SCHEME,24-Mar-17,633.20,HARINGEY ASSOCIATION FOR INDEPENDENT LIV,Invoice
ASC,SOCIAL SERVICES,SERVICES,Revenue,TRAVEL BUDDY SCHEME,24-Mar-17,506.56,HARINGEY ASSOCIATION FOR INDEPENDENT LIV,Invoice
ASC,SOCIAL SERVICES,SERVICES,Revenue,TRAVEL BUDDY SCHEME,24-Mar-17,633.20,HARINGEY ASSOCIATION FOR INDEPENDENT LIV,Invoice
ASC,SOCIAL SERVICES,SERVICES,Revenue,TRAVEL BUDDY SCHEME,24-Mar-17,569.88,HARINGEY ASSOCIATION FOR INDEPENDENT LIV,Invoice
ASC,SOCIAL SERVICES,SERVICES,Revenue,TRAVEL BUDDY SCHEME,24-Mar-17,633.20,HARINGEY ASSOCIATION FOR INDEPENDENT LIV,Invoice
ASC,SOCIAL SERVICES,HEALTH,Revenue,EXT RES S28A 100% OLD LONGSTAY,24-Mar-17,3892.23,PARKGATE MANOR,Invoice
ASC,SOCIAL SERVICES,HEALTH,Revenue,EXT RES S28A 100% OLD LONGSTAY,29-Mar-17,3892.22,PARKGATE MANOR,Invoice
ASC,SOCIAL SERVICES,HEALTH,Revenue,EXT RES S28A 100% OLD LONGSTAY,29-Mar-17,3706.08,PARKGATE MANOR,Invoice
ASC,SOCIAL SERVICES,HEALTH,Revenue,EXT RES S28A 100% OLD LONGSTAY,02-Mar-17,5773.56,VOYAGE CARE LTD,Invoice
ASC,SOCIAL SERVICES,HEALTH,Revenue,EXT RES S28A 100% OLD LONGSTAY,02-Mar-17,8452.68,VOYAGE CARE LTD,Invoice
ASC,SOCIAL SERVICES,HEALTH,Revenue,RES CARE - EDUCATION ESTAB,27-Mar-17,3240.00,RUSKIN MILL COLLEGE,Invoice
ASC,SOCIAL SERVICES,HEALTH,Revenue,RES CARE - EDUCATION ESTAB,21-Mar-17,16667.67,RUSKIN MILL COLLEGE,Invoice
ASC,SOCIAL SERVICES,HEALTH,Revenue,EXT RES CARE S28A 100%,13-Mar-17,4026.40,CMG HOMES LTD,Invoice
ASC,SOCIAL SERVICES,HEALTH,Revenue,EXT RES CARE S28A 100%,29-Mar-17,6793.24,HOME FROM HOME CARE LIMITED,Invoice
ASC,SOCIAL SERVICES,HEALTH,Revenue,EXT RES S28A OLD LONG STAY,09-Mar-17,2709.00,ASHTON CARE,Invoice
ASC,SOCIAL SERVICES,HEALTH,Revenue,EXT RES S28A OLD LONG STAY,29-Mar-17,2709.00,ASHTON CARE,Invoice
ASC,SOCIAL SERVICES,HEALTH,Revenue,EXT RES S28A OLD LONG STAY,09-Mar-17,2975.96,ELEANOR NURSING & SOCIAL CARE,Invoice
ASC,,INDEPENDENT UNITS,Revenue,DAY CARE MUTUAL,09-Mar-17,149709.35,ONE TRUST,Invoice
ASC,,INDEPENDENT UNITS,Revenue,DAY CARE MUTUAL,31-Mar-17,136442.22,ONE TRUST,Invoice
ASC,SOCIAL SERVICES,OTHER AGENCIES,Revenue,EXTERNAL OUTREACH,24-Mar-17,8925.42,A NEW LEAF,Invoice
ASC,SOCIAL SERVICES,OTHER AGENCIES,Revenue,EXTERNAL OUTREACH,13-Mar-17,12636.00,C M CARE LTD,Invoice
ASC,SOCIAL SERVICES,OTHER AGENCIES,Revenue,EXTERNAL OUTREACH,16-Mar-17,2185.32,C M CARE LTD,Invoice
ASC,SOCIAL SERVICES,OTHER AGENCIES,Revenue,EXTERNAL OUTREACH,16-Mar-17,1501.76,C M CARE LTD,Invoice
ASC,SOCIAL SERVICES,OTHER AGENCIES,Revenue,EXTERNAL OUTREACH,16-Mar-17,1540.00,C M CARE LTD,Invoice
ASC,SOCIAL SERVICES,OTHER AGENCIES,Revenue,EXTERNAL OUTREACH,29-Mar-17,2185.32,C M CARE LTD,Invoice
ASC,SOCIAL SERVICES,OTHER AGENCIES,Revenue,EXTERNAL OUTREACH,29-Mar-17,1501.76,C M CARE LTD,Invoice
ASC,SOCIAL SERVICES,OTHER AGENCIES,Revenue,EXTERNAL OUTREACH,29-Mar-17,1540.00,C M CARE LTD,Invoice
ASC,SOCIAL SERVICES,OTHER AGENCIES,Revenue,EXTERNAL OUTREACH,23-Mar-17,957.12,GENERATE OPPORTUNITIES LTD,Invoice
ASC,SOCIAL SERVICES,OTHER AGENCIES,Revenue,EXTERNAL OUTREACH,23-Mar-17,1196.40,GENERATE OPPORTUNITIES LTD,Invoice
ASC,SOCIAL SERVICES,OTHER AGENCIES,Revenue,EXTERNAL OUTREACH,23-Mar-17,638.08,GENERATE OPPORTUNITIES LTD,Invoice
ASC,SOCIAL SERVICES,OTHER AGENCIES,Revenue,EXTERNAL OUTREACH,23-Mar-17,797.60,GENERATE OPPORTUNITIES LTD,Invoice
ASC,SOCIAL SERVICES,OTHER AGENCIES,Revenue,EXTERNAL OUTREACH,08-Mar-17,1200.00,LIVE TOO LIMITED,Invoice
ASC,SOCIAL SERVICES,OTHER AGENCIES,Revenue,EXTERNAL OUTREACH,09-Mar-17,720.00,LIVE TOO LIMITED,Invoice
ASC,SOCIAL SERVICES,OTHER AGENCIES,Revenue,EXTERNAL OUTREACH,09-Mar-17,-6.08,LIVE TOO LIMITED,Invoice
ASC,SOCIAL SERVICES,OTHER AGENCIES,Revenue,EXTERNAL OUTREACH,29-Mar-17,720.00,LIVE TOO LIMITED,Invoice
ASC,SOCIAL SERVICES,OTHER AGENCIES,Revenue,EXTERNAL OUTREACH,13-Mar-17,543.20,METRO HOMECARE,Invoice
ASC,SOCIAL SERVICES,OTHER AGENCIES,Revenue,EXTERNAL OUTREACH,28-Mar-17,543.20,METRO HOMECARE,Invoice
ASC,SOCIAL SERVICES,OTHER AGENCIES,Revenue,EXTERNAL OUTREACH,27-Mar-17,1450.08,METROPOLITAN HOUSING TRUST,Invoice
ASC,SOCIAL SERVICES,OTHER AGENCIES,Revenue,EXTERNAL OUTREACH,08-Mar-17,950.00,PROTOCOL EDUCATION  LTD,Invoice
ASC,SOCIAL SERVICES,OTHER AGENCIES,Revenue,EXTERNAL OUTREACH,13-Mar-17,950.00,PROTOCOL EDUCATION  LTD,Invoice
ASC,SOCIAL SERVICES,OTHER AGENCIES,Revenue,EXTERNAL OUTREACH,21-Mar-17,950.00,PROTOCOL EDUCATION  LTD,Invoice
ASC,SOCIAL SERVICES,OTHER AGENCIES,Revenue,EXTERNAL OUTREACH,24-Mar-17,950.00,PROTOCOL EDUCATION  LTD,Invoice
ASC,SOCIAL SERVICES,OTHER AGENCIES,Revenue,EXTERNAL OUTREACH,06-Mar-17,1596.26,RAINBOW MEDICAL SERVICES,Invoice
ASC,SOCIAL SERVICES,OTHER AGENCIES,Revenue,EXTERNAL OUTREACH,08-Mar-17,444.33,REED,Invoice
ASC,SOCIAL SERVICES,OTHER AGENCIES,Revenue,EXTERNAL OUTREACH,22-Mar-17,2640.00,RELIABLE PERSONNEL LTD,Invoice
ASC,SOCIAL SERVICES,OTHER AGENCIES,Revenue,EXTERNAL OUTREACH,22-Mar-17,1440.00,ROYAL ASSOCIATION FOR DEAF PEOPLE,Invoice
ASC,SOCIAL SERVICES,OTHER AGENCIES,Revenue,EXTERNAL OUTREACH,21-Mar-17,1876.00,SPRING LAKE,Invoice
ASC,SOCIAL SERVICES,OTHER AGENCIES,Revenue,EXTERNAL OUTREACH,21-Mar-17,1876.00,SPRING LAKE,Invoice
ASC,SOCIAL SERVICES,OTHER AGENCIES,Revenue,EXTERNAL OUTREACH,21-Mar-17,1876.00,SPRING LAKE,Invoice
ASC,SOCIAL SERVICES,OTHER AGENCIES,Revenue,EXTERNAL OUTREACH,08-Mar-17,757.92,THE BRANDON TRUST,Invoice
ASC,SOCIAL SERVICES,OTHER AGENCIES,Revenue,EXTERNAL OUTREACH,08-Mar-17,631.60,THE BRANDON TRUST,Invoice
ASC,SOCIAL SERVICES,OTHER AGENCIES,Revenue,EXTERNAL OUTREACH,08-Mar-17,884.24,THE BRANDON TRUST,Invoice
ASC,SOCIAL SERVICES,OTHER AGENCIES,Revenue,EXTERNAL OUTREACH,08-Mar-17,568.44,THE BRANDON TRUST,Invoice
ASC,SOCIAL SERVICES,OTHER AGENCIES,Revenue,EXTERNAL OUTREACH,08-Mar-17,591.04,THE BRANDON TRUST,Invoice
ASC,SOCIAL SERVICES,OTHER AGENCIES,Revenue,EXTERNAL OUTREACH,08-Mar-17,947.40,THE BRANDON TRUST,Invoice
ASC,SOCIAL SERVICES,OTHER AGENCIES,Revenue,EXTERNAL OUTREACH,09-Mar-17,1170.80,THE BRANDON TRUST,Invoice
ASC,SOCIAL SERVICES,OTHER AGENCIES,Revenue,EXTERNAL OUTREACH,09-Mar-17,318.77,THE BRANDON TRUST,Invoice
ASC,SOCIAL SERVICES,OTHER AGENCIES,Revenue,EXTERNAL OUTREACH,09-Mar-17,694.76,THE BRANDON TRUST,Invoice
ASC,SOCIAL SERVICES,OTHER AGENCIES,Revenue,EXTERNAL OUTREACH,09-Mar-17,1199.52,THE BRANDON TRUST,Invoice
ASC,SOCIAL SERVICES,OTHER AGENCIES,Revenue,EXTERNAL OUTREACH,09-Mar-17,599.76,THE BRANDON TRUST,Invoice
ASC,SOCIAL SERVICES,OTHER AGENCIES,Revenue,EXTERNAL OUTREACH,09-Mar-17,1999.20,THE BRANDON TRUST,Invoice
ASC,SOCIAL SERVICES,OTHER AGENCIES,Revenue,EXTERNAL OUTREACH,09-Mar-17,533.12,THE BRANDON TRUST,Invoice
ASC,SOCIAL SERVICES,OTHER AGENCIES,Revenue,EXTERNAL OUTREACH,09-Mar-17,999.60,THE BRANDON TRUST,Invoice
ASC,SOCIAL SERVICES,OTHER AGENCIES,Revenue,EXTERNAL OUTREACH,09-Mar-17,1062.40,THE BRANDON TRUST,Invoice
ASC,SOCIAL SERVICES,OTHER AGENCIES,Revenue,EXTERNAL OUTREACH,09-Mar-17,595.80,THE BRANDON TRUST,Invoice
ASC,SOCIAL SERVICES,OTHER AGENCIES,Revenue,EXTERNAL OUTREACH,09-Mar-17,533.12,THE BRANDON TRUST,Invoice
ASC,SOCIAL SERVICES,OTHER AGENCIES,Revenue,EXTERNAL OUTREACH,21-Mar-17,331.20,THE BRANDON TRUST,Invoice
ASC,SOCIAL SERVICES,OTHER AGENCIES,Revenue,EXTERNAL OUTREACH,21-Mar-17,434.82,THE BRANDON TRUST,Invoice
ASC,SOCIAL SERVICES,OTHER AGENCIES,Revenue,EXTERNAL OUTREACH,29-Mar-17,757.92,THE BRANDON TRUST,Invoice
ASC,SOCIAL SERVICES,OTHER AGENCIES,Revenue,EXTERNAL OUTREACH,29-Mar-17,631.60,THE BRANDON TRUST,Invoice
ASC,SOCIAL SERVICES,OTHER AGENCIES,Revenue,EXTERNAL OUTREACH,29-Mar-17,884.24,THE BRANDON TRUST,Invoice
ASC,SOCIAL SERVICES,OTHER AGENCIES,Revenue,EXTERNAL OUTREACH,29-Mar-17,568.44,THE BRANDON TRUST,Invoice
ASC,SOCIAL SERVICES,OTHER AGENCIES,Revenue,EXTERNAL OUTREACH,29-Mar-17,591.04,THE BRANDON TRUST,Invoice
ASC,SOCIAL SERVICES,OTHER AGENCIES,Revenue,EXTERNAL OUTREACH,29-Mar-17,947.40,THE BRANDON TRUST,Invoice
ASC,SOCIAL SERVICES,OTHER AGENCIES,Revenue,EXTERNAL OUTREACH,29-Mar-17,1170.80,THE BRANDON TRUST,Invoice
ASC,SOCIAL SERVICES,OTHER AGENCIES,Revenue,EXTERNAL OUTREACH,29-Mar-17,189.48,THE BRANDON TRUST,Invoice
ASC,SOCIAL SERVICES,OTHER AGENCIES,Revenue,EXTERNAL OUTREACH,29-Mar-17,694.76,THE BRANDON TRUST,Invoice
ASC,SOCIAL SERVICES,OTHER AGENCIES,Revenue,EXTERNAL OUTREACH,29-Mar-17,1199.52,THE BRANDON TRUST,Invoice
ASC,SOCIAL SERVICES,OTHER AGENCIES,Revenue,EXTERNAL OUTREACH,29-Mar-17,599.76,THE BRANDON TRUST,Invoice
ASC,SOCIAL SERVICES,OTHER AGENCIES,Revenue,EXTERNAL OUTREACH,29-Mar-17,1999.20,THE BRANDON TRUST,Invoice
ASC,SOCIAL SERVICES,OTHER AGENCIES,Revenue,EXTERNAL OUTREACH,29-Mar-17,533.12,THE BRANDON TRUST,Invoice
ASC,SOCIAL SERVICES,OTHER AGENCIES,Revenue,EXTERNAL OUTREACH,29-Mar-17,999.60,THE BRANDON TRUST,Invoice
ASC,SOCIAL SERVICES,OTHER AGENCIES,Revenue,EXTERNAL OUTREACH,29-Mar-17,1062.40,THE BRANDON TRUST,Invoice
ASC,SOCIAL SERVICES,OTHER AGENCIES,Revenue,EXTERNAL OUTREACH,29-Mar-17,533.12,THE BRANDON TRUST,Invoice
ASC,SOCIAL SERVICES,OTHER AGENCIES,Revenue,EXTERNAL OUTREACH,29-Mar-17,331.20,THE BRANDON TRUST,Invoice
ASC,,OTHER AGENCIES,Revenue,APS SHARED LIVES SCHEME,22-Mar-17,35117.00,SOUTHSIDE PARTNERSHIP,Invoice
ASC,,OTHER AGENCIES,Revenue,APS SHARED LIVES SCHEME,22-Mar-17,36017.00,SOUTHSIDE PARTNERSHIP,Invoice
ASC,,OTHER AGENCIES,Revenue,APS SHARED LIVES SCHEME,22-Mar-17,37135.57,SOUTHSIDE PARTNERSHIP,Invoice
ASC,,OTHER AGENCIES,Revenue,APS SHARED LIVES SCHEME,14-Mar-17,2751.28,SOUTHSIDE PARTNERSHIP,Invoice
ASC,,OTHER AGENCIES,Revenue,APS SHARED LIVES SCHEME,14-Mar-17,3442.98,SOUTHSIDE PARTNERSHIP,Invoice
ASC,,OTHER AGENCIES,Revenue,APS SHARED LIVES SCHEME,14-Mar-17,5903.43,SOUTHSIDE PARTNERSHIP,Invoice
ASC,,OTHER AGENCIES,Revenue,APS SHARED LIVES SCHEME,14-Mar-17,3566.20,SOUTHSIDE PARTNERSHIP,Invoice
ASC,SOCIAL SERVICES,PRIVATE,Revenue,EXTERNAL- MISC (CLEAN-UPS ETC),13-Mar-17,580.00,TOP CLASS  CLEANING SERVICES,Invoice
ASC,SOCIAL SERVICES,PRIVATE,Revenue,EXTERNAL DAYCARE,09-Mar-17,764.48,ACT TOO LTD,Invoice
ASC,SOCIAL SERVICES,PRIVATE,Revenue,EXTERNAL DAYCARE,09-Mar-17,764.48,ACT TOO LTD,Invoice
ASC,SOCIAL SERVICES,PRIVATE,Revenue,EXTERNAL DAYCARE,09-Mar-17,573.36,ACT TOO LTD,Invoice
ASC,SOCIAL SERVICES,PRIVATE,Revenue,EXTERNAL DAYCARE,09-Mar-17,573.36,ACT TOO LTD,Invoice
ASC,SOCIAL SERVICES,PRIVATE,Revenue,EXTERNAL DAYCARE,09-Mar-17,573.36,ACT TOO LTD,Invoice
ASC,SOCIAL SERVICES,PRIVATE,Revenue,EXTERNAL DAYCARE,09-Mar-17,573.36,ACT TOO LTD,Invoice
ASC,SOCIAL SERVICES,PRIVATE,Revenue,EXTERNAL DAYCARE,09-Mar-17,955.60,ACT TOO LTD,Invoice
ASC,SOCIAL SERVICES,PRIVATE,Revenue,EXTERNAL DAYCARE,09-Mar-17,764.48,ACT TOO LTD,Invoice
ASC,SOCIAL SERVICES,PRIVATE,Revenue,EXTERNAL DAYCARE,09-Mar-17,573.36,ACT TOO LTD,Invoice
ASC,SOCIAL SERVICES,PRIVATE,Revenue,EXTERNAL DAYCARE,09-Mar-17,955.60,ACT TOO LTD,Invoice
ASC,SOCIAL SERVICES,PRIVATE,Revenue,EXTERNAL DAYCARE,09-Mar-17,764.48,ACT TOO LTD,Invoice
ASC,SOCIAL SERVICES,PRIVATE,Revenue,EXTERNAL DAYCARE,09-Mar-17,764.48,ACT TOO LTD,Invoice
ASC,SOCIAL SERVICES,PRIVATE,Revenue,EXTERNAL DAYCARE,09-Mar-17,743.84,ACT TOO LTD,Invoice
ASC,SOCIAL SERVICES,PRIVATE,Revenue,EXTERNAL DAYCARE,09-Mar-17,929.80,ACT TOO LTD,Invoice
ASC,SOCIAL SERVICES,PRIVATE,Revenue,EXTERNAL DAYCARE,09-Mar-17,929.80,ACT TOO LTD,Invoice
ASC,SOCIAL SERVICES,PRIVATE,Revenue,EXTERNAL DAYCARE,09-Mar-17,557.88,ACT TOO LTD,Invoice
ASC,SOCIAL SERVICES,PRIVATE,Revenue,EXTERNAL DAYCARE,09-Mar-17,557.88,ACT TOO LTD,Invoice
ASC,SOCIAL SERVICES,PRIVATE,Revenue,EXTERNAL DAYCARE,09-Mar-17,743.84,ACT TOO LTD,Invoice
ASC,SOCIAL SERVICES,PRIVATE,Revenue,EXTERNAL DAYCARE,09-Mar-17,557.88,ACT TOO LTD,Invoice
ASC,SOCIAL SERVICES,PRIVATE,Revenue,EXTERNAL DAYCARE,09-Mar-17,557.88,ACT TOO LTD,Invoice
ASC,SOCIAL SERVICES,PRIVATE,Revenue,EXTERNAL DAYCARE,09-Mar-17,557.88,ACT TOO LTD,Invoice
ASC,SOCIAL SERVICES,PRIVATE,Revenue,EXTERNAL DAYCARE,09-Mar-17,743.84,ACT TOO LTD,Invoice
ASC,SOCIAL SERVICES,PRIVATE,Revenue,EXTERNAL DAYCARE,09-Mar-17,557.88,ACT TOO LTD,Invoice
ASC,SOCIAL SERVICES,PRIVATE,Revenue,EXTERNAL DAYCARE,09-Mar-17,557.88,ACT TOO LTD,Invoice
ASC,SOCIAL SERVICES,PRIVATE,Revenue,EXTERNAL DAYCARE,09-Mar-17,557.88,ACT TOO LTD,Invoice
ASC,SOCIAL SERVICES,PRIVATE,Revenue,EXTERNAL DAYCARE,09-Mar-17,929.80,ACT TOO LTD,Invoice
ASC,SOCIAL SERVICES,PRIVATE,Revenue,EXTERNAL DAYCARE,09-Mar-17,557.88,ACT TOO LTD,Invoice
ASC,SOCIAL SERVICES,PRIVATE,Revenue,EXTERNAL DAYCARE,09-Mar-17,557.88,ACT TOO LTD,Invoice
ASC,SOCIAL SERVICES,PRIVATE,Revenue,EXTERNAL DAYCARE,09-Mar-17,557.88,ACT TOO LTD,Invoice
ASC,SOCIAL SERVICES,PRIVATE,Revenue,EXTERNAL DAYCARE,09-Mar-17,557.88,ACT TOO LTD,Invoice
ASC,SOCIAL SERVICES,PRIVATE,Revenue,EXTERNAL DAYCARE,29-Mar-17,955.60,ACT TOO LTD,Invoice
ASC,SOCIAL SERVICES,PRIVATE,Revenue,EXTERNAL DAYCARE,29-Mar-17,573.36,ACT TOO LTD,Invoice
ASC,SOCIAL SERVICES,PRIVATE,Revenue,EXTERNAL DAYCARE,29-Mar-17,573.36,ACT TOO LTD,Invoice
ASC,SOCIAL SERVICES,PRIVATE,Revenue,EXTERNAL DAYCARE,29-Mar-17,557.88,ACT TOO LTD,Invoice
ASC,SOCIAL SERVICES,PRIVATE,Revenue,EXTERNAL DAYCARE,29-Mar-17,557.88,ACT TOO LTD,Invoice
ASC,SOCIAL SERVICES,PRIVATE,Revenue,EXTERNAL DAYCARE,29-Mar-17,764.48,ACT TOO LTD,Invoice
ASC,SOCIAL SERVICES,PRIVATE,Revenue,EXTERNAL DAYCARE,29-Mar-17,764.48,ACT TOO LTD,Invoice
ASC,SOCIAL SERVICES,PRIVATE,Revenue,EXTERNAL DAYCARE,29-Mar-17,573.36,ACT TOO LTD,Invoice
ASC,SOCIAL SERVICES,PRIVATE,Revenue,EXTERNAL DAYCARE,29-Mar-17,573.36,ACT TOO LTD,Invoice
ASC,SOCIAL SERVICES,PRIVATE,Revenue,EXTERNAL DAYCARE,29-Mar-17,573.36,ACT TOO LTD,Invoice
ASC,SOCIAL SERVICES,PRIVATE,Revenue,EXTERNAL DAYCARE,29-Mar-17,573.36,ACT TOO LTD,Invoice
ASC,SOCIAL SERVICES,PRIVATE,Revenue,EXTERNAL DAYCARE,29-Mar-17,955.60,ACT TOO LTD,Invoice
ASC,SOCIAL SERVICES,PRIVATE,Revenue,EXTERNAL DAYCARE,29-Mar-17,573.36,ACT TOO LTD,Invoice
ASC,SOCIAL SERVICES,PRIVATE,Revenue,EXTERNAL DAYCARE,29-Mar-17,764.48,ACT TOO LTD,Invoice
ASC,SOCIAL SERVICES,PRIVATE,Revenue,EXTERNAL DAYCARE,29-Mar-17,573.36,ACT TOO LTD,Invoice
ASC,SOCIAL SERVICES,PRIVATE,Revenue,EXTERNAL DAYCARE,29-Mar-17,955.60,ACT TOO LTD,Invoice
ASC,SOCIAL SERVICES,PRIVATE,Revenue,EXTERNAL DAYCARE,29-Mar-17,764.48,ACT TOO LTD,Invoice
ASC,SOCIAL SERVICES,PRIVATE,Revenue,EXTERNAL DAYCARE,29-Mar-17,764.48,ACT TOO LTD,Invoice
ASC,SOCIAL SERVICES,PRIVATE,Revenue,EXTERNAL DAYCARE,29-Mar-17,573.36,ACT TOO LTD,Invoice
ASC,SOCIAL SERVICES,PRIVATE,Revenue,EXTERNAL DAYCARE,29-Mar-17,764.48,ACT TOO LTD,Invoice
ASC,SOCIAL SERVICES,PRIVATE,Revenue,EXTERNAL DAYCARE,29-Mar-17,955.60,ACT TOO LTD,Invoice
ASC,SOCIAL SERVICES,PRIVATE,Revenue,EXTERNAL DAYCARE,29-Mar-17,955.60,ACT TOO LTD,Invoice
ASC,SOCIAL SERVICES,PRIVATE,Revenue,EXTERNAL DAYCARE,29-Mar-17,573.36,ACT TOO LTD,Invoice
ASC,SOCIAL SERVICES,PRIVATE,Revenue,EXTERNAL DAYCARE,29-Mar-17,573.36,ACT TOO LTD,Invoice
ASC,SOCIAL SERVICES,PRIVATE,Revenue,EXTERNAL DAYCARE,29-Mar-17,764.48,ACT TOO LTD,Invoice
ASC,SOCIAL SERVICES,PRIVATE,Revenue,EXTERNAL DAYCARE,29-Mar-17,573.36,ACT TOO LTD,Invoice
ASC,SOCIAL SERVICES,PRIVATE,Revenue,EXTERNAL DAYCARE,29-Mar-17,573.36,ACT TOO LTD,Invoice
ASC,SOCIAL SERVICES,PRIVATE,Revenue,EXTERNAL DAYCARE,29-Mar-17,764.48,ACT TOO LTD,Invoice
ASC,SOCIAL SERVICES,PRIVATE,Revenue,EXTERNAL DAYCARE,29-Mar-17,573.36,ACT TOO LTD,Invoice
ASC,SOCIAL SERVICES,PRIVATE,Revenue,EXTERNAL DAYCARE,29-Mar-17,573.36,ACT TOO LTD,Invoice
ASC,SOCIAL SERVICES,PRIVATE,Revenue,EXTERNAL DAYCARE,03-Mar-17,1094.60,ANTHONY TOBY HOMES TRUST,Invoice
ASC,SOCIAL SERVICES,PRIVATE,Revenue,EXTERNAL DAYCARE,13-Mar-17,1021.20,ASHFIELD CARE HOMES LTD,Invoice
ASC,SOCIAL SERVICES,PRIVATE,Revenue,EXTERNAL DAYCARE,14-Mar-17,800.00,BAKED BEAN COMPANY CHARITY,Invoice
ASC,SOCIAL SERVICES,PRIVATE,Revenue,EXTERNAL DAYCARE,29-Mar-17,2189.83,CMG HOMES LTD,Invoice
ASC,SOCIAL SERVICES,PRIVATE,Revenue,EXTERNAL DAYCARE,29-Mar-17,1904.20,CMG HOMES LTD,Invoice
ASC,SOCIAL SERVICES,PRIVATE,Revenue,EXTERNAL DAYCARE,02-Mar-17,974.40,CREST COOPERATIVE LTD,Invoice
ASC,SOCIAL SERVICES,PRIVATE,Revenue,EXTERNAL DAYCARE,24-Mar-17,973.60,DOLPHIN HOMES LTD,Invoice
ASC,SOCIAL SERVICES,PRIVATE,Revenue,EXTERNAL DAYCARE,29-Mar-17,973.60,DOLPHIN HOMES LTD,Invoice
ASC,SOCIAL SERVICES,PRIVATE,Revenue,EXTERNAL DAYCARE,13-Mar-17,840.00,DORSET SCOPE,Invoice
ASC,SOCIAL SERVICES,PRIVATE,Revenue,EXTERNAL DAYCARE,22-Mar-17,892.50,DORSET SCOPE,Invoice
ASC,SOCIAL SERVICES,PRIVATE,Revenue,EXTERNAL DAYCARE,27-Mar-17,866.25,DORSET SCOPE,Invoice
ASC,SOCIAL SERVICES,PRIVATE,Revenue,EXTERNAL DAYCARE,24-Mar-17,733.89,EAST SUSSEX COUNTY COUNCIL,Invoice
ASC,SOCIAL SERVICES,PRIVATE,Revenue,EXTERNAL DAYCARE,24-Mar-17,3641.40,ESSEX COUNTY COUNCIL,Invoice
ASC,SOCIAL SERVICES,PRIVATE,Revenue,EXTERNAL DAYCARE,23-Mar-17,576.00,GENERATE OPPORTUNITIES LTD,Invoice
ASC,SOCIAL SERVICES,PRIVATE,Revenue,EXTERNAL DAYCARE,23-Mar-17,576.00,GENERATE OPPORTUNITIES LTD,Invoice
ASC,SOCIAL SERVICES,PRIVATE,Revenue,EXTERNAL DAYCARE,23-Mar-17,640.00,GENERATE OPPORTUNITIES LTD,Invoice
ASC,SOCIAL SERVICES,PRIVATE,Revenue,EXTERNAL DAYCARE,29-Mar-17,856.24,HEATHCOTES(SOUTHERN)LTD,Invoice
ASC,SOCIAL SERVICES,PRIVATE,Revenue,EXTERNAL DAYCARE,24-Mar-17,-25.02,LONDON CARE PARTNERSHIP LTD,Invoice
ASC,SOCIAL SERVICES,PRIVATE,Revenue,EXTERNAL DAYCARE,13-Mar-17,554.73,LUCKETTS FARM LIMNITED T/A THE JOHN GRAH,Invoice
ASC,SOCIAL SERVICES,PRIVATE,Revenue,EXTERNAL DAYCARE,22-Mar-17,515.52,MENCAP OPEN DOOR,Invoice
ASC,SOCIAL SERVICES,PRIVATE,Revenue,EXTERNAL DAYCARE,22-Mar-17,644.00,MENCAP OPEN DOOR,Invoice
ASC,SOCIAL SERVICES,PRIVATE,Revenue,EXTERNAL DAYCARE,22-Mar-17,515.20,MENCAP OPEN DOOR,Invoice
ASC,SOCIAL SERVICES,PRIVATE,Revenue,EXTERNAL DAYCARE,22-Mar-17,644.00,MENCAP OPEN DOOR,Invoice
ASC,SOCIAL SERVICES,PRIVATE,Revenue,EXTERNAL DAYCARE,08-Mar-17,3807.80,NAS SERVICES LIMITED,Invoice
ASC,SOCIAL SERVICES,PRIVATE,Revenue,EXTERNAL DAYCARE,08-Mar-17,1594.76,NAS SERVICES LIMITED,Invoice
ASC,SOCIAL SERVICES,PRIVATE,Revenue,EXTERNAL DAYCARE,08-Mar-17,3745.00,NAS SERVICES LIMITED,Invoice
ASC,SOCIAL SERVICES,PRIVATE,Revenue,EXTERNAL DAYCARE,08-Mar-17,2264.08,NAS SERVICES LIMITED,Invoice
ASC,SOCIAL SERVICES,PRIVATE,Revenue,EXTERNAL DAYCARE,13-Mar-17,3807.80,NAS SERVICES LIMITED,Invoice
ASC,SOCIAL SERVICES,PRIVATE,Revenue,EXTERNAL DAYCARE,13-Mar-17,3807.80,NAS SERVICES LIMITED,Invoice
ASC,SOCIAL SERVICES,PRIVATE,Revenue,EXTERNAL DAYCARE,27-Mar-17,2256.22,NAS SERVICES LIMITED,Invoice
ASC,SOCIAL SERVICES,PRIVATE,Revenue,EXTERNAL DAYCARE,13-Mar-17,2014.16,NORWOOD SCHOOLS LTD,Invoice
ASC,SOCIAL SERVICES,PRIVATE,Revenue,EXTERNAL DAYCARE,13-Mar-17,2070.04,NORWOOD SCHOOLS LTD,Invoice
ASC,SOCIAL SERVICES,PRIVATE,Revenue,EXTERNAL DAYCARE,27-Mar-17,525.70,O A ROWE,Invoice
ASC,SOCIAL SERVICES,PRIVATE,Revenue,EXTERNAL DAYCARE,13-Mar-17,750.56,ORIONE CARE,Invoice
ASC,SOCIAL SERVICES,PRIVATE,Revenue,EXTERNAL DAYCARE,13-Mar-17,562.92,ORIONE CARE,Invoice
ASC,SOCIAL SERVICES,PRIVATE,Revenue,EXTERNAL DAYCARE,13-Mar-17,546.00,PARCHMENT TRUST LTD,Invoice
ASC,SOCIAL SERVICES,PRIVATE,Revenue,EXTERNAL DAYCARE,27-Mar-17,540.00,PROSPECTS,Invoice
ASC,SOCIAL SERVICES,PRIVATE,Revenue,EXTERNAL DAYCARE,09-Mar-17,1103.42,RESIDENTIAL CARE SERVICES T/A FRANKLYN L,Invoice
ASC,SOCIAL SERVICES,PRIVATE,Revenue,EXTERNAL DAYCARE,02-Mar-17,1177.40,RIDGEWOOD CARE SERVICES LTD,Invoice
ASC,SOCIAL SERVICES,PRIVATE,Revenue,EXTERNAL DAYCARE,22-Mar-17,1200.00,RIDGEWOOD CARE SERVICES LTD,Invoice
ASC,SOCIAL SERVICES,PRIVATE,Revenue,EXTERNAL DAYCARE,23-Mar-17,1177.40,RIDGEWOOD CARE SERVICES LTD,Invoice
ASC,SOCIAL SERVICES,PRIVATE,Revenue,EXTERNAL DAYCARE,30-Mar-17,848.00,SCOPE,Invoice
ASC,SOCIAL SERVICES,PRIVATE,Revenue,EXTERNAL DAYCARE,22-Mar-17,848.00,SCOPE,Invoice
ASC,SOCIAL SERVICES,PRIVATE,Revenue,EXTERNAL DAYCARE,22-Mar-17,848.00,SCOPE,Invoice
ASC,SOCIAL SERVICES,PRIVATE,Revenue,EXTERNAL DAYCARE,29-Mar-17,848.00,SCOPE,Invoice
ASC,SOCIAL SERVICES,PRIVATE,Revenue,EXTERNAL DAYCARE,08-Mar-17,3186.96,SENSE-CHILDREN & ADULT SERVICES,Invoice
ASC,SOCIAL SERVICES,PRIVATE,Revenue,EXTERNAL DAYCARE,09-Mar-17,1283.64,SENSE-CHILDREN & ADULT SERVICES,Invoice
ASC,SOCIAL SERVICES,PRIVATE,Revenue,EXTERNAL DAYCARE,13-Mar-17,1593.48,SENSE-CHILDREN & ADULT SERVICES,Invoice
ASC,SOCIAL SERVICES,PRIVATE,Revenue,EXTERNAL DAYCARE,03-Mar-17,718.12,SHARE COMMUNITY,Invoice
ASC,SOCIAL SERVICES,PRIVATE,Revenue,EXTERNAL DAYCARE,03-Mar-17,957.52,SHARE COMMUNITY,Invoice
ASC,SOCIAL SERVICES,PRIVATE,Revenue,EXTERNAL DAYCARE,03-Mar-17,718.12,SHARE COMMUNITY,Invoice
ASC,SOCIAL SERVICES,PRIVATE,Revenue,EXTERNAL DAYCARE,03-Mar-17,957.44,SHARE COMMUNITY,Invoice
ASC,SOCIAL SERVICES,PRIVATE,Revenue,EXTERNAL DAYCARE,03-Mar-17,718.08,SHARE COMMUNITY,Invoice
ASC,SOCIAL SERVICES,PRIVATE,Revenue,EXTERNAL DAYCARE,03-Mar-17,1196.88,SHARE COMMUNITY,Invoice
ASC,SOCIAL SERVICES,PRIVATE,Revenue,EXTERNAL DAYCARE,03-Mar-17,718.12,SHARE COMMUNITY,Invoice
ASC,SOCIAL SERVICES,PRIVATE,Revenue,EXTERNAL DAYCARE,03-Mar-17,1196.88,SHARE COMMUNITY,Invoice
ASC,SOCIAL SERVICES,PRIVATE,Revenue,EXTERNAL DAYCARE,03-Mar-17,535.36,SHARE COMMUNITY,Invoice
ASC,SOCIAL SERVICES,PRIVATE,Revenue,EXTERNAL DAYCARE,03-Mar-17,957.52,SHARE COMMUNITY,Invoice
ASC,SOCIAL SERVICES,PRIVATE,Revenue,EXTERNAL DAYCARE,03-Mar-17,718.12,SHARE COMMUNITY,Invoice
ASC,SOCIAL SERVICES,PRIVATE,Revenue,EXTERNAL DAYCARE,03-Mar-17,598.44,SHARE COMMUNITY,Invoice
ASC,SOCIAL SERVICES,PRIVATE,Revenue,EXTERNAL DAYCARE,03-Mar-17,718.12,SHARE COMMUNITY,Invoice
ASC,SOCIAL SERVICES,PRIVATE,Revenue,EXTERNAL DAYCARE,03-Mar-17,718.12,SHARE COMMUNITY,Invoice
ASC,SOCIAL SERVICES,PRIVATE,Revenue,EXTERNAL DAYCARE,03-Mar-17,1196.88,SHARE COMMUNITY,Invoice
ASC,SOCIAL SERVICES,PRIVATE,Revenue,EXTERNAL DAYCARE,03-Mar-17,718.12,SHARE COMMUNITY,Invoice
ASC,SOCIAL SERVICES,PRIVATE,Revenue,EXTERNAL DAYCARE,03-Mar-17,718.12,SHARE COMMUNITY,Invoice
ASC,SOCIAL SERVICES,PRIVATE,Revenue,EXTERNAL DAYCARE,03-Mar-17,957.52,SHARE COMMUNITY,Invoice
ASC,SOCIAL SERVICES,PRIVATE,Revenue,EXTERNAL DAYCARE,03-Mar-17,718.12,SHARE COMMUNITY,Invoice
ASC,SOCIAL SERVICES,PRIVATE,Revenue,EXTERNAL DAYCARE,03-Mar-17,718.12,SHARE COMMUNITY,Invoice
ASC,SOCIAL SERVICES,PRIVATE,Revenue,EXTERNAL DAYCARE,03-Mar-17,957.44,SHARE COMMUNITY,Invoice
ASC,SOCIAL SERVICES,PRIVATE,Revenue,EXTERNAL DAYCARE,03-Mar-17,718.12,SHARE COMMUNITY,Invoice
ASC,SOCIAL SERVICES,PRIVATE,Revenue,EXTERNAL DAYCARE,03-Mar-17,950.84,SHARE COMMUNITY,Invoice
ASC,SOCIAL SERVICES,PRIVATE,Revenue,EXTERNAL DAYCARE,03-Mar-17,718.12,SHARE COMMUNITY,Invoice
ASC,SOCIAL SERVICES,PRIVATE,Revenue,EXTERNAL DAYCARE,03-Mar-17,718.12,SHARE COMMUNITY,Invoice
ASC,SOCIAL SERVICES,PRIVATE,Revenue,EXTERNAL DAYCARE,03-Mar-17,718.08,SHARE COMMUNITY,Invoice
ASC,SOCIAL SERVICES,PRIVATE,Revenue,EXTERNAL DAYCARE,03-Mar-17,718.12,SHARE COMMUNITY,Invoice
ASC,SOCIAL SERVICES,PRIVATE,Revenue,EXTERNAL DAYCARE,03-Mar-17,957.48,SHARE COMMUNITY,Invoice
ASC,SOCIAL SERVICES,PRIVATE,Revenue,EXTERNAL DAYCARE,21-Mar-17,2453.44,SHARE COMMUNITY,Invoice
ASC,SOCIAL SERVICES,PRIVATE,Revenue,EXTERNAL DAYCARE,16-Mar-17,1057.00,ST DAVIDS CARE IN THE COMMUNITY,Invoice
ASC,SOCIAL SERVICES,PRIVATE,Revenue,EXTERNAL DAYCARE,16-Mar-17,1057.00,ST DAVIDS CARE IN THE COMMUNITY,Invoice
ASC,SOCIAL SERVICES,PRIVATE,Revenue,EXTERNAL DAYCARE,16-Mar-17,1057.00,ST DAVIDS CARE IN THE COMMUNITY,Invoice
ASC,SOCIAL SERVICES,PRIVATE,Revenue,EXTERNAL DAYCARE,16-Mar-17,1057.00,ST DAVIDS CARE IN THE COMMUNITY,Invoice
ASC,SOCIAL SERVICES,PRIVATE,Revenue,EXTERNAL DAYCARE,16-Mar-17,1057.00,ST DAVIDS CARE IN THE COMMUNITY,Invoice
ASC,SOCIAL SERVICES,PRIVATE,Revenue,EXTERNAL DAYCARE,16-Mar-17,1057.00,ST DAVIDS CARE IN THE COMMUNITY,Invoice
ASC,SOCIAL SERVICES,PRIVATE,Revenue,EXTERNAL DAYCARE,29-Mar-17,503.50,ST MARYS RESIDENTIAL HOME,Invoice
ASC,SOCIAL SERVICES,PRIVATE,Revenue,EXTERNAL DAYCARE,29-Mar-17,2186.20,ST MARYS RESIDENTIAL HOME,Invoice
ASC,SOCIAL SERVICES,PRIVATE,Revenue,EXTERNAL DAYCARE,29-Mar-17,500.00,ST MARYS RESIDENTIAL HOME,Invoice
ASC,SOCIAL SERVICES,PRIVATE,Revenue,EXTERNAL DAYCARE,29-Mar-17,520.10,ST MARYS RESIDENTIAL HOME,Invoice
ASC,SOCIAL SERVICES,PRIVATE,Revenue,EXTERNAL DAYCARE,29-Mar-17,1204.20,ST MARYS RESIDENTIAL HOME,Invoice
ASC,SOCIAL SERVICES,PRIVATE,Revenue,EXTERNAL DAYCARE,29-Mar-17,519.70,ST MARYS RESIDENTIAL HOME,Invoice
ASC,SOCIAL SERVICES,PRIVATE,Revenue,EXTERNAL DAYCARE,29-Mar-17,672.50,ST MARYS RESIDENTIAL HOME,Invoice
ASC,SOCIAL SERVICES,PRIVATE,Revenue,EXTERNAL DAYCARE,28-Mar-17,1597.96,STALLCOMBE HOUSE,Invoice
ASC,SOCIAL SERVICES,PRIVATE,Revenue,EXTERNAL DAYCARE,24-Mar-17,788.80,SURREY & BORDERS PARTNERSHIP NHS TRUST,Invoice
ASC,SOCIAL SERVICES,PRIVATE,Revenue,EXTERNAL DAYCARE,28-Mar-17,542.40,SURREY CHOICES,Invoice
ASC,SOCIAL SERVICES,PRIVATE,Revenue,EXTERNAL DAYCARE,28-Mar-17,578.56,SURREY CHOICES,Invoice
ASC,SOCIAL SERVICES,PRIVATE,Revenue,EXTERNAL DAYCARE,13-Mar-17,520.00,THE CAMDEN SOCIETY,Invoice
ASC,SOCIAL SERVICES,PRIVATE,Revenue,EXTERNAL DAYCARE,13-Mar-17,520.00,THE CAMDEN SOCIETY,Invoice
ASC,SOCIAL SERVICES,PRIVATE,Revenue,EXTERNAL DAYCARE,13-Mar-17,520.00,THE CAMDEN SOCIETY,Invoice
ASC,SOCIAL SERVICES,PRIVATE,Revenue,EXTERNAL DAYCARE,13-Mar-17,520.00,THE CAMDEN SOCIETY,Invoice
ASC,SOCIAL SERVICES,PRIVATE,Revenue,EXTERNAL DAYCARE,13-Mar-17,520.00,THE CAMDEN SOCIETY,Invoice
ASC,SOCIAL SERVICES,PRIVATE,Revenue,EXTERNAL DAYCARE,13-Mar-17,520.00,THE CAMDEN SOCIETY,Invoice
ASC,SOCIAL SERVICES,PRIVATE,Revenue,EXTERNAL DAYCARE,13-Mar-17,520.00,THE CAMDEN SOCIETY,Invoice
ASC,SOCIAL SERVICES,PRIVATE,Revenue,EXTERNAL DAYCARE,13-Mar-17,520.00,THE CAMDEN SOCIETY,Invoice
ASC,SOCIAL SERVICES,PRIVATE,Revenue,EXTERNAL DAYCARE,29-Mar-17,1215.78,THE MANOR HOUSE,Invoice
ASC,SOCIAL SERVICES,PRIVATE,Revenue,EXTERNAL DAYCARE,08-Mar-17,1398.90,THE REGARD PARTNERSHIP,Invoice
ASC,SOCIAL SERVICES,PRIVATE,Revenue,EXTERNAL DAYCARE,14-Mar-17,1263.52,THE REGARD PARTNERSHIP,Invoice
ASC,SOCIAL SERVICES,PRIVATE,Revenue,EXTERNAL DAYCARE,23-Mar-17,531.04,UNITED RESPONSE,Invoice
ASC,SOCIAL SERVICES,PRIVATE,Revenue,EXTERNAL DAYCARE,02-Mar-17,1653.96,VOYAGE CARE LTD,Invoice
ASC,SOCIAL SERVICES,PRIVATE,Revenue,EXTERNAL DAYCARE,13-Mar-17,845.60,WANDSWORTH BENGALI WELFARE ASSOCIATION,Invoice
ASC,SOCIAL SERVICES,PRIVATE,Revenue,EXTERNAL DAYCARE,24-Mar-17,845.60,WANDSWORTH BENGALI WELFARE ASSOCIATION,Invoice
ASC,SOCIAL SERVICES,PRIVATE,Revenue,EXTERNAL DAYCARE,06-Mar-17,1416.24,WINSLOW COURT,Invoice
ASC,SOCIAL SERVICES,PRIVATE,Revenue,EXTERNAL DAYCARE,06-Mar-17,1416.24,WINSLOW COURT,Invoice
ASC,SOCIAL SERVICES,PRIVATE,Revenue,EXTERNAL DAYCARE,16-Mar-17,1416.24,WINSLOW COURT,Invoice
ASC,SOCIAL SERVICES,PRIVATE,Revenue,EXTERNAL DAYCARE,16-Mar-17,1416.24,WINSLOW COURT,Invoice
ASC,SOCIAL SERVICES,PRIVATE,Revenue,EXTERNAL DAYCARE,29-Mar-17,1416.24,WINSLOW COURT,Invoice
ASC,SOCIAL SERVICES,PRIVATE,Revenue,EXTERNAL DAYCARE,29-Mar-17,1416.24,WINSLOW COURT,Invoice
ASC,SOCIAL SERVICES,PRIVATE,Revenue,EXTERNAL DAYCARE,08-Mar-17,2376.52,WORCESTERSHIRE COUNTY COUNCIL,Invoice
ASC,SOCIAL SERVICES,PRIVATE,Revenue,EXTERNAL DAYCARE,09-Mar-17,969.60,WORKSHOP 305,Invoice
ASC,SOCIAL SERVICES,PRIVATE,Revenue,EXTERNAL DAYCARE,09-Mar-17,727.20,WORKSHOP 305,Invoice
ASC,SOCIAL SERVICES,PRIVATE,Revenue,EXTERNAL DAYCARE,09-Mar-17,850.56,WORKSHOP 305,Invoice
ASC,SOCIAL SERVICES,PRIVATE,Revenue,EXTERNAL DAYCARE,09-Mar-17,727.20,WORKSHOP 305,Invoice
ASC,SOCIAL SERVICES,PRIVATE,Revenue,EXTERNAL DAYCARE,09-Mar-17,727.20,WORKSHOP 305,Invoice
ASC,SOCIAL SERVICES,PRIVATE,Revenue,EXTERNAL DAYCARE,09-Mar-17,727.20,WORKSHOP 305,Invoice
ASC,SOCIAL SERVICES,PRIVATE,Revenue,EXTERNAL DAYCARE,09-Mar-17,727.20,WORKSHOP 305,Invoice
ASC,SOCIAL SERVICES,PRIVATE,Revenue,EXTERNAL DAYCARE,09-Mar-17,969.60,WORKSHOP 305,Invoice
ASC,SOCIAL SERVICES,PRIVATE,Revenue,EXTERNAL DAYCARE,13-Mar-17,1134.08,WORKSHOP 305,Invoice
ASC,SOCIAL SERVICES,PRIVATE,Revenue,EXTERNAL DAYCARE,13-Mar-17,727.20,WORKSHOP 305,Invoice
ASC,SOCIAL SERVICES,PRIVATE,Revenue,EXTERNAL HOMECARE,10-Mar-17,757.13,ASIAN ELDERS SUPPORT SCHEME,Invoice
ASC,SOCIAL SERVICES,PRIVATE,Revenue,EXTERNAL HOMECARE,03-Mar-17,1871.33,CARE OUTLOOK LTD,Invoice
ASC,SOCIAL SERVICES,PRIVATE,Revenue,EXTERNAL HOMECARE,02-Mar-17,3976.00,CHRISTIES CARE LTD,Invoice
ASC,SOCIAL SERVICES,PRIVATE,Revenue,EXTERNAL HOMECARE,24-Mar-17,3976.00,CHRISTIES CARE LTD,Invoice
ASC,SOCIAL SERVICES,PRIVATE,Revenue,EXTERNAL HOMECARE,02-Mar-17,754.20,DAY AND NITE CARE,Invoice
ASC,SOCIAL SERVICES,PRIVATE,Revenue,EXTERNAL HOMECARE,21-Mar-17,754.20,DAY AND NITE CARE,Invoice
ASC,SOCIAL SERVICES,PRIVATE,Revenue,EXTERNAL HOMECARE,02-Mar-17,502.88,HEALTH CARE SOLUTIONS,Invoice
ASC,SOCIAL SERVICES,PRIVATE,Revenue,EXTERNAL HOMECARE,21-Mar-17,502.88,HEALTH CARE SOLUTIONS,Invoice
ASC,SOCIAL SERVICES,PRIVATE,Revenue,EXTERNAL HOMECARE,23-Mar-17,502.88,HEALTH CARE SOLUTIONS,Invoice
ASC,SOCIAL SERVICES,PRIVATE,Revenue,EXTERNAL HOMECARE,23-Mar-17,502.88,HEALTH CARE SOLUTIONS,Invoice
ASC,SOCIAL SERVICES,PRIVATE,Revenue,EXTERNAL HOMECARE,27-Mar-17,662.97,LONDON HOMECARE LTD,Invoice
ASC,SOCIAL SERVICES,PRIVATE,Revenue,EXTERNAL HOMECARE,27-Mar-17,1011.95,LONDON HOMECARE LTD,Invoice
ASC,SOCIAL SERVICES,PRIVATE,Revenue,EXTERNAL HOMECARE,27-Mar-17,895.32,LONDON HOMECARE LTD,Invoice
ASC,SOCIAL SERVICES,PRIVATE,Revenue,EXTERNAL HOMECARE,27-Mar-17,662.40,LONDON HOMECARE LTD,Invoice
ASC,SOCIAL SERVICES,PRIVATE,Revenue,EXTERNAL HOMECARE,21-Mar-17,675.04,METRO HOMECARE,Invoice
ASC,SOCIAL SERVICES,PRIVATE,Revenue,EXTERNAL HOMECARE,21-Mar-17,749.49,MUSHKIL AASAAN LTD,Invoice
ASC,SOCIAL SERVICES,PRIVATE,Revenue,EXTERNAL HOMECARE,24-Mar-17,644.40,MUSHKIL AASAAN LTD,Invoice
ASC,SOCIAL SERVICES,PRIVATE,Revenue,EXTERNAL HOMECARE,06-Mar-17,2283.36,RAINBOW MEDICAL SERVICES,Invoice
ASC,SOCIAL SERVICES,PRIVATE,Revenue,EXTERNAL HOMECARE,13-Mar-17,852.56,RAINBOW MEDICAL SERVICES,Invoice
ASC,SOCIAL SERVICES,PRIVATE,Revenue,EXTERNAL HOMECARE,02-Mar-17,1309.52,SUPREME CARE SERVICE LTD,Invoice
ASC,SOCIAL SERVICES,PRIVATE,Revenue,EXTERNAL HOMECARE,02-Mar-17,901.76,SUPREME CARE SERVICE LTD,Invoice
ASC,SOCIAL SERVICES,PRIVATE,Revenue,EXTERNAL HOMECARE,28-Mar-17,531.20,WESTMINSTER HOMECARE LTD,Invoice
ASC,SOCIAL SERVICES,PRIVATE,Revenue,EXTERNAL NURSING CARE,24-Mar-17,3256.52,BUPA CARE SERVICES BACS RECEIPTS,Invoice
ASC,SOCIAL SERVICES,PRIVATE,Revenue,EXTERNAL NURSING CARE,24-Mar-17,3256.52,BUPA CARE SERVICES BACS RECEIPTS,Invoice
ASC,SOCIAL SERVICES,PRIVATE,Revenue,EXTERNAL NURSING CARE,24-Mar-17,3557.00,BUPA CARE SERVICES BACS RECEIPTS,Invoice
ASC,SOCIAL SERVICES,PRIVATE,Revenue,EXTERNAL NURSING CARE,24-Mar-17,3281.24,BUPA CARE SERVICES BACS RECEIPTS,Invoice
ASC,SOCIAL SERVICES,PRIVATE,Revenue,EXTERNAL NURSING CARE,02-Mar-17,9108.12,CHOICE SUPPORT,Invoice
ASC,SOCIAL SERVICES,PRIVATE,Revenue,EXTERNAL NURSING CARE,23-Mar-17,9108.12,CHOICE SUPPORT,Invoice
ASC,SOCIAL SERVICES,PRIVATE,Revenue,EXTERNAL NURSING CARE,24-Mar-17,3546.80,ROSEDENE NURSING HOME,Invoice
ASC,SOCIAL SERVICES,PRIVATE,Revenue,EXTERNAL NURSING CARE,29-Mar-17,9205.15,SUSSEX HEALTH CARE,Invoice
ASC,SOCIAL SERVICES,PRIVATE,Revenue,EXTERNAL NURSING CARE,29-Mar-17,9064.58,THE COMMUNITY CARE COMPANY UK LTD,Invoice
ASC,SOCIAL SERVICES,PRIVATE,Revenue,EXTERNAL NURSING CARE,29-Mar-17,4155.11,TREETOPS NURSING HOME,Invoice
ASC,SOCIAL SERVICES,PRIVATE,Revenue,EXTERNAL NURSING CARE,02-Mar-17,4305.84,VOYAGE CARE LTD,Invoice
ASC,SOCIAL SERVICES,PRIVATE,Revenue,EXTERNAL NURSING CARE,02-Mar-17,5502.07,VOYAGE CARE LTD,Invoice
ASC,SOCIAL SERVICES,PRIVATE,Revenue,EXTERNAL NURSING CARE,06-Mar-17,6327.88,WINGHAM COURT,Invoice
ASC,SOCIAL SERVICES,PRIVATE,Revenue,EXTERNAL NURSING CARE,09-Mar-17,6327.88,WINGHAM COURT,Invoice
ASC,SOCIAL SERVICES,PRIVATE,Revenue,EXTERNAL NURSING CARE,24-Mar-17,4763.34,WINGHAM COURT,Invoice
ASC,SOCIAL SERVICES,PRIVATE,Revenue,EXTERNAL RESIDENTIAL CARE,29-Mar-17,5178.32,ACORN VILLAGE LIMITED,Invoice
ASC,SOCIAL SERVICES,PRIVATE,Revenue,EXTERNAL RESIDENTIAL CARE,14-Mar-17,681.04,AIMS CARE PARTNERSHIP,Invoice
ASC,SOCIAL SERVICES,PRIVATE,Revenue,EXTERNAL RESIDENTIAL CARE,29-Mar-17,8427.61,AIMS CARE PARTNERSHIP,Invoice
ASC,SOCIAL SERVICES,PRIVATE,Revenue,EXTERNAL RESIDENTIAL CARE,29-Mar-17,4419.28,ALLIED CARE (MHS) LTD,Invoice
ASC,SOCIAL SERVICES,PRIVATE,Revenue,EXTERNAL RESIDENTIAL CARE,29-Mar-17,7104.27,ALLIED CARE (MHS) LTD,Invoice
ASC,SOCIAL SERVICES,PRIVATE,Revenue,EXTERNAL RESIDENTIAL CARE,29-Mar-17,5100.43,ALLIED CARE (MHS) LTD,Invoice
ASC,SOCIAL SERVICES,PRIVATE,Revenue,EXTERNAL RESIDENTIAL CARE,09-Mar-17,4598.80,ALLIED CARE LTD T/A ASHSTEAD HOUSE LTD,Invoice
ASC,SOCIAL SERVICES,PRIVATE,Revenue,EXTERNAL RESIDENTIAL CARE,03-Mar-17,4382.20,ANTHONY TOBY HOMES TRUST,Invoice
ASC,SOCIAL SERVICES,PRIVATE,Revenue,EXTERNAL RESIDENTIAL CARE,13-Mar-17,1997.44,ASHBROOK HOUSE LTD,Invoice
ASC,SOCIAL SERVICES,PRIVATE,Revenue,EXTERNAL RESIDENTIAL CARE,13-Mar-17,3870.04,ASHBROOK HOUSE LTD,Invoice
ASC,SOCIAL SERVICES,PRIVATE,Revenue,EXTERNAL RESIDENTIAL CARE,13-Mar-17,3495.52,ASHBROOK HOUSE LTD,Invoice
ASC,SOCIAL SERVICES,PRIVATE,Revenue,EXTERNAL RESIDENTIAL CARE,29-Mar-17,3870.04,ASHBROOK HOUSE LTD,Invoice
ASC,SOCIAL SERVICES,PRIVATE,Revenue,EXTERNAL RESIDENTIAL CARE,29-Mar-17,11390.41,ASHCROFT CARE SERVICES,Invoice
ASC,SOCIAL SERVICES,PRIVATE,Revenue,EXTERNAL RESIDENTIAL CARE,29-Mar-17,3970.56,BEECH LODGE,Invoice
ASC,SOCIAL SERVICES,PRIVATE,Revenue,EXTERNAL RESIDENTIAL CARE,29-Mar-17,3970.56,BEECH LODGE,Invoice
ASC,SOCIAL SERVICES,PRIVATE,Revenue,EXTERNAL RESIDENTIAL CARE,29-Mar-17,4049.76,BEECH LODGE,Invoice
ASC,SOCIAL SERVICES,PRIVATE,Revenue,EXTERNAL RESIDENTIAL CARE,29-Mar-17,6687.95,BIRCC,Invoice
ASC,SOCIAL SERVICES,PRIVATE,Revenue,EXTERNAL RESIDENTIAL CARE,16-Mar-17,7800.00,C.H.O.I.C.E LIMITED,Invoice
ASC,SOCIAL SERVICES,PRIVATE,Revenue,EXTERNAL RESIDENTIAL CARE,16-Mar-17,7471.92,C.H.O.I.C.E LIMITED,Invoice
ASC,SOCIAL SERVICES,PRIVATE,Revenue,EXTERNAL RESIDENTIAL CARE,16-Mar-17,11965.20,C.H.O.I.C.E LIMITED,Invoice
ASC,SOCIAL SERVICES,PRIVATE,Revenue,EXTERNAL RESIDENTIAL CARE,09-Mar-17,4783.16,CAMERON LODGE LIMITED,Invoice
ASC,SOCIAL SERVICES,PRIVATE,Revenue,EXTERNAL RESIDENTIAL CARE,29-Mar-17,4783.16,CAMERON LODGE LIMITED,Invoice
ASC,SOCIAL SERVICES,PRIVATE,Revenue,EXTERNAL RESIDENTIAL CARE,29-Mar-17,4002.89,CENTRUST CARE HOMES LTD,Invoice
ASC,SOCIAL SERVICES,PRIVATE,Revenue,EXTERNAL RESIDENTIAL CARE,29-Mar-17,3970.56,CHERRY LODGE,Invoice
ASC,SOCIAL SERVICES,PRIVATE,Revenue,EXTERNAL RESIDENTIAL CARE,13-Mar-17,5844.60,CMG HOMES LTD,Invoice
ASC,SOCIAL SERVICES,PRIVATE,Revenue,EXTERNAL RESIDENTIAL CARE,13-Mar-17,4059.04,CMG HOMES LTD,Invoice
ASC,SOCIAL SERVICES,PRIVATE,Revenue,EXTERNAL RESIDENTIAL CARE,13-Mar-17,6233.72,CMG HOMES LTD,Invoice
ASC,SOCIAL SERVICES,PRIVATE,Revenue,EXTERNAL RESIDENTIAL CARE,13-Mar-17,5762.48,CMG HOMES LTD,Invoice
ASC,SOCIAL SERVICES,PRIVATE,Revenue,EXTERNAL RESIDENTIAL CARE,13-Mar-17,8365.08,CMG HOMES LTD,Invoice
ASC,SOCIAL SERVICES,PRIVATE,Revenue,EXTERNAL RESIDENTIAL CARE,13-Mar-17,4821.28,CMG HOMES LTD,Invoice
ASC,SOCIAL SERVICES,PRIVATE,Revenue,EXTERNAL RESIDENTIAL CARE,13-Mar-17,7403.60,CMG HOMES LTD,Invoice
ASC,SOCIAL SERVICES,PRIVATE,Revenue,EXTERNAL RESIDENTIAL CARE,13-Mar-17,5055.13,CMG HOMES LTD,Invoice
ASC,SOCIAL SERVICES,PRIVATE,Revenue,EXTERNAL RESIDENTIAL CARE,29-Mar-17,8192.86,CONDOVER COLLEGE LTD,Invoice
ASC,SOCIAL SERVICES,PRIVATE,Revenue,EXTERNAL RESIDENTIAL CARE,16-Mar-17,3538.40,CSS LTD T/A  THF CARE ESTATES LTD,Invoice
ASC,SOCIAL SERVICES,PRIVATE,Revenue,EXTERNAL RESIDENTIAL CARE,24-Mar-17,4946.29,DOLPHIN HOMES LTD,Invoice
ASC,SOCIAL SERVICES,PRIVATE,Revenue,EXTERNAL RESIDENTIAL CARE,24-Mar-17,3893.95,DOLPHIN HOMES LTD,Invoice
ASC,SOCIAL SERVICES,PRIVATE,Revenue,EXTERNAL RESIDENTIAL CARE,29-Mar-17,4946.28,DOLPHIN HOMES LTD,Invoice
ASC,SOCIAL SERVICES,PRIVATE,Revenue,EXTERNAL RESIDENTIAL CARE,29-Mar-17,3893.95,DOLPHIN HOMES LTD,Invoice
ASC,SOCIAL SERVICES,PRIVATE,Revenue,EXTERNAL RESIDENTIAL CARE,29-Mar-17,4057.98,DOWNING (CHERTSEY ROAD) LTD,Invoice
ASC,SOCIAL SERVICES,PRIVATE,Revenue,EXTERNAL RESIDENTIAL CARE,14-Mar-17,5980.80,ENHAM,Invoice
ASC,SOCIAL SERVICES,PRIVATE,Revenue,EXTERNAL RESIDENTIAL CARE,23-Mar-17,5135.40,ESSEX CARE CONSORTIUM,Invoice
ASC,SOCIAL SERVICES,PRIVATE,Revenue,EXTERNAL RESIDENTIAL CARE,23-Mar-17,10189.32,EVERGREEN PARTNERSHIP,Invoice
ASC,SOCIAL SERVICES,PRIVATE,Revenue,EXTERNAL RESIDENTIAL CARE,29-Mar-17,8103.85,FIRCROFT,Invoice
ASC,SOCIAL SERVICES,PRIVATE,Revenue,EXTERNAL RESIDENTIAL CARE,29-Mar-17,7845.98,FIRCROFT,Invoice
ASC,SOCIAL SERVICES,PRIVATE,Revenue,EXTERNAL RESIDENTIAL CARE,15-Mar-17,4522.82,FLORENCE AVENUE CARE HOME,Invoice
ASC,SOCIAL SERVICES,PRIVATE,Revenue,EXTERNAL RESIDENTIAL CARE,29-Mar-17,4869.75,FRANCES TAYLOR FOUNDATION,Invoice
ASC,SOCIAL SERVICES,PRIVATE,Revenue,EXTERNAL RESIDENTIAL CARE,29-Mar-17,4373.87,FRANCES TAYLOR FOUNDATION,Invoice
ASC,SOCIAL SERVICES,PRIVATE,Revenue,EXTERNAL RESIDENTIAL CARE,29-Mar-17,4220.48,FRANCES TAYLOR FOUNDATION,Invoice
ASC,SOCIAL SERVICES,PRIVATE,Revenue,EXTERNAL RESIDENTIAL CARE,02-Mar-17,2290.24,FREEWAYS TRUST LTD,Invoice
ASC,SOCIAL SERVICES,PRIVATE,Revenue,EXTERNAL RESIDENTIAL CARE,24-Mar-17,2306.04,FREEWAYS TRUST LTD,Invoice
ASC,SOCIAL SERVICES,PRIVATE,Revenue,EXTERNAL RESIDENTIAL CARE,29-Mar-17,6753.66,GLENCARE GROUP,Invoice
ASC,SOCIAL SERVICES,PRIVATE,Revenue,EXTERNAL RESIDENTIAL CARE,23-Mar-17,2774.84,HASTINGS & BEXHILL MENCAP SOCIETY,Invoice
ASC,SOCIAL SERVICES,PRIVATE,Revenue,EXTERNAL RESIDENTIAL CARE,23-Mar-17,3750.80,HAYDON PARK LODGE LTD,Invoice
ASC,SOCIAL SERVICES,PRIVATE,Revenue,EXTERNAL RESIDENTIAL CARE,29-Mar-17,3750.80,HAYDON PARK LODGE LTD,Invoice
ASC,SOCIAL SERVICES,PRIVATE,Revenue,EXTERNAL RESIDENTIAL CARE,02-Mar-17,7636.72,HEALTHLINC INDIVIDUAL CARE,Invoice
ASC,SOCIAL SERVICES,PRIVATE,Revenue,EXTERNAL RESIDENTIAL CARE,29-Mar-17,8454.94,HEALTHLINC INDIVIDUAL CARE,Invoice
ASC,SOCIAL SERVICES,PRIVATE,Revenue,EXTERNAL RESIDENTIAL CARE,29-Mar-17,7239.32,HEATHCOTES(SOUTHERN)LTD,Invoice
ASC,SOCIAL SERVICES,PRIVATE,Revenue,EXTERNAL RESIDENTIAL CARE,29-Mar-17,2589.35,HEYWOODS GRANGE LTD,Invoice
ASC,SOCIAL SERVICES,PRIVATE,Revenue,EXTERNAL RESIDENTIAL CARE,02-Mar-17,11505.60,ILG LTD,Invoice
ASC,SOCIAL SERVICES,PRIVATE,Revenue,EXTERNAL RESIDENTIAL CARE,21-Mar-17,5058.97,IN CHORUS LTD,Invoice
ASC,SOCIAL SERVICES,PRIVATE,Revenue,EXTERNAL RESIDENTIAL CARE,21-Mar-17,4056.00,KENILWORTH RESIDENTIAL HOME,Invoice
ASC,SOCIAL SERVICES,PRIVATE,Revenue,EXTERNAL RESIDENTIAL CARE,21-Mar-17,4233.04,KENILWORTH RESIDENTIAL HOME,Invoice
ASC,SOCIAL SERVICES,PRIVATE,Revenue,EXTERNAL RESIDENTIAL CARE,15-Mar-17,6315.12,KEYS HILL PARK LIMITED,Invoice
ASC,SOCIAL SERVICES,PRIVATE,Revenue,EXTERNAL RESIDENTIAL CARE,02-Mar-17,11134.88,KISIMUL GROUP LTD,Invoice
ASC,SOCIAL SERVICES,PRIVATE,Revenue,EXTERNAL RESIDENTIAL CARE,24-Mar-17,3786.08,LAETUS LODGE,Invoice
ASC,SOCIAL SERVICES,PRIVATE,Revenue,EXTERNAL RESIDENTIAL CARE,24-Mar-17,6139.12,LAETUS LODGE,Invoice
ASC,SOCIAL SERVICES,PRIVATE,Revenue,EXTERNAL RESIDENTIAL CARE,24-Mar-17,3694.80,LAETUS LODGE,Invoice
ASC,SOCIAL SERVICES,PRIVATE,Revenue,EXTERNAL RESIDENTIAL CARE,24-Mar-17,4825.76,LAETUS LODGE,Invoice
ASC,SOCIAL SERVICES,PRIVATE,Revenue,EXTERNAL RESIDENTIAL CARE,24-Mar-17,5277.24,LAETUS LODGE,Invoice
ASC,SOCIAL SERVICES,PRIVATE,Revenue,EXTERNAL RESIDENTIAL CARE,24-Mar-17,7502.16,LAETUS LODGE,Invoice
ASC,SOCIAL SERVICES,PRIVATE,Revenue,EXTERNAL RESIDENTIAL CARE,24-Mar-17,6236.68,LAETUS LODGE,Invoice
ASC,SOCIAL SERVICES,PRIVATE,Revenue,EXTERNAL RESIDENTIAL CARE,29-Mar-17,3395.03,LARKFIELD HALL LTD T/A PEPENBURY,Invoice
ASC,SOCIAL SERVICES,PRIVATE,Revenue,EXTERNAL RESIDENTIAL CARE,08-Mar-17,5823.80,LEONARD CHESHIRE,Invoice
ASC,SOCIAL SERVICES,PRIVATE,Revenue,EXTERNAL RESIDENTIAL CARE,08-Mar-17,3937.92,LEONARD CHESHIRE,Invoice
ASC,SOCIAL SERVICES,PRIVATE,Revenue,EXTERNAL RESIDENTIAL CARE,08-Mar-17,4247.52,LEONARD CHESHIRE,Invoice
ASC,SOCIAL SERVICES,PRIVATE,Revenue,EXTERNAL RESIDENTIAL CARE,28-Mar-17,2395.60,LIVABILITY,Invoice
ASC,SOCIAL SERVICES,PRIVATE,Revenue,EXTERNAL RESIDENTIAL CARE,28-Mar-17,2395.60,LIVABILITY,Invoice
ASC,SOCIAL SERVICES,PRIVATE,Revenue,EXTERNAL RESIDENTIAL CARE,24-Mar-17,7472.10,LONDON CARE PARTNERSHIP LTD,Invoice
ASC,SOCIAL SERVICES,PRIVATE,Revenue,EXTERNAL RESIDENTIAL CARE,24-Mar-17,8356.00,LONDON CARE PARTNERSHIP LTD,Invoice
ASC,SOCIAL SERVICES,PRIVATE,Revenue,EXTERNAL RESIDENTIAL CARE,24-Mar-17,7644.00,LONDON CARE PARTNERSHIP LTD,Invoice
ASC,SOCIAL SERVICES,PRIVATE,Revenue,EXTERNAL RESIDENTIAL CARE,24-Mar-17,7744.00,LONDON CARE PARTNERSHIP LTD,Invoice
ASC,SOCIAL SERVICES,PRIVATE,Revenue,EXTERNAL RESIDENTIAL CARE,24-Mar-17,7744.00,LONDON CARE PARTNERSHIP LTD,Invoice
ASC,SOCIAL SERVICES,PRIVATE,Revenue,EXTERNAL RESIDENTIAL CARE,24-Mar-17,7944.00,LONDON CARE PARTNERSHIP LTD,Invoice
ASC,SOCIAL SERVICES,PRIVATE,Revenue,EXTERNAL RESIDENTIAL CARE,24-Mar-17,8564.00,LONDON CARE PARTNERSHIP LTD,Invoice
ASC,SOCIAL SERVICES,PRIVATE,Revenue,EXTERNAL RESIDENTIAL CARE,02-Mar-17,7849.44,LORING HALL LIMITED,Invoice
ASC,SOCIAL SERVICES,PRIVATE,Revenue,EXTERNAL RESIDENTIAL CARE,29-Mar-17,7849.44,LORING HALL LIMITED,Invoice
ASC,SOCIAL SERVICES,PRIVATE,Revenue,EXTERNAL RESIDENTIAL CARE,02-Mar-17,4645.88,LOTUS CARE HOME LTD,Invoice
ASC,SOCIAL SERVICES,PRIVATE,Revenue,EXTERNAL RESIDENTIAL CARE,29-Mar-17,4645.88,LOTUS CARE HOME LTD,Invoice
ASC,SOCIAL SERVICES,PRIVATE,Revenue,EXTERNAL RESIDENTIAL CARE,24-Mar-17,11556.16,LOVING CARE LTD,Invoice
ASC,SOCIAL SERVICES,PRIVATE,Revenue,EXTERNAL RESIDENTIAL CARE,24-Mar-17,11549.40,LOVING CARE LTD,Invoice
ASC,SOCIAL SERVICES,PRIVATE,Revenue,EXTERNAL RESIDENTIAL CARE,24-Mar-17,11237.60,LOVING CARE LTD,Invoice
ASC,SOCIAL SERVICES,PRIVATE,Revenue,EXTERNAL RESIDENTIAL CARE,24-Mar-17,11507.76,LOVING CARE LTD,Invoice
ASC,SOCIAL SERVICES,PRIVATE,Revenue,EXTERNAL RESIDENTIAL CARE,24-Mar-17,11705.40,LOVING CARE LTD,Invoice
ASC,SOCIAL SERVICES,PRIVATE,Revenue,EXTERNAL RESIDENTIAL CARE,24-Mar-17,11705.40,LOVING CARE LTD,Invoice
ASC,SOCIAL SERVICES,PRIVATE,Revenue,EXTERNAL RESIDENTIAL CARE,24-Mar-17,11248.32,LOVING CARE LTD,Invoice
ASC,SOCIAL SERVICES,PRIVATE,Revenue,EXTERNAL RESIDENTIAL CARE,09-Mar-17,5042.64,M JINGREE T/A SUNLIGHT HOUSE,Invoice
ASC,SOCIAL SERVICES,PRIVATE,Revenue,EXTERNAL RESIDENTIAL CARE,22-Mar-17,5262.60,MACINTYRE CARE,Invoice
ASC,SOCIAL SERVICES,PRIVATE,Revenue,EXTERNAL RESIDENTIAL CARE,22-Mar-17,5483.96,MACINTYRE CARE,Invoice
ASC,SOCIAL SERVICES,PRIVATE,Revenue,EXTERNAL RESIDENTIAL CARE,22-Mar-17,3797.24,MACINTYRE CARE,Invoice
ASC,SOCIAL SERVICES,PRIVATE,Revenue,EXTERNAL RESIDENTIAL CARE,22-Mar-17,3851.96,MACINTYRE CARE,Invoice
ASC,SOCIAL SERVICES,PRIVATE,Revenue,EXTERNAL RESIDENTIAL CARE,22-Mar-17,5048.84,MACINTYRE CARE,Invoice
ASC,SOCIAL SERVICES,PRIVATE,Revenue,EXTERNAL RESIDENTIAL CARE,22-Mar-17,5148.16,MACINTYRE CARE,Invoice
ASC,SOCIAL SERVICES,PRIVATE,Revenue,EXTERNAL RESIDENTIAL CARE,22-Mar-17,2310.76,MACINTYRE CARE,Invoice
ASC,SOCIAL SERVICES,PRIVATE,Revenue,EXTERNAL RESIDENTIAL CARE,22-Mar-17,8135.00,MACINTYRE CARE,Invoice
ASC,SOCIAL SERVICES,PRIVATE,Revenue,EXTERNAL RESIDENTIAL CARE,22-Mar-17,5080.88,MACINTYRE CARE,Invoice
ASC,SOCIAL SERVICES,PRIVATE,Revenue,EXTERNAL RESIDENTIAL CARE,22-Mar-17,5484.04,MACINTYRE CARE,Invoice
ASC,SOCIAL SERVICES,PRIVATE,Revenue,EXTERNAL RESIDENTIAL CARE,22-Mar-17,4956.84,MACINTYRE CARE,Invoice
ASC,SOCIAL SERVICES,PRIVATE,Revenue,EXTERNAL RESIDENTIAL CARE,22-Mar-17,4338.96,MACINTYRE CARE,Invoice
ASC,SOCIAL SERVICES,PRIVATE,Revenue,EXTERNAL RESIDENTIAL CARE,22-Mar-17,4958.24,MACINTYRE CARE,Invoice
ASC,SOCIAL SERVICES,PRIVATE,Revenue,EXTERNAL RESIDENTIAL CARE,22-Mar-17,4958.24,MACINTYRE CARE,Invoice
ASC,SOCIAL SERVICES,PRIVATE,Revenue,EXTERNAL RESIDENTIAL CARE,22-Mar-17,4956.84,MACINTYRE CARE,Invoice
ASC,SOCIAL SERVICES,PRIVATE,Revenue,EXTERNAL RESIDENTIAL CARE,22-Mar-17,5080.88,MACINTYRE CARE,Invoice
ASC,SOCIAL SERVICES,PRIVATE,Revenue,EXTERNAL RESIDENTIAL CARE,27-Mar-17,4956.84,MACINTYRE CARE,Invoice
ASC,SOCIAL SERVICES,PRIVATE,Revenue,EXTERNAL RESIDENTIAL CARE,29-Mar-17,2992.95,MENCAP,Invoice
ASC,SOCIAL SERVICES,PRIVATE,Revenue,EXTERNAL RESIDENTIAL CARE,02-Mar-17,6868.00,MIGHOUSE RESIDENTIAL CARE HOME LTD,Invoice
ASC,SOCIAL SERVICES,PRIVATE,Revenue,EXTERNAL RESIDENTIAL CARE,13-Mar-17,2994.80,MISSION CARE,Invoice
ASC,SOCIAL SERVICES,PRIVATE,Revenue,EXTERNAL RESIDENTIAL CARE,13-Mar-17,2994.80,MISSION CARE,Invoice
ASC,SOCIAL SERVICES,PRIVATE,Revenue,EXTERNAL RESIDENTIAL CARE,13-Mar-17,2994.80,MISSION CARE,Invoice
ASC,SOCIAL SERVICES,PRIVATE,Revenue,EXTERNAL RESIDENTIAL CARE,24-Mar-17,2994.80,MISSION CARE,Invoice
ASC,SOCIAL SERVICES,PRIVATE,Revenue,EXTERNAL RESIDENTIAL CARE,08-Mar-17,5553.76,NAS SERVICES LIMITED,Invoice
ASC,SOCIAL SERVICES,PRIVATE,Revenue,EXTERNAL RESIDENTIAL CARE,08-Mar-17,6485.84,NAS SERVICES LIMITED,Invoice
ASC,SOCIAL SERVICES,PRIVATE,Revenue,EXTERNAL RESIDENTIAL CARE,13-Mar-17,12804.00,NASH CARE HOMES LIMITED,Invoice
ASC,SOCIAL SERVICES,PRIVATE,Revenue,EXTERNAL RESIDENTIAL CARE,28-Mar-17,12804.00,NASH CARE HOMES LIMITED,Invoice
ASC,SOCIAL SERVICES,PRIVATE,Revenue,EXTERNAL RESIDENTIAL CARE,29-Mar-17,6303.41,NATIONAL SOCIETY FOR EPILEPSY,Invoice
ASC,SOCIAL SERVICES,PRIVATE,Revenue,EXTERNAL RESIDENTIAL CARE,14-Mar-17,7554.24,NORCREST (2000) HOME LTD,Invoice
ASC,SOCIAL SERVICES,PRIVATE,Revenue,EXTERNAL RESIDENTIAL CARE,14-Mar-17,7554.24,NORCREST (2000) HOME LTD,Invoice
ASC,SOCIAL SERVICES,PRIVATE,Revenue,EXTERNAL RESIDENTIAL CARE,13-Mar-17,6197.52,NORWOOD SCHOOLS LTD,Invoice
ASC,SOCIAL SERVICES,PRIVATE,Revenue,EXTERNAL RESIDENTIAL CARE,13-Mar-17,6454.68,NORWOOD SCHOOLS LTD,Invoice
ASC,SOCIAL SERVICES,PRIVATE,Revenue,EXTERNAL RESIDENTIAL CARE,29-Mar-17,7634.54,PATHWAY HEALTHCARE,Invoice
ASC,SOCIAL SERVICES,PRIVATE,Revenue,EXTERNAL RESIDENTIAL CARE,29-Mar-17,7184.16,PATHWAY HEALTHCARE,Invoice
ASC,SOCIAL SERVICES,PRIVATE,Revenue,EXTERNAL RESIDENTIAL CARE,23-Mar-17,3135.60,POTENSIAL LTD,Invoice
ASC,SOCIAL SERVICES,PRIVATE,Revenue,EXTERNAL RESIDENTIAL CARE,29-Mar-17,8515.44,PROGRESS HOUSING MARLOW,Invoice
ASC,SOCIAL SERVICES,PRIVATE,Revenue,EXTERNAL RESIDENTIAL CARE,24-Mar-17,3166.72,PROSPECTS,Invoice
ASC,SOCIAL SERVICES,PRIVATE,Revenue,EXTERNAL RESIDENTIAL CARE,27-Mar-17,3166.72,PROSPECTS,Invoice
ASC,SOCIAL SERVICES,PRIVATE,Revenue,EXTERNAL RESIDENTIAL CARE,27-Mar-17,3166.72,PROSPECTS,Invoice
ASC,SOCIAL SERVICES,PRIVATE,Revenue,EXTERNAL RESIDENTIAL CARE,29-Mar-17,8596.22,RALEIGH HOUSE LTD,Invoice
ASC,SOCIAL SERVICES,PRIVATE,Revenue,EXTERNAL RESIDENTIAL CARE,09-Mar-17,4062.44,RESIDENTIAL CARE SERVICES T/A FRANKLYN L,Invoice
ASC,SOCIAL SERVICES,PRIVATE,Revenue,EXTERNAL RESIDENTIAL CARE,29-Mar-17,7905.01,RESIDENTIAL COMMUNITY CARE,Invoice
ASC,SOCIAL SERVICES,PRIVATE,Revenue,EXTERNAL RESIDENTIAL CARE,29-Mar-17,7887.02,RESIDENTIAL COMMUNITY CARE,Invoice
ASC,SOCIAL SERVICES,PRIVATE,Revenue,EXTERNAL RESIDENTIAL CARE,02-Mar-17,6522.60,RIDGEWOOD CARE SERVICES LTD,Invoice
ASC,SOCIAL SERVICES,PRIVATE,Revenue,EXTERNAL RESIDENTIAL CARE,22-Mar-17,3766.44,RIDGEWOOD CARE SERVICES LTD,Invoice
ASC,SOCIAL SERVICES,PRIVATE,Revenue,EXTERNAL RESIDENTIAL CARE,28-Mar-17,3573.60,RIDGEWOOD CARE SERVICES LTD,Invoice
ASC,SOCIAL SERVICES,PRIVATE,Revenue,EXTERNAL RESIDENTIAL CARE,28-Mar-17,6538.60,RIDGEWOOD CARE SERVICES LTD,Invoice
ASC,SOCIAL SERVICES,PRIVATE,Revenue,EXTERNAL RESIDENTIAL CARE,13-Mar-17,6162.48,ROYAL MENCAP SOCIETY,Invoice
ASC,SOCIAL SERVICES,PRIVATE,Revenue,EXTERNAL RESIDENTIAL CARE,13-Mar-17,4181.68,ROYAL MENCAP SOCIETY,Invoice
ASC,SOCIAL SERVICES,PRIVATE,Revenue,EXTERNAL RESIDENTIAL CARE,24-Mar-17,2499.08,SANCTUARY HOME CARE LTD,Invoice
ASC,SOCIAL SERVICES,PRIVATE,Revenue,EXTERNAL RESIDENTIAL CARE,09-Mar-17,3206.42,SAXON COURT,Invoice
ASC,SOCIAL SERVICES,PRIVATE,Revenue,EXTERNAL RESIDENTIAL CARE,09-Mar-17,2896.12,SAXON COURT,Invoice
ASC,SOCIAL SERVICES,PRIVATE,Revenue,EXTERNAL RESIDENTIAL CARE,29-Mar-17,3206.41,SAXON COURT,Invoice
ASC,SOCIAL SERVICES,PRIVATE,Revenue,EXTERNAL RESIDENTIAL CARE,29-Mar-17,2636.69,SCOPE,Invoice
ASC,SOCIAL SERVICES,PRIVATE,Revenue,EXTERNAL RESIDENTIAL CARE,29-Mar-17,2810.67,SCOPE,Invoice
ASC,SOCIAL SERVICES,PRIVATE,Revenue,EXTERNAL RESIDENTIAL CARE,29-Mar-17,7537.52,SEEABILITY,Invoice
ASC,SOCIAL SERVICES,PRIVATE,Revenue,EXTERNAL RESIDENTIAL CARE,29-Mar-17,8629.29,SEEABILITY,Invoice
ASC,SOCIAL SERVICES,PRIVATE,Revenue,EXTERNAL RESIDENTIAL CARE,08-Mar-17,10566.57,SEQUENCE CARE GROUP,Invoice
ASC,SOCIAL SERVICES,PRIVATE,Revenue,EXTERNAL RESIDENTIAL CARE,14-Mar-17,7729.72,SPRING LAKE,Invoice
ASC,SOCIAL SERVICES,PRIVATE,Revenue,EXTERNAL RESIDENTIAL CARE,14-Mar-17,7729.72,SPRING LAKE,Invoice
ASC,SOCIAL SERVICES,PRIVATE,Revenue,EXTERNAL RESIDENTIAL CARE,21-Mar-17,5372.00,SPRING LAKE,Invoice
ASC,SOCIAL SERVICES,PRIVATE,Revenue,EXTERNAL RESIDENTIAL CARE,21-Mar-17,5372.00,SPRING LAKE,Invoice
ASC,SOCIAL SERVICES,PRIVATE,Revenue,EXTERNAL RESIDENTIAL CARE,21-Mar-17,5372.00,SPRING LAKE,Invoice
ASC,SOCIAL SERVICES,PRIVATE,Revenue,EXTERNAL RESIDENTIAL CARE,21-Mar-17,7729.72,SPRING LAKE,Invoice
ASC,SOCIAL SERVICES,PRIVATE,Revenue,EXTERNAL RESIDENTIAL CARE,02-Mar-17,3292.35,ST MARYS RESIDENTIAL HOME,Invoice
ASC,SOCIAL SERVICES,PRIVATE,Revenue,EXTERNAL RESIDENTIAL CARE,02-Mar-17,2588.47,ST MARYS RESIDENTIAL HOME,Invoice
ASC,SOCIAL SERVICES,PRIVATE,Revenue,EXTERNAL RESIDENTIAL CARE,02-Mar-17,3749.13,ST MARYS RESIDENTIAL HOME,Invoice
ASC,SOCIAL SERVICES,PRIVATE,Revenue,EXTERNAL RESIDENTIAL CARE,29-Mar-17,3989.53,ST MARYS RESIDENTIAL HOME,Invoice
ASC,SOCIAL SERVICES,PRIVATE,Revenue,EXTERNAL RESIDENTIAL CARE,29-Mar-17,3926.01,ST MARYS RESIDENTIAL HOME,Invoice
ASC,SOCIAL SERVICES,PRIVATE,Revenue,EXTERNAL RESIDENTIAL CARE,29-Mar-17,3594.81,ST MARYS RESIDENTIAL HOME,Invoice
ASC,SOCIAL SERVICES,PRIVATE,Revenue,EXTERNAL RESIDENTIAL CARE,29-Mar-17,3737.59,ST MARYS RESIDENTIAL HOME,Invoice
ASC,SOCIAL SERVICES,PRIVATE,Revenue,EXTERNAL RESIDENTIAL CARE,29-Mar-17,3068.86,ST MARYS RESIDENTIAL HOME,Invoice
ASC,SOCIAL SERVICES,PRIVATE,Revenue,EXTERNAL RESIDENTIAL CARE,29-Mar-17,5163.37,ST MARYS RESIDENTIAL HOME,Invoice
ASC,SOCIAL SERVICES,PRIVATE,Revenue,EXTERNAL RESIDENTIAL CARE,29-Mar-17,4022.91,ST MARYS RESIDENTIAL HOME,Invoice
ASC,SOCIAL SERVICES,PRIVATE,Revenue,EXTERNAL RESIDENTIAL CARE,29-Mar-17,3607.78,ST MARYS RESIDENTIAL HOME,Invoice
ASC,SOCIAL SERVICES,PRIVATE,Revenue,EXTERNAL RESIDENTIAL CARE,29-Mar-17,3828.05,ST MARYS RESIDENTIAL HOME,Invoice
ASC,SOCIAL SERVICES,PRIVATE,Revenue,EXTERNAL RESIDENTIAL CARE,29-Mar-17,3567.66,ST MARYS RESIDENTIAL HOME,Invoice
ASC,SOCIAL SERVICES,PRIVATE,Revenue,EXTERNAL RESIDENTIAL CARE,29-Mar-17,3828.05,ST MARYS RESIDENTIAL HOME,Invoice
ASC,SOCIAL SERVICES,PRIVATE,Revenue,EXTERNAL RESIDENTIAL CARE,29-Mar-17,2329.66,ST MARYS RESIDENTIAL HOME,Invoice
ASC,SOCIAL SERVICES,PRIVATE,Revenue,EXTERNAL RESIDENTIAL CARE,28-Mar-17,5730.58,STALLCOMBE HOUSE,Invoice
ASC,SOCIAL SERVICES,PRIVATE,Revenue,EXTERNAL RESIDENTIAL CARE,28-Mar-17,3016.09,STALLCOMBE HOUSE,Invoice
ASC,SOCIAL SERVICES,PRIVATE,Revenue,EXTERNAL RESIDENTIAL CARE,28-Mar-17,5574.47,STALLCOMBE HOUSE,Invoice
ASC,SOCIAL SERVICES,PRIVATE,Revenue,EXTERNAL RESIDENTIAL CARE,29-Mar-17,5622.80,SURREY & BORDERS PARTNERSHIP NHS TRUST,Invoice
ASC,SOCIAL SERVICES,PRIVATE,Revenue,EXTERNAL RESIDENTIAL CARE,29-Mar-17,8982.39,SURREY & BORDERS PARTNERSHIP NHS TRUST,Invoice
ASC,SOCIAL SERVICES,PRIVATE,Revenue,EXTERNAL RESIDENTIAL CARE,29-Mar-17,13801.00,SURREY & BORDERS PARTNERSHIP NHS TRUST,Invoice
ASC,SOCIAL SERVICES,PRIVATE,Revenue,EXTERNAL RESIDENTIAL CARE,03-Mar-17,6234.50,SUSSEX AUTISTIC COMMUNITY TRUST(CARE SER,Invoice
ASC,SOCIAL SERVICES,PRIVATE,Revenue,EXTERNAL RESIDENTIAL CARE,14-Mar-17,5631.16,SUSSEX AUTISTIC COMMUNITY TRUST(CARE SER,Invoice
ASC,SOCIAL SERVICES,PRIVATE,Revenue,EXTERNAL RESIDENTIAL CARE,09-Mar-17,6408.96,THE BRANDON TRUST,Invoice
ASC,SOCIAL SERVICES,PRIVATE,Revenue,EXTERNAL RESIDENTIAL CARE,22-Mar-17,6408.96,THE BRANDON TRUST,Invoice
ASC,SOCIAL SERVICES,PRIVATE,Revenue,EXTERNAL RESIDENTIAL CARE,02-Mar-17,5594.12,THE CHESTNUTS,Invoice
ASC,SOCIAL SERVICES,PRIVATE,Revenue,EXTERNAL RESIDENTIAL CARE,29-Mar-17,5700.78,THE COMMUNITY CARE COMPANY UK LTD,Invoice
ASC,SOCIAL SERVICES,PRIVATE,Revenue,EXTERNAL RESIDENTIAL CARE,29-Mar-17,7193.25,THE COMMUNITY CARE COMPANY UK LTD,Invoice
ASC,SOCIAL SERVICES,PRIVATE,Revenue,EXTERNAL RESIDENTIAL CARE,29-Mar-17,6062.72,THE COMMUNITY CARE COMPANY UK LTD,Invoice
ASC,SOCIAL SERVICES,PRIVATE,Revenue,EXTERNAL RESIDENTIAL CARE,29-Mar-17,7275.22,THE COMMUNITY CARE COMPANY UK LTD,Invoice
ASC,SOCIAL SERVICES,PRIVATE,Revenue,EXTERNAL RESIDENTIAL CARE,29-Mar-17,6250.58,THE COMMUNITY CARE COMPANY UK LTD,Invoice
ASC,SOCIAL SERVICES,PRIVATE,Revenue,EXTERNAL RESIDENTIAL CARE,29-Mar-17,7762.93,THE DISABILITIES TRUST,Invoice
ASC,SOCIAL SERVICES,PRIVATE,Revenue,EXTERNAL RESIDENTIAL CARE,22-Mar-17,2763.08,THE HOME FARM TRUST LTD,Invoice
ASC,SOCIAL SERVICES,PRIVATE,Revenue,EXTERNAL RESIDENTIAL CARE,22-Mar-17,2491.76,THE HOME FARM TRUST LTD,Invoice
ASC,SOCIAL SERVICES,PRIVATE,Revenue,EXTERNAL RESIDENTIAL CARE,28-Mar-17,2763.08,THE HOME FARM TRUST LTD,Invoice
ASC,SOCIAL SERVICES,PRIVATE,Revenue,EXTERNAL RESIDENTIAL CARE,28-Mar-17,3734.16,THE HOME FARM TRUST LTD,Invoice
ASC,SOCIAL SERVICES,PRIVATE,Revenue,EXTERNAL RESIDENTIAL CARE,23-Mar-17,3985.04,THE LEO TRUST,Invoice
ASC,SOCIAL SERVICES,PRIVATE,Revenue,EXTERNAL RESIDENTIAL CARE,29-Mar-17,3120.74,THE MANOR HOUSE,Invoice
ASC,SOCIAL SERVICES,PRIVATE,Revenue,EXTERNAL RESIDENTIAL CARE,06-Mar-17,9223.48,THE MAPLES,Invoice
ASC,SOCIAL SERVICES,PRIVATE,Revenue,EXTERNAL RESIDENTIAL CARE,08-Mar-17,7633.23,THE REGARD PARTNERSHIP,Invoice
ASC,SOCIAL SERVICES,PRIVATE,Revenue,EXTERNAL RESIDENTIAL CARE,08-Mar-17,7185.08,THE REGARD PARTNERSHIP,Invoice
ASC,SOCIAL SERVICES,PRIVATE,Revenue,EXTERNAL RESIDENTIAL CARE,08-Mar-17,7287.05,THE REGARD PARTNERSHIP,Invoice
ASC,SOCIAL SERVICES,PRIVATE,Revenue,EXTERNAL RESIDENTIAL CARE,08-Mar-17,7203.92,THE REGARD PARTNERSHIP,Invoice
ASC,SOCIAL SERVICES,PRIVATE,Revenue,EXTERNAL RESIDENTIAL CARE,08-Mar-17,8029.67,THE REGARD PARTNERSHIP,Invoice
ASC,SOCIAL SERVICES,PRIVATE,Revenue,EXTERNAL RESIDENTIAL CARE,14-Mar-17,6894.52,THE REGARD PARTNERSHIP,Invoice
ASC,SOCIAL SERVICES,PRIVATE,Revenue,EXTERNAL RESIDENTIAL CARE,14-Mar-17,6489.76,THE REGARD PARTNERSHIP,Invoice
ASC,SOCIAL SERVICES,PRIVATE,Revenue,EXTERNAL RESIDENTIAL CARE,14-Mar-17,6581.84,THE REGARD PARTNERSHIP,Invoice
ASC,SOCIAL SERVICES,PRIVATE,Revenue,EXTERNAL RESIDENTIAL CARE,14-Mar-17,6506.76,THE REGARD PARTNERSHIP,Invoice
ASC,SOCIAL SERVICES,PRIVATE,Revenue,EXTERNAL RESIDENTIAL CARE,14-Mar-17,7252.60,THE REGARD PARTNERSHIP,Invoice
ASC,SOCIAL SERVICES,PRIVATE,Revenue,EXTERNAL RESIDENTIAL CARE,21-Mar-17,4434.40,THE WELL HOUSE,Invoice
ASC,SOCIAL SERVICES,PRIVATE,Revenue,EXTERNAL RESIDENTIAL CARE,23-Mar-17,4664.20,THE WELL HOUSE,Invoice
ASC,SOCIAL SERVICES,PRIVATE,Revenue,EXTERNAL RESIDENTIAL CARE,29-Mar-17,10177.43,THE WEST OF ENGLAND SCHOOL & COLLEGE,Invoice
ASC,SOCIAL SERVICES,PRIVATE,Revenue,EXTERNAL RESIDENTIAL CARE,29-Mar-17,8680.13,THE WEST OF ENGLAND SCHOOL & COLLEGE,Invoice
ASC,SOCIAL SERVICES,PRIVATE,Revenue,EXTERNAL RESIDENTIAL CARE,24-Mar-17,7447.56,TOTTERDOWN,Invoice
ASC,SOCIAL SERVICES,PRIVATE,Revenue,EXTERNAL RESIDENTIAL CARE,24-Mar-17,3696.92,TOTTERDOWN,Invoice
ASC,SOCIAL SERVICES,PRIVATE,Revenue,EXTERNAL RESIDENTIAL CARE,29-Mar-17,5389.61,TRACS,Invoice
ASC,SOCIAL SERVICES,PRIVATE,Revenue,EXTERNAL RESIDENTIAL CARE,23-Mar-17,3162.56,UNITED RESPONSE,Invoice
ASC,SOCIAL SERVICES,PRIVATE,Revenue,EXTERNAL RESIDENTIAL CARE,02-Mar-17,5651.14,VOYAGE CARE LTD,Invoice
ASC,SOCIAL SERVICES,PRIVATE,Revenue,EXTERNAL RESIDENTIAL CARE,02-Mar-17,5664.69,VOYAGE CARE LTD,Invoice
ASC,SOCIAL SERVICES,PRIVATE,Revenue,EXTERNAL RESIDENTIAL CARE,02-Mar-17,5773.44,VOYAGE CARE LTD,Invoice
ASC,SOCIAL SERVICES,PRIVATE,Revenue,EXTERNAL RESIDENTIAL CARE,02-Mar-17,6607.68,VOYAGE CARE LTD,Invoice
ASC,SOCIAL SERVICES,PRIVATE,Revenue,EXTERNAL RESIDENTIAL CARE,02-Mar-17,7922.04,VOYAGE CARE LTD,Invoice
ASC,SOCIAL SERVICES,PRIVATE,Revenue,EXTERNAL RESIDENTIAL CARE,21-Mar-17,7231.54,VOYAGE CARE LTD,Invoice
ASC,SOCIAL SERVICES,PRIVATE,Revenue,EXTERNAL RESIDENTIAL CARE,23-Mar-17,4835.04,WHITE ROSE CARE,Invoice
ASC,SOCIAL SERVICES,PRIVATE,Revenue,EXTERNAL RESIDENTIAL CARE,23-Mar-17,4418.63,WHITMORE VALE HOUSING ASSOCIATION LTD,Invoice
ASC,SOCIAL SERVICES,PRIVATE,Revenue,EXTERNAL RESIDENTIAL CARE,06-Mar-17,5599.36,WINSLOW COURT,Invoice
ASC,SOCIAL SERVICES,PRIVATE,Revenue,EXTERNAL RESIDENTIAL CARE,06-Mar-17,5807.83,WINSLOW COURT,Invoice
ASC,SOCIAL SERVICES,PRIVATE,Revenue,EXTERNAL RESIDENTIAL CARE,16-Mar-17,5599.36,WINSLOW COURT,Invoice
ASC,SOCIAL SERVICES,PRIVATE,Revenue,EXTERNAL RESIDENTIAL CARE,16-Mar-17,5819.32,WINSLOW COURT,Invoice
ASC,SOCIAL SERVICES,PRIVATE,Revenue,EXTERNAL RESIDENTIAL CARE,29-Mar-17,5599.36,WINSLOW COURT,Invoice
ASC,SOCIAL SERVICES,PRIVATE,Revenue,EXTERNAL RESIDENTIAL CARE,29-Mar-17,5819.32,WINSLOW COURT,Invoice
ASC,SOCIAL SERVICES,PRIVATE,Revenue,EXTERNAL RESI RESPITE CARE,21-Mar-17,32910.02,RUSKIN MILL COLLEGE,Invoice
ASC,,PRIVATE,Revenue,EXTERNAL RESI RESPITE CARE,09-Mar-17,15619.00,SOUTHSIDE PARTNERSHIP,Invoice
ASC,,PRIVATE,Revenue,EXTERNAL RESI RESPITE CARE,14-Mar-17,38875.58,SOUTHSIDE PARTNERSHIP,Invoice
ASC,,PRIVATE,Revenue,EXTERNAL RESI RESPITE CARE,09-Mar-17,15619.00,SOUTHSIDE PARTNERSHIP,Invoice
ASC,,PRIVATE,Revenue,EXTERNAL RESI RESPITE CARE,22-Mar-17,38875.58,SOUTHSIDE PARTNERSHIP,Invoice
ASC,,PRIVATE,Revenue,EXTERNAL RESI RESPITE CARE,09-Mar-17,15619.00,SOUTHSIDE PARTNERSHIP,Invoice
ASC,,PRIVATE,Revenue,EXTERNAL RESI RESPITE CARE,14-Mar-17,38875.58,SOUTHSIDE PARTNERSHIP,Invoice
ASC,SOCIAL SERVICES,PRIVATE,Revenue,EXTERNAL RESI RESPITE CARE,09-Mar-17,2720.96,THE BRANDON TRUST,Invoice
ASC,SOCIAL SERVICES,PRIVATE,Revenue,EXTERNAL RESI RESPITE CARE,22-Mar-17,874.59,THE BRANDON TRUST,Invoice
ASC,SOCIAL SERVICES,PRIVATE,Revenue,EXTERNAL RESI RESPITE CARE,30-Mar-17,11475.00,VALENCE SCHOOL,Invoice
ASC,SOCIAL SERVICES,PRIVATE,Revenue,ONE TO ONE CARE,13-Mar-17,1357.44,ASHBROOK HOUSE LTD,Invoice
ASC,SOCIAL SERVICES,PRIVATE,Revenue,ONE TO ONE CARE,13-Mar-17,2630.04,ASHBROOK HOUSE LTD,Invoice
ASC,SOCIAL SERVICES,PRIVATE,Revenue,ONE TO ONE CARE,13-Mar-17,2375.52,ASHBROOK HOUSE LTD,Invoice
ASC,SOCIAL SERVICES,PRIVATE,Revenue,ONE TO ONE CARE,29-Mar-17,2630.04,ASHBROOK HOUSE LTD,Invoice
ASC,SOCIAL SERVICES,PRIVATE,Revenue,ONE TO ONE CARE,10-Mar-17,1619.00,ASIAN ELDERS SUPPORT SCHEME,Invoice
ASC,SOCIAL SERVICES,PRIVATE,Revenue,ONE TO ONE CARE,09-Mar-17,3131.52,CAMERON LODGE LIMITED,Invoice
ASC,SOCIAL SERVICES,PRIVATE,Revenue,ONE TO ONE CARE,29-Mar-17,3131.52,CAMERON LODGE LIMITED,Invoice
ASC,SOCIAL SERVICES,PRIVATE,Revenue,ONE TO ONE CARE,16-Mar-17,835.84,CSS LTD T/A  THF CARE ESTATES LTD,Invoice
ASC,SOCIAL SERVICES,PRIVATE,Revenue,ONE TO ONE CARE,29-Mar-17,2884.77,DOWNING (CHERTSEY ROAD) LTD,Invoice
ASC,SOCIAL SERVICES,PRIVATE,Revenue,ONE TO ONE CARE,02-Mar-17,177.00,FRONTIER SUPPORT SERVICES LTD,Invoice
ASC,SOCIAL SERVICES,PRIVATE,Revenue,ONE TO ONE CARE,02-Mar-17,716.24,FRONTIER SUPPORT SERVICES LTD,Invoice
ASC,SOCIAL SERVICES,PRIVATE,Revenue,ONE TO ONE CARE,02-Mar-17,500.14,FRONTIER SUPPORT SERVICES LTD,Invoice
ASC,SOCIAL SERVICES,PRIVATE,Revenue,ONE TO ONE CARE,29-Mar-17,548.15,LARKFIELD HALL LTD T/A PEPENBURY,Invoice
ASC,SOCIAL SERVICES,PRIVATE,Revenue,ONE TO ONE CARE,03-Mar-17,547.60,LIFEWAYS COMMUNITY CARE LTD,Invoice
ASC,SOCIAL SERVICES,PRIVATE,Revenue,ONE TO ONE CARE,28-Mar-17,547.60,LIFEWAYS COMMUNITY CARE LTD,Invoice
ASC,SOCIAL SERVICES,PRIVATE,Revenue,ONE TO ONE CARE,22-Mar-17,1364.04,MACINTYRE CARE,Invoice
ASC,SOCIAL SERVICES,PRIVATE,Revenue,ONE TO ONE CARE,22-Mar-17,1364.04,MACINTYRE CARE,Invoice
ASC,SOCIAL SERVICES,PRIVATE,Revenue,ONE TO ONE CARE,22-Mar-17,1928.52,MACINTYRE CARE,Invoice
ASC,SOCIAL SERVICES,PRIVATE,Revenue,ONE TO ONE CARE,22-Mar-17,1364.04,MACINTYRE CARE,Invoice
ASC,SOCIAL SERVICES,PRIVATE,Revenue,ONE TO ONE CARE,22-Mar-17,701.52,MACINTYRE CARE,Invoice
ASC,SOCIAL SERVICES,PRIVATE,Revenue,ONE TO ONE CARE,08-Mar-17,3266.40,METROPOLITAN HOUSING TRUST,Invoice
ASC,SOCIAL SERVICES,PRIVATE,Revenue,ONE TO ONE CARE,08-Mar-17,4456.38,METROPOLITAN HOUSING TRUST,Invoice
ASC,SOCIAL SERVICES,PRIVATE,Revenue,ONE TO ONE CARE,27-Mar-17,552.24,METROPOLITAN HOUSING TRUST,Invoice
ASC,SOCIAL SERVICES,PRIVATE,Revenue,ONE TO ONE CARE,27-Mar-17,2322.24,METROPOLITAN HOUSING TRUST,Invoice
ASC,SOCIAL SERVICES,PRIVATE,Revenue,ONE TO ONE CARE,27-Mar-17,1699.20,METROPOLITAN HOUSING TRUST,Invoice
ASC,SOCIAL SERVICES,PRIVATE,Revenue,ONE TO ONE CARE,27-Mar-17,1844.64,METROPOLITAN HOUSING TRUST,Invoice
ASC,SOCIAL SERVICES,PRIVATE,Revenue,ONE TO ONE CARE,27-Mar-17,2049.60,METROPOLITAN HOUSING TRUST,Invoice
ASC,SOCIAL SERVICES,PRIVATE,Revenue,ONE TO ONE CARE,06-Mar-17,2133.60,RAINBOW MEDICAL SERVICES,Invoice
ASC,SOCIAL SERVICES,PRIVATE,Revenue,ONE TO ONE CARE,21-Mar-17,1620.84,SPRING LAKE,Invoice
ASC,SOCIAL SERVICES,PRIVATE,Revenue,ONE TO ONE CARE,21-Mar-17,1620.84,SPRING LAKE,Invoice
ASC,SOCIAL SERVICES,PRIVATE,Revenue,ONE TO ONE CARE,21-Mar-17,1620.84,SPRING LAKE,Invoice
ASC,SOCIAL SERVICES,PRIVATE,Revenue,ONE TO ONE CARE,29-Mar-17,698.12,ST MARYS RESIDENTIAL HOME,Invoice
ASC,SOCIAL SERVICES,PRIVATE,Revenue,ONE TO ONE CARE,29-Mar-17,653.39,ST MARYS RESIDENTIAL HOME,Invoice
ASC,SOCIAL SERVICES,PRIVATE,Revenue,ONE TO ONE CARE,28-Mar-17,2497.36,STALLCOMBE HOUSE,Invoice
ASC,SOCIAL SERVICES,PRIVATE,Revenue,ONE TO ONE CARE,08-Mar-17,331.20,THE BRANDON TRUST,Invoice
ASC,SOCIAL SERVICES,PRIVATE,Revenue,ONE TO ONE CARE,08-Mar-17,1987.20,THE BRANDON TRUST,Invoice
ASC,SOCIAL SERVICES,PRIVATE,Revenue,ONE TO ONE CARE,08-Mar-17,1312.00,THE BRANDON TRUST,Invoice
ASC,SOCIAL SERVICES,PRIVATE,Revenue,ONE TO ONE CARE,08-Mar-17,2450.88,THE BRANDON TRUST,Invoice
ASC,SOCIAL SERVICES,PRIVATE,Revenue,ONE TO ONE CARE,09-Mar-17,568.44,THE BRANDON TRUST,Invoice
ASC,SOCIAL SERVICES,PRIVATE,Revenue,ONE TO ONE CARE,09-Mar-17,331.20,THE BRANDON TRUST,Invoice
ASC,SOCIAL SERVICES,PRIVATE,Revenue,ONE TO ONE CARE,09-Mar-17,331.20,THE BRANDON TRUST,Invoice
ASC,SOCIAL SERVICES,PRIVATE,Revenue,ONE TO ONE CARE,29-Mar-17,331.20,THE BRANDON TRUST,Invoice
ASC,SOCIAL SERVICES,PRIVATE,Revenue,ONE TO ONE CARE,29-Mar-17,1987.20,THE BRANDON TRUST,Invoice
ASC,SOCIAL SERVICES,PRIVATE,Revenue,ONE TO ONE CARE,29-Mar-17,1312.00,THE BRANDON TRUST,Invoice
ASC,SOCIAL SERVICES,PRIVATE,Revenue,ONE TO ONE CARE,29-Mar-17,2450.88,THE BRANDON TRUST,Invoice
ASC,SOCIAL SERVICES,PRIVATE,Revenue,ONE TO ONE CARE,29-Mar-17,568.44,THE BRANDON TRUST,Invoice
ASC,SOCIAL SERVICES,PRIVATE,Revenue,ONE TO ONE CARE,29-Mar-17,331.20,THE BRANDON TRUST,Invoice
ASC,SOCIAL SERVICES,PRIVATE,Revenue,ONE TO ONE CARE,29-Mar-17,331.20,THE BRANDON TRUST,Invoice
ASC,SOCIAL SERVICES,PRIVATE,Revenue,ONE TO ONE CARE,29-Mar-17,1172.55,THE COMMUNITY CARE COMPANY UK LTD,Invoice
ASC,SOCIAL SERVICES,PRIVATE,Revenue,ONE TO ONE CARE,29-Mar-17,1337.25,THE COMMUNITY CARE COMPANY UK LTD,Invoice
ASC,SOCIAL SERVICES,PRIVATE,Revenue,ONE TO ONE CARE,02-Mar-17,960.00,VOYAGE CARE LTD,Invoice
ASC,SOCIAL SERVICES,VOL ASS,Revenue,SUPPORTED HOUSING PROGRAMME,21-Mar-17,8152.00,A NEW LEAF,Invoice
ASC,SOCIAL SERVICES,VOL ASS,Revenue,SUPPORTED HOUSING PROGRAMME,23-Mar-17,6124.00,A NEW LEAF,Invoice
ASC,SOCIAL SERVICES,VOL ASS,Revenue,SUPPORTED HOUSING PROGRAMME,23-Mar-17,7200.00,A NEW LEAF,Invoice
ASC,SOCIAL SERVICES,VOL ASS,Revenue,SUPPORTED HOUSING PROGRAMME,24-Mar-17,1562.86,A NEW LEAF,Invoice
ASC,SOCIAL SERVICES,VOL ASS,Revenue,SUPPORTED HOUSING PROGRAMME,24-Mar-17,8152.00,A NEW LEAF,Invoice
ASC,SOCIAL SERVICES,VOL ASS,Revenue,SUPPORTED HOUSING PROGRAMME,24-Mar-17,8640.00,A NEW LEAF,Invoice
ASC,SOCIAL SERVICES,VOL ASS,Revenue,SUPPORTED HOUSING PROGRAMME,16-Mar-17,1687.76,C M CARE LTD,Invoice
ASC,SOCIAL SERVICES,VOL ASS,Revenue,SUPPORTED HOUSING PROGRAMME,29-Mar-17,1687.76,C M CARE LTD,Invoice
ASC,SOCIAL SERVICES,VOL ASS,Revenue,SUPPORTED HOUSING PROGRAMME,02-Mar-17,7972.24,CHOICE SUPPORT,Invoice
ASC,SOCIAL SERVICES,VOL ASS,Revenue,SUPPORTED HOUSING PROGRAMME,28-Mar-17,7972.24,CHOICE SUPPORT,Invoice
ASC,SOCIAL SERVICES,VOL ASS,Revenue,SUPPORTED HOUSING PROGRAMME,24-Mar-17,7876.84,CURANS CARE LTD,Invoice
ASC,SOCIAL SERVICES,VOL ASS,Revenue,SUPPORTED HOUSING PROGRAMME,24-Mar-17,3740.12,CURANS CARE LTD,Invoice
ASC,SOCIAL SERVICES,VOL ASS,Revenue,SUPPORTED HOUSING PROGRAMME,24-Mar-17,7882.08,CURANS CARE LTD,Invoice
ASC,SOCIAL SERVICES,VOL ASS,Revenue,SUPPORTED HOUSING PROGRAMME,24-Mar-17,6793.36,CURANS CARE LTD,Invoice
ASC,SOCIAL SERVICES,VOL ASS,Revenue,SUPPORTED HOUSING PROGRAMME,02-Mar-17,1697.72,FRONTIER SUPPORT SERVICES LTD,Invoice
ASC,SOCIAL SERVICES,VOL ASS,Revenue,SUPPORTED HOUSING PROGRAMME,02-Mar-17,1535.60,FRONTIER SUPPORT SERVICES LTD,Invoice
ASC,SOCIAL SERVICES,VOL ASS,Revenue,SUPPORTED HOUSING PROGRAMME,02-Mar-17,1019.20,FRONTIER SUPPORT SERVICES LTD,Invoice
ASC,SOCIAL SERVICES,VOL ASS,Revenue,SUPPORTED HOUSING PROGRAMME,02-Mar-17,1543.72,FRONTIER SUPPORT SERVICES LTD,Invoice
ASC,SOCIAL SERVICES,VOL ASS,Revenue,SUPPORTED HOUSING PROGRAMME,02-Mar-17,15981.92,FRONTIER SUPPORT SERVICES LTD,Invoice
ASC,SOCIAL SERVICES,VOL ASS,Revenue,SUPPORTED HOUSING PROGRAMME,02-Mar-17,1361.20,FRONTIER SUPPORT SERVICES LTD,Invoice
ASC,SOCIAL SERVICES,VOL ASS,Revenue,SUPPORTED HOUSING PROGRAMME,02-Mar-17,1251.12,FRONTIER SUPPORT SERVICES LTD,Invoice
ASC,SOCIAL SERVICES,VOL ASS,Revenue,SUPPORTED HOUSING PROGRAMME,02-Mar-17,1105.20,FRONTIER SUPPORT SERVICES LTD,Invoice
ASC,SOCIAL SERVICES,VOL ASS,Revenue,SUPPORTED HOUSING PROGRAMME,02-Mar-17,1363.36,FRONTIER SUPPORT SERVICES LTD,Invoice
ASC,SOCIAL SERVICES,VOL ASS,Revenue,SUPPORTED HOUSING PROGRAMME,02-Mar-17,1877.92,FRONTIER SUPPORT SERVICES LTD,Invoice
ASC,SOCIAL SERVICES,VOL ASS,Revenue,SUPPORTED HOUSING PROGRAMME,24-Mar-17,7914.28,INCLUSIVE CARE SUPPORT,Invoice
ASC,SOCIAL SERVICES,VOL ASS,Revenue,SUPPORTED HOUSING PROGRAMME,15-Mar-17,5454.68,INDEPENDENCE HOMES LTD,Invoice
ASC,SOCIAL SERVICES,VOL ASS,Revenue,SUPPORTED HOUSING PROGRAMME,15-Mar-17,5710.84,INDEPENDENCE HOMES LTD,Invoice
ASC,SOCIAL SERVICES,VOL ASS,Revenue,SUPPORTED HOUSING PROGRAMME,24-Mar-17,1700.00,LAETUS LODGE,Invoice
ASC,SOCIAL SERVICES,VOL ASS,Revenue,SUPPORTED HOUSING PROGRAMME,24-Mar-17,5645.88,LAETUS LODGE,Invoice
ASC,SOCIAL SERVICES,VOL ASS,Revenue,SUPPORTED HOUSING PROGRAMME,24-Mar-17,21730.12,LAETUS LODGE,Invoice
ASC,SOCIAL SERVICES,VOL ASS,Revenue,SUPPORTED HOUSING PROGRAMME,03-Mar-17,3885.44,LIFEWAYS COMMUNITY CARE LTD,Invoice
ASC,SOCIAL SERVICES,VOL ASS,Revenue,SUPPORTED HOUSING PROGRAMME,03-Mar-17,2596.04,LIFEWAYS COMMUNITY CARE LTD,Invoice
ASC,SOCIAL SERVICES,VOL ASS,Revenue,SUPPORTED HOUSING PROGRAMME,03-Mar-17,2166.24,LIFEWAYS COMMUNITY CARE LTD,Invoice
ASC,SOCIAL SERVICES,VOL ASS,Revenue,SUPPORTED HOUSING PROGRAMME,03-Mar-17,2227.64,LIFEWAYS COMMUNITY CARE LTD,Invoice
ASC,SOCIAL SERVICES,VOL ASS,Revenue,SUPPORTED HOUSING PROGRAMME,03-Mar-17,1982.04,LIFEWAYS COMMUNITY CARE LTD,Invoice
ASC,SOCIAL SERVICES,VOL ASS,Revenue,SUPPORTED HOUSING PROGRAMME,03-Mar-17,2289.04,LIFEWAYS COMMUNITY CARE LTD,Invoice
ASC,SOCIAL SERVICES,VOL ASS,Revenue,SUPPORTED HOUSING PROGRAMME,03-Mar-17,1982.04,LIFEWAYS COMMUNITY CARE LTD,Invoice
ASC,SOCIAL SERVICES,VOL ASS,Revenue,SUPPORTED HOUSING PROGRAMME,03-Mar-17,3885.44,LIFEWAYS COMMUNITY CARE LTD,Invoice
ASC,SOCIAL SERVICES,VOL ASS,Revenue,SUPPORTED HOUSING PROGRAMME,03-Mar-17,2411.84,LIFEWAYS COMMUNITY CARE LTD,Invoice
ASC,SOCIAL SERVICES,VOL ASS,Revenue,SUPPORTED HOUSING PROGRAMME,03-Mar-17,1736.44,LIFEWAYS COMMUNITY CARE LTD,Invoice
ASC,SOCIAL SERVICES,VOL ASS,Revenue,SUPPORTED HOUSING PROGRAMME,03-Mar-17,1920.64,LIFEWAYS COMMUNITY CARE LTD,Invoice
ASC,SOCIAL SERVICES,VOL ASS,Revenue,SUPPORTED HOUSING PROGRAMME,03-Mar-17,3210.04,LIFEWAYS COMMUNITY CARE LTD,Invoice
ASC,SOCIAL SERVICES,VOL ASS,Revenue,SUPPORTED HOUSING PROGRAMME,03-Mar-17,2394.20,LIFEWAYS COMMUNITY CARE LTD,Invoice
ASC,SOCIAL SERVICES,VOL ASS,Revenue,SUPPORTED HOUSING PROGRAMME,03-Mar-17,2551.16,LIFEWAYS COMMUNITY CARE LTD,Invoice
ASC,SOCIAL SERVICES,VOL ASS,Revenue,SUPPORTED HOUSING PROGRAMME,03-Mar-17,3335.96,LIFEWAYS COMMUNITY CARE LTD,Invoice
ASC,SOCIAL SERVICES,VOL ASS,Revenue,SUPPORTED HOUSING PROGRAMME,03-Mar-17,2603.48,LIFEWAYS COMMUNITY CARE LTD,Invoice
ASC,SOCIAL SERVICES,VOL ASS,Revenue,SUPPORTED HOUSING PROGRAMME,03-Mar-17,2969.72,LIFEWAYS COMMUNITY CARE LTD,Invoice
ASC,SOCIAL SERVICES,VOL ASS,Revenue,SUPPORTED HOUSING PROGRAMME,03-Mar-17,2341.88,LIFEWAYS COMMUNITY CARE LTD,Invoice
ASC,SOCIAL SERVICES,VOL ASS,Revenue,SUPPORTED HOUSING PROGRAMME,03-Mar-17,2551.16,LIFEWAYS COMMUNITY CARE LTD,Invoice
ASC,SOCIAL SERVICES,VOL ASS,Revenue,SUPPORTED HOUSING PROGRAMME,03-Mar-17,1444.56,LIFEWAYS COMMUNITY CARE LTD,Invoice
ASC,SOCIAL SERVICES,VOL ASS,Revenue,SUPPORTED HOUSING PROGRAMME,03-Mar-17,2025.24,LIFEWAYS COMMUNITY CARE LTD,Invoice
ASC,SOCIAL SERVICES,VOL ASS,Revenue,SUPPORTED HOUSING PROGRAMME,03-Mar-17,2025.24,LIFEWAYS COMMUNITY CARE LTD,Invoice
ASC,SOCIAL SERVICES,VOL ASS,Revenue,SUPPORTED HOUSING PROGRAMME,03-Mar-17,2025.24,LIFEWAYS COMMUNITY CARE LTD,Invoice
ASC,SOCIAL SERVICES,VOL ASS,Revenue,SUPPORTED HOUSING PROGRAMME,03-Mar-17,2244.28,LIFEWAYS COMMUNITY CARE LTD,Invoice
ASC,SOCIAL SERVICES,VOL ASS,Revenue,SUPPORTED HOUSING PROGRAMME,03-Mar-17,2518.08,LIFEWAYS COMMUNITY CARE LTD,Invoice
ASC,SOCIAL SERVICES,VOL ASS,Revenue,SUPPORTED HOUSING PROGRAMME,03-Mar-17,2025.24,LIFEWAYS COMMUNITY CARE LTD,Invoice
ASC,SOCIAL SERVICES,VOL ASS,Revenue,SUPPORTED HOUSING PROGRAMME,03-Mar-17,2244.28,LIFEWAYS COMMUNITY CARE LTD,Invoice
ASC,SOCIAL SERVICES,VOL ASS,Revenue,SUPPORTED HOUSING PROGRAMME,03-Mar-17,1860.96,LIFEWAYS COMMUNITY CARE LTD,Invoice
ASC,SOCIAL SERVICES,VOL ASS,Revenue,SUPPORTED HOUSING PROGRAMME,03-Mar-17,2341.88,LIFEWAYS COMMUNITY CARE LTD,Invoice
ASC,SOCIAL SERVICES,VOL ASS,Revenue,SUPPORTED HOUSING PROGRAMME,03-Mar-17,3100.52,LIFEWAYS COMMUNITY CARE LTD,Invoice
ASC,SOCIAL SERVICES,VOL ASS,Revenue,SUPPORTED HOUSING PROGRAMME,13-Mar-17,3885.44,LIFEWAYS COMMUNITY CARE LTD,Invoice
ASC,SOCIAL SERVICES,VOL ASS,Revenue,SUPPORTED HOUSING PROGRAMME,13-Mar-17,7336.00,LIFEWAYS COMMUNITY CARE LTD,Invoice
ASC,SOCIAL SERVICES,VOL ASS,Revenue,SUPPORTED HOUSING PROGRAMME,28-Mar-17,7336.00,LIFEWAYS COMMUNITY CARE LTD,Invoice
ASC,SOCIAL SERVICES,VOL ASS,Revenue,SUPPORTED HOUSING PROGRAMME,28-Mar-17,3100.52,LIFEWAYS COMMUNITY CARE LTD,Invoice
ASC,SOCIAL SERVICES,VOL ASS,Revenue,SUPPORTED HOUSING PROGRAMME,28-Mar-17,3885.44,LIFEWAYS COMMUNITY CARE LTD,Invoice
ASC,SOCIAL SERVICES,VOL ASS,Revenue,SUPPORTED HOUSING PROGRAMME,28-Mar-17,2596.04,LIFEWAYS COMMUNITY CARE LTD,Invoice
ASC,SOCIAL SERVICES,VOL ASS,Revenue,SUPPORTED HOUSING PROGRAMME,28-Mar-17,2166.24,LIFEWAYS COMMUNITY CARE LTD,Invoice
ASC,SOCIAL SERVICES,VOL ASS,Revenue,SUPPORTED HOUSING PROGRAMME,28-Mar-17,2227.64,LIFEWAYS COMMUNITY CARE LTD,Invoice
ASC,SOCIAL SERVICES,VOL ASS,Revenue,SUPPORTED HOUSING PROGRAMME,28-Mar-17,1982.04,LIFEWAYS COMMUNITY CARE LTD,Invoice
ASC,SOCIAL SERVICES,VOL ASS,Revenue,SUPPORTED HOUSING PROGRAMME,28-Mar-17,2289.04,LIFEWAYS COMMUNITY CARE LTD,Invoice
ASC,SOCIAL SERVICES,VOL ASS,Revenue,SUPPORTED HOUSING PROGRAMME,28-Mar-17,1982.04,LIFEWAYS COMMUNITY CARE LTD,Invoice
ASC,SOCIAL SERVICES,VOL ASS,Revenue,SUPPORTED HOUSING PROGRAMME,28-Mar-17,3885.44,LIFEWAYS COMMUNITY CARE LTD,Invoice
ASC,SOCIAL SERVICES,VOL ASS,Revenue,SUPPORTED HOUSING PROGRAMME,28-Mar-17,2411.84,LIFEWAYS COMMUNITY CARE LTD,Invoice
ASC,SOCIAL SERVICES,VOL ASS,Revenue,SUPPORTED HOUSING PROGRAMME,28-Mar-17,1736.44,LIFEWAYS COMMUNITY CARE LTD,Invoice
ASC,SOCIAL SERVICES,VOL ASS,Revenue,SUPPORTED HOUSING PROGRAMME,28-Mar-17,1920.64,LIFEWAYS COMMUNITY CARE LTD,Invoice
ASC,SOCIAL SERVICES,VOL ASS,Revenue,SUPPORTED HOUSING PROGRAMME,28-Mar-17,3210.04,LIFEWAYS COMMUNITY CARE LTD,Invoice
ASC,SOCIAL SERVICES,VOL ASS,Revenue,SUPPORTED HOUSING PROGRAMME,28-Mar-17,2394.20,LIFEWAYS COMMUNITY CARE LTD,Invoice
ASC,SOCIAL SERVICES,VOL ASS,Revenue,SUPPORTED HOUSING PROGRAMME,28-Mar-17,2551.16,LIFEWAYS COMMUNITY CARE LTD,Invoice
ASC,SOCIAL SERVICES,VOL ASS,Revenue,SUPPORTED HOUSING PROGRAMME,28-Mar-17,3335.96,LIFEWAYS COMMUNITY CARE LTD,Invoice
ASC,SOCIAL SERVICES,VOL ASS,Revenue,SUPPORTED HOUSING PROGRAMME,28-Mar-17,2603.48,LIFEWAYS COMMUNITY CARE LTD,Invoice
ASC,SOCIAL SERVICES,VOL ASS,Revenue,SUPPORTED HOUSING PROGRAMME,28-Mar-17,2969.72,LIFEWAYS COMMUNITY CARE LTD,Invoice
ASC,SOCIAL SERVICES,VOL ASS,Revenue,SUPPORTED HOUSING PROGRAMME,28-Mar-17,2341.88,LIFEWAYS COMMUNITY CARE LTD,Invoice
ASC,SOCIAL SERVICES,VOL ASS,Revenue,SUPPORTED HOUSING PROGRAMME,28-Mar-17,2551.16,LIFEWAYS COMMUNITY CARE LTD,Invoice
ASC,SOCIAL SERVICES,VOL ASS,Revenue,SUPPORTED HOUSING PROGRAMME,28-Mar-17,1444.56,LIFEWAYS COMMUNITY CARE LTD,Invoice
ASC,SOCIAL SERVICES,VOL ASS,Revenue,SUPPORTED HOUSING PROGRAMME,28-Mar-17,2025.24,LIFEWAYS COMMUNITY CARE LTD,Invoice
ASC,SOCIAL SERVICES,VOL ASS,Revenue,SUPPORTED HOUSING PROGRAMME,28-Mar-17,2025.24,LIFEWAYS COMMUNITY CARE LTD,Invoice
ASC,SOCIAL SERVICES,VOL ASS,Revenue,SUPPORTED HOUSING PROGRAMME,28-Mar-17,2025.24,LIFEWAYS COMMUNITY CARE LTD,Invoice
ASC,SOCIAL SERVICES,VOL ASS,Revenue,SUPPORTED HOUSING PROGRAMME,28-Mar-17,2244.28,LIFEWAYS COMMUNITY CARE LTD,Invoice
ASC,SOCIAL SERVICES,VOL ASS,Revenue,SUPPORTED HOUSING PROGRAMME,28-Mar-17,2518.08,LIFEWAYS COMMUNITY CARE LTD,Invoice
ASC,SOCIAL SERVICES,VOL ASS,Revenue,SUPPORTED HOUSING PROGRAMME,28-Mar-17,2025.24,LIFEWAYS COMMUNITY CARE LTD,Invoice
ASC,SOCIAL SERVICES,VOL ASS,Revenue,SUPPORTED HOUSING PROGRAMME,28-Mar-17,2244.28,LIFEWAYS COMMUNITY CARE LTD,Invoice
ASC,SOCIAL SERVICES,VOL ASS,Revenue,SUPPORTED HOUSING PROGRAMME,28-Mar-17,1860.96,LIFEWAYS COMMUNITY CARE LTD,Invoice
ASC,SOCIAL SERVICES,VOL ASS,Revenue,SUPPORTED HOUSING PROGRAMME,28-Mar-17,2341.88,LIFEWAYS COMMUNITY CARE LTD,Invoice
ASC,SOCIAL SERVICES,VOL ASS,Revenue,SUPPORTED HOUSING PROGRAMME,08-Mar-17,2400.00,LIVE TOO LIMITED,Invoice
ASC,SOCIAL SERVICES,VOL ASS,Revenue,SUPPORTED HOUSING PROGRAMME,08-Mar-17,3150.00,LIVE TOO LIMITED,Invoice
ASC,SOCIAL SERVICES,VOL ASS,Revenue,SUPPORTED HOUSING PROGRAMME,09-Mar-17,720.00,LIVE TOO LIMITED,Invoice
ASC,SOCIAL SERVICES,VOL ASS,Revenue,SUPPORTED HOUSING PROGRAMME,09-Mar-17,4230.00,LIVE TOO LIMITED,Invoice
ASC,SOCIAL SERVICES,VOL ASS,Revenue,SUPPORTED HOUSING PROGRAMME,09-Mar-17,1200.00,LIVE TOO LIMITED,Invoice
ASC,SOCIAL SERVICES,VOL ASS,Revenue,SUPPORTED HOUSING PROGRAMME,09-Mar-17,11760.00,LIVE TOO LIMITED,Invoice
ASC,SOCIAL SERVICES,VOL ASS,Revenue,SUPPORTED HOUSING PROGRAMME,09-Mar-17,930.00,LIVE TOO LIMITED,Invoice
ASC,SOCIAL SERVICES,VOL ASS,Revenue,SUPPORTED HOUSING PROGRAMME,09-Mar-17,1260.00,LIVE TOO LIMITED,Invoice
ASC,SOCIAL SERVICES,VOL ASS,Revenue,SUPPORTED HOUSING PROGRAMME,09-Mar-17,1440.00,LIVE TOO LIMITED,Invoice
ASC,SOCIAL SERVICES,VOL ASS,Revenue,SUPPORTED HOUSING PROGRAMME,09-Mar-17,1500.00,LIVE TOO LIMITED,Invoice
ASC,SOCIAL SERVICES,VOL ASS,Revenue,SUPPORTED HOUSING PROGRAMME,09-Mar-17,1350.00,LIVE TOO LIMITED,Invoice
ASC,SOCIAL SERVICES,VOL ASS,Revenue,SUPPORTED HOUSING PROGRAMME,09-Mar-17,2046.08,LIVE TOO LIMITED,Invoice
ASC,SOCIAL SERVICES,VOL ASS,Revenue,SUPPORTED HOUSING PROGRAMME,09-Mar-17,700.00,LIVE TOO LIMITED,Invoice
ASC,SOCIAL SERVICES,VOL ASS,Revenue,SUPPORTED HOUSING PROGRAMME,09-Mar-17,1568.00,LIVE TOO LIMITED,Invoice
ASC,SOCIAL SERVICES,VOL ASS,Revenue,SUPPORTED HOUSING PROGRAMME,09-Mar-17,784.00,LIVE TOO LIMITED,Invoice
ASC,SOCIAL SERVICES,VOL ASS,Revenue,SUPPORTED HOUSING PROGRAMME,09-Mar-17,663.80,LIVE TOO LIMITED,Invoice
ASC,SOCIAL SERVICES,VOL ASS,Revenue,SUPPORTED HOUSING PROGRAMME,09-Mar-17,1690.64,LIVE TOO LIMITED,Invoice
ASC,SOCIAL SERVICES,VOL ASS,Revenue,SUPPORTED HOUSING PROGRAMME,29-Mar-17,4230.00,LIVE TOO LIMITED,Invoice
ASC,SOCIAL SERVICES,VOL ASS,Revenue,SUPPORTED HOUSING PROGRAMME,29-Mar-17,1200.00,LIVE TOO LIMITED,Invoice
ASC,SOCIAL SERVICES,VOL ASS,Revenue,SUPPORTED HOUSING PROGRAMME,29-Mar-17,11760.00,LIVE TOO LIMITED,Invoice
ASC,SOCIAL SERVICES,VOL ASS,Revenue,SUPPORTED HOUSING PROGRAMME,29-Mar-17,1260.00,LIVE TOO LIMITED,Invoice
ASC,SOCIAL SERVICES,VOL ASS,Revenue,SUPPORTED HOUSING PROGRAMME,29-Mar-17,930.00,LIVE TOO LIMITED,Invoice
ASC,SOCIAL SERVICES,VOL ASS,Revenue,SUPPORTED HOUSING PROGRAMME,29-Mar-17,1440.00,LIVE TOO LIMITED,Invoice
ASC,SOCIAL SERVICES,VOL ASS,Revenue,SUPPORTED HOUSING PROGRAMME,29-Mar-17,1140.00,LIVE TOO LIMITED,Invoice
ASC,SOCIAL SERVICES,VOL ASS,Revenue,SUPPORTED HOUSING PROGRAMME,29-Mar-17,1500.00,LIVE TOO LIMITED,Invoice
ASC,SOCIAL SERVICES,VOL ASS,Revenue,SUPPORTED HOUSING PROGRAMME,29-Mar-17,720.00,LIVE TOO LIMITED,Invoice
ASC,SOCIAL SERVICES,VOL ASS,Revenue,SUPPORTED HOUSING PROGRAMME,29-Mar-17,1350.00,LIVE TOO LIMITED,Invoice
ASC,SOCIAL SERVICES,VOL ASS,Revenue,SUPPORTED HOUSING PROGRAMME,29-Mar-17,2040.00,LIVE TOO LIMITED,Invoice
ASC,SOCIAL SERVICES,VOL ASS,Revenue,SUPPORTED HOUSING PROGRAMME,29-Mar-17,700.00,LIVE TOO LIMITED,Invoice
ASC,SOCIAL SERVICES,VOL ASS,Revenue,SUPPORTED HOUSING PROGRAMME,29-Mar-17,1568.00,LIVE TOO LIMITED,Invoice
ASC,SOCIAL SERVICES,VOL ASS,Revenue,SUPPORTED HOUSING PROGRAMME,29-Mar-17,784.00,LIVE TOO LIMITED,Invoice
ASC,SOCIAL SERVICES,VOL ASS,Revenue,SUPPORTED HOUSING PROGRAMME,29-Mar-17,663.80,LIVE TOO LIMITED,Invoice
ASC,SOCIAL SERVICES,VOL ASS,Revenue,SUPPORTED HOUSING PROGRAMME,29-Mar-17,600.00,LIVE TOO LIMITED,Invoice
ASC,SOCIAL SERVICES,VOL ASS,Revenue,SUPPORTED HOUSING PROGRAMME,29-Mar-17,831.20,LIVE TOO LIMITED,Invoice
ASC,SOCIAL SERVICES,VOL ASS,Revenue,SUPPORTED HOUSING PROGRAMME,10-Mar-17,1458.00,METROPOLITAN HOUSING TRUST,Invoice
ASC,SOCIAL SERVICES,VOL ASS,Revenue,SUPPORTED HOUSING PROGRAMME,27-Mar-17,1458.00,METROPOLITAN HOUSING TRUST,Invoice
ASC,SOCIAL SERVICES,VOL ASS,Revenue,SUPPORTED HOUSING PROGRAMME,23-Mar-17,4400.00,MORTON GARDENS,Invoice
ASC,SOCIAL SERVICES,VOL ASS,Revenue,SUPPORTED HOUSING PROGRAMME,22-Mar-17,1169.41,MS J DAVIES-BENNETTS T/A HANDSON HORSES,Invoice
ASC,SOCIAL SERVICES,VOL ASS,Revenue,SUPPORTED HOUSING PROGRAMME,22-Mar-17,5543.72,NORWOOD SCHOOLS LTD,Invoice
ASC,SOCIAL SERVICES,VOL ASS,Revenue,SUPPORTED HOUSING PROGRAMME,28-Mar-17,2889.82,PRECIOUS HOMES LTD,Invoice
ASC,SOCIAL SERVICES,VOL ASS,Revenue,SUPPORTED HOUSING PROGRAMME,13-Mar-17,11720.46,RAINBOW MEDICAL SERVICES,Invoice
ASC,SOCIAL SERVICES,VOL ASS,Revenue,SUPPORTED HOUSING PROGRAMME,22-Mar-17,6120.00,RELIABLE PERSONNEL LTD,Invoice
ASC,SOCIAL SERVICES,VOL ASS,Revenue,SUPPORTED HOUSING PROGRAMME,13-Mar-17,2490.04,ROYAL MENCAP SOCIETY,Invoice
ASC,SOCIAL SERVICES,VOL ASS,Revenue,SUPPORTED HOUSING PROGRAMME,13-Mar-17,3338.80,ROYAL MENCAP SOCIETY,Invoice
ASC,SOCIAL SERVICES,VOL ASS,Revenue,SUPPORTED HOUSING PROGRAMME,13-Mar-17,5308.36,ROYAL MENCAP SOCIETY,Invoice
ASC,SOCIAL SERVICES,VOL ASS,Revenue,SUPPORTED HOUSING PROGRAMME,13-Mar-17,2296.56,ROYAL MENCAP SOCIETY,Invoice
ASC,SOCIAL SERVICES,VOL ASS,Revenue,SUPPORTED HOUSING PROGRAMME,13-Mar-17,2541.12,ROYAL MENCAP SOCIETY,Invoice
ASC,SOCIAL SERVICES,VOL ASS,Revenue,SUPPORTED HOUSING PROGRAMME,13-Mar-17,7211.20,ROYAL MENCAP SOCIETY,Invoice
ASC,SOCIAL SERVICES,VOL ASS,Revenue,SUPPORTED HOUSING PROGRAMME,13-Mar-17,1783.00,ROYAL MENCAP SOCIETY,Invoice
ASC,SOCIAL SERVICES,VOL ASS,Revenue,SUPPORTED HOUSING PROGRAMME,29-Mar-17,5310.92,ST ELIZABETHS CENTRE,Invoice
ASC,SOCIAL SERVICES,VOL ASS,Revenue,SUPPORTED HOUSING PROGRAMME,29-Mar-17,5139.60,ST ELIZABETHS CENTRE,Invoice
ASC,SOCIAL SERVICES,VOL ASS,Revenue,SUPPORTED HOUSING PROGRAMME,09-Mar-17,4000.00,STEP 4 YOU,Invoice
ASC,SOCIAL SERVICES,VOL ASS,Revenue,SUPPORTED HOUSING PROGRAMME,09-Mar-17,4740.00,STEP 4 YOU,Invoice
ASC,SOCIAL SERVICES,VOL ASS,Revenue,SUPPORTED HOUSING PROGRAMME,24-Mar-17,3600.00,STEP 4 YOU,Invoice
ASC,SOCIAL SERVICES,VOL ASS,Revenue,SUPPORTED HOUSING PROGRAMME,29-Mar-17,3600.00,STEP 4 YOU,Invoice
ASC,SOCIAL SERVICES,VOL ASS,Revenue,SUPPORTED HOUSING PROGRAMME,06-Mar-17,3452.48,THE BRANDON TRUST,Invoice
ASC,SOCIAL SERVICES,VOL ASS,Revenue,SUPPORTED HOUSING PROGRAMME,06-Mar-17,3452.48,THE BRANDON TRUST,Invoice
ASC,SOCIAL SERVICES,VOL ASS,Revenue,SUPPORTED HOUSING PROGRAMME,06-Mar-17,3452.48,THE BRANDON TRUST,Invoice
ASC,SOCIAL SERVICES,VOL ASS,Revenue,SUPPORTED HOUSING PROGRAMME,06-Mar-17,3452.48,THE BRANDON TRUST,Invoice
ASC,SOCIAL SERVICES,VOL ASS,Revenue,SUPPORTED HOUSING PROGRAMME,08-Mar-17,932.96,THE BRANDON TRUST,Invoice
ASC,SOCIAL SERVICES,VOL ASS,Revenue,SUPPORTED HOUSING PROGRAMME,08-Mar-17,932.96,THE BRANDON TRUST,Invoice
ASC,SOCIAL SERVICES,VOL ASS,Revenue,SUPPORTED HOUSING PROGRAMME,08-Mar-17,1936.52,THE BRANDON TRUST,Invoice
ASC,SOCIAL SERVICES,VOL ASS,Revenue,SUPPORTED HOUSING PROGRAMME,08-Mar-17,7764.16,THE BRANDON TRUST,Invoice
ASC,SOCIAL SERVICES,VOL ASS,Revenue,SUPPORTED HOUSING PROGRAMME,08-Mar-17,2319.84,THE BRANDON TRUST,Invoice
ASC,SOCIAL SERVICES,VOL ASS,Revenue,SUPPORTED HOUSING PROGRAMME,08-Mar-17,2980.60,THE BRANDON TRUST,Invoice
ASC,SOCIAL SERVICES,VOL ASS,Revenue,SUPPORTED HOUSING PROGRAMME,08-Mar-17,2969.12,THE BRANDON TRUST,Invoice
ASC,SOCIAL SERVICES,VOL ASS,Revenue,SUPPORTED HOUSING PROGRAMME,08-Mar-17,2979.92,THE BRANDON TRUST,Invoice
ASC,SOCIAL SERVICES,VOL ASS,Revenue,SUPPORTED HOUSING PROGRAMME,08-Mar-17,2140.32,THE BRANDON TRUST,Invoice
ASC,SOCIAL SERVICES,VOL ASS,Revenue,SUPPORTED HOUSING PROGRAMME,08-Mar-17,3585.60,THE BRANDON TRUST,Invoice
ASC,SOCIAL SERVICES,VOL ASS,Revenue,SUPPORTED HOUSING PROGRAMME,08-Mar-17,1125.08,THE BRANDON TRUST,Invoice
ASC,SOCIAL SERVICES,VOL ASS,Revenue,SUPPORTED HOUSING PROGRAMME,08-Mar-17,1155.88,THE BRANDON TRUST,Invoice
ASC,SOCIAL SERVICES,VOL ASS,Revenue,SUPPORTED HOUSING PROGRAMME,08-Mar-17,1854.72,THE BRANDON TRUST,Invoice
ASC,SOCIAL SERVICES,VOL ASS,Revenue,SUPPORTED HOUSING PROGRAMME,08-Mar-17,1380.64,THE BRANDON TRUST,Invoice
ASC,SOCIAL SERVICES,VOL ASS,Revenue,SUPPORTED HOUSING PROGRAMME,08-Mar-17,1513.68,THE BRANDON TRUST,Invoice
ASC,SOCIAL SERVICES,VOL ASS,Revenue,SUPPORTED HOUSING PROGRAMME,08-Mar-17,1513.68,THE BRANDON TRUST,Invoice
ASC,SOCIAL SERVICES,VOL ASS,Revenue,SUPPORTED HOUSING PROGRAMME,08-Mar-17,2856.96,THE BRANDON TRUST,Invoice
ASC,SOCIAL SERVICES,VOL ASS,Revenue,SUPPORTED HOUSING PROGRAMME,08-Mar-17,2260.80,THE BRANDON TRUST,Invoice
ASC,SOCIAL SERVICES,VOL ASS,Revenue,SUPPORTED HOUSING PROGRAMME,08-Mar-17,3453.12,THE BRANDON TRUST,Invoice
ASC,SOCIAL SERVICES,VOL ASS,Revenue,SUPPORTED HOUSING PROGRAMME,08-Mar-17,2096.40,THE BRANDON TRUST,Invoice
ASC,SOCIAL SERVICES,VOL ASS,Revenue,SUPPORTED HOUSING PROGRAMME,08-Mar-17,1797.12,THE BRANDON TRUST,Invoice
ASC,SOCIAL SERVICES,VOL ASS,Revenue,SUPPORTED HOUSING PROGRAMME,08-Mar-17,2062.08,THE BRANDON TRUST,Invoice
ASC,SOCIAL SERVICES,VOL ASS,Revenue,SUPPORTED HOUSING PROGRAMME,08-Mar-17,3718.84,THE BRANDON TRUST,Invoice
ASC,SOCIAL SERVICES,VOL ASS,Revenue,SUPPORTED HOUSING PROGRAMME,08-Mar-17,2592.00,THE BRANDON TRUST,Invoice
ASC,SOCIAL SERVICES,VOL ASS,Revenue,SUPPORTED HOUSING PROGRAMME,08-Mar-17,3452.48,THE BRANDON TRUST,Invoice
ASC,SOCIAL SERVICES,VOL ASS,Revenue,SUPPORTED HOUSING PROGRAMME,08-Mar-17,6152.80,THE BRANDON TRUST,Invoice
ASC,SOCIAL SERVICES,VOL ASS,Revenue,SUPPORTED HOUSING PROGRAMME,08-Mar-17,2923.88,THE BRANDON TRUST,Invoice
ASC,SOCIAL SERVICES,VOL ASS,Revenue,SUPPORTED HOUSING PROGRAMME,08-Mar-17,4688.56,THE BRANDON TRUST,Invoice
ASC,SOCIAL SERVICES,VOL ASS,Revenue,SUPPORTED HOUSING PROGRAMME,08-Mar-17,3320.64,THE BRANDON TRUST,Invoice
ASC,SOCIAL SERVICES,VOL ASS,Revenue,SUPPORTED HOUSING PROGRAMME,08-Mar-17,3702.20,THE BRANDON TRUST,Invoice
ASC,SOCIAL SERVICES,VOL ASS,Revenue,SUPPORTED HOUSING PROGRAMME,08-Mar-17,2790.72,THE BRANDON TRUST,Invoice
ASC,SOCIAL SERVICES,VOL ASS,Revenue,SUPPORTED HOUSING PROGRAMME,08-Mar-17,3472.96,THE BRANDON TRUST,Invoice
ASC,SOCIAL SERVICES,VOL ASS,Revenue,SUPPORTED HOUSING PROGRAMME,08-Mar-17,5064.12,THE BRANDON TRUST,Invoice
ASC,SOCIAL SERVICES,VOL ASS,Revenue,SUPPORTED HOUSING PROGRAMME,08-Mar-17,5688.08,THE BRANDON TRUST,Invoice
ASC,SOCIAL SERVICES,VOL ASS,Revenue,SUPPORTED HOUSING PROGRAMME,08-Mar-17,5983.44,THE BRANDON TRUST,Invoice
ASC,SOCIAL SERVICES,VOL ASS,Revenue,SUPPORTED HOUSING PROGRAMME,08-Mar-17,4827.60,THE BRANDON TRUST,Invoice
ASC,SOCIAL SERVICES,VOL ASS,Revenue,SUPPORTED HOUSING PROGRAMME,08-Mar-17,6146.20,THE BRANDON TRUST,Invoice
ASC,SOCIAL SERVICES,VOL ASS,Revenue,SUPPORTED HOUSING PROGRAMME,08-Mar-17,3324.96,THE BRANDON TRUST,Invoice
ASC,SOCIAL SERVICES,VOL ASS,Revenue,SUPPORTED HOUSING PROGRAMME,08-Mar-17,2886.04,THE BRANDON TRUST,Invoice
ASC,SOCIAL SERVICES,VOL ASS,Revenue,SUPPORTED HOUSING PROGRAMME,08-Mar-17,2856.96,THE BRANDON TRUST,Invoice
ASC,SOCIAL SERVICES,VOL ASS,Revenue,SUPPORTED HOUSING PROGRAMME,08-Mar-17,2128.32,THE BRANDON TRUST,Invoice
ASC,SOCIAL SERVICES,VOL ASS,Revenue,SUPPORTED HOUSING PROGRAMME,08-Mar-17,6233.52,THE BRANDON TRUST,Invoice
ASC,SOCIAL SERVICES,VOL ASS,Revenue,SUPPORTED HOUSING PROGRAMME,08-Mar-17,1465.92,THE BRANDON TRUST,Invoice
ASC,SOCIAL SERVICES,VOL ASS,Revenue,SUPPORTED HOUSING PROGRAMME,08-Mar-17,1482.48,THE BRANDON TRUST,Invoice
ASC,SOCIAL SERVICES,VOL ASS,Revenue,SUPPORTED HOUSING PROGRAMME,08-Mar-17,2592.60,THE BRANDON TRUST,Invoice
ASC,SOCIAL SERVICES,VOL ASS,Revenue,SUPPORTED HOUSING PROGRAMME,08-Mar-17,2856.96,THE BRANDON TRUST,Invoice
ASC,SOCIAL SERVICES,VOL ASS,Revenue,SUPPORTED HOUSING PROGRAMME,08-Mar-17,3564.56,THE BRANDON TRUST,Invoice
ASC,SOCIAL SERVICES,VOL ASS,Revenue,SUPPORTED HOUSING PROGRAMME,08-Mar-17,3416.80,THE BRANDON TRUST,Invoice
ASC,SOCIAL SERVICES,VOL ASS,Revenue,SUPPORTED HOUSING PROGRAMME,08-Mar-17,2848.72,THE BRANDON TRUST,Invoice
ASC,SOCIAL SERVICES,VOL ASS,Revenue,SUPPORTED HOUSING PROGRAMME,08-Mar-17,2327.24,THE BRANDON TRUST,Invoice
ASC,SOCIAL SERVICES,VOL ASS,Revenue,SUPPORTED HOUSING PROGRAMME,08-Mar-17,2327.24,THE BRANDON TRUST,Invoice
ASC,SOCIAL SERVICES,VOL ASS,Revenue,SUPPORTED HOUSING PROGRAMME,08-Mar-17,2065.12,THE BRANDON TRUST,Invoice
ASC,SOCIAL SERVICES,VOL ASS,Revenue,SUPPORTED HOUSING PROGRAMME,09-Mar-17,1466.16,THE BRANDON TRUST,Invoice
ASC,SOCIAL SERVICES,VOL ASS,Revenue,SUPPORTED HOUSING PROGRAMME,09-Mar-17,1626.12,THE BRANDON TRUST,Invoice
ASC,SOCIAL SERVICES,VOL ASS,Revenue,SUPPORTED HOUSING PROGRAMME,09-Mar-17,1034.48,THE BRANDON TRUST,Invoice
ASC,SOCIAL SERVICES,VOL ASS,Revenue,SUPPORTED HOUSING PROGRAMME,09-Mar-17,1496.07,THE BRANDON TRUST,Invoice
ASC,SOCIAL SERVICES,VOL ASS,Revenue,SUPPORTED HOUSING PROGRAMME,09-Mar-17,1674.84,THE BRANDON TRUST,Invoice
ASC,SOCIAL SERVICES,VOL ASS,Revenue,SUPPORTED HOUSING PROGRAMME,09-Mar-17,5630.08,THE BRANDON TRUST,Invoice
ASC,SOCIAL SERVICES,VOL ASS,Revenue,SUPPORTED HOUSING PROGRAMME,09-Mar-17,2459.52,THE BRANDON TRUST,Invoice
ASC,SOCIAL SERVICES,VOL ASS,Revenue,SUPPORTED HOUSING PROGRAMME,09-Mar-17,3883.68,THE BRANDON TRUST,Invoice
ASC,SOCIAL SERVICES,VOL ASS,Revenue,SUPPORTED HOUSING PROGRAMME,09-Mar-17,2618.48,THE BRANDON TRUST,Invoice
ASC,SOCIAL SERVICES,VOL ASS,Revenue,SUPPORTED HOUSING PROGRAMME,09-Mar-17,1465.92,THE BRANDON TRUST,Invoice
ASC,SOCIAL SERVICES,VOL ASS,Revenue,SUPPORTED HOUSING PROGRAMME,09-Mar-17,2606.80,THE BRANDON TRUST,Invoice
ASC,SOCIAL SERVICES,VOL ASS,Revenue,SUPPORTED HOUSING PROGRAMME,09-Mar-17,2631.48,THE BRANDON TRUST,Invoice
ASC,SOCIAL SERVICES,VOL ASS,Revenue,SUPPORTED HOUSING PROGRAMME,09-Mar-17,4177.52,THE BRANDON TRUST,Invoice
ASC,SOCIAL SERVICES,VOL ASS,Revenue,SUPPORTED HOUSING PROGRAMME,09-Mar-17,1020.12,THE BRANDON TRUST,Invoice
ASC,SOCIAL SERVICES,VOL ASS,Revenue,SUPPORTED HOUSING PROGRAMME,09-Mar-17,2812.76,THE BRANDON TRUST,Invoice
ASC,SOCIAL SERVICES,VOL ASS,Revenue,SUPPORTED HOUSING PROGRAMME,09-Mar-17,2112.52,THE BRANDON TRUST,Invoice
ASC,SOCIAL SERVICES,VOL ASS,Revenue,SUPPORTED HOUSING PROGRAMME,09-Mar-17,2112.52,THE BRANDON TRUST,Invoice
ASC,SOCIAL SERVICES,VOL ASS,Revenue,SUPPORTED HOUSING PROGRAMME,09-Mar-17,1766.08,THE BRANDON TRUST,Invoice
ASC,SOCIAL SERVICES,VOL ASS,Revenue,SUPPORTED HOUSING PROGRAMME,09-Mar-17,2210.30,THE BRANDON TRUST,Invoice
ASC,SOCIAL SERVICES,VOL ASS,Revenue,SUPPORTED HOUSING PROGRAMME,21-Mar-17,2769.12,THE BRANDON TRUST,Invoice
ASC,SOCIAL SERVICES,VOL ASS,Revenue,SUPPORTED HOUSING PROGRAMME,21-Mar-17,2665.50,THE BRANDON TRUST,Invoice
ASC,,VOL ASS,Revenue,SUPPORTED HOUSING PROGRAMME,24-Mar-17,9290.51,THE BRANDON TRUST,Invoice
ASC,SOCIAL SERVICES,VOL ASS,Revenue,SUPPORTED HOUSING PROGRAMME,29-Mar-17,866.32,THE BRANDON TRUST,Invoice
ASC,SOCIAL SERVICES,VOL ASS,Revenue,SUPPORTED HOUSING PROGRAMME,29-Mar-17,866.32,THE BRANDON TRUST,Invoice
ASC,SOCIAL SERVICES,VOL ASS,Revenue,SUPPORTED HOUSING PROGRAMME,29-Mar-17,1936.52,THE BRANDON TRUST,Invoice
ASC,SOCIAL SERVICES,VOL ASS,Revenue,SUPPORTED HOUSING PROGRAMME,29-Mar-17,7764.16,THE BRANDON TRUST,Invoice
ASC,SOCIAL SERVICES,VOL ASS,Revenue,SUPPORTED HOUSING PROGRAMME,29-Mar-17,2319.84,THE BRANDON TRUST,Invoice
ASC,SOCIAL SERVICES,VOL ASS,Revenue,SUPPORTED HOUSING PROGRAMME,29-Mar-17,2980.60,THE BRANDON TRUST,Invoice
ASC,SOCIAL SERVICES,VOL ASS,Revenue,SUPPORTED HOUSING PROGRAMME,29-Mar-17,2969.12,THE BRANDON TRUST,Invoice
ASC,SOCIAL SERVICES,VOL ASS,Revenue,SUPPORTED HOUSING PROGRAMME,29-Mar-17,2979.92,THE BRANDON TRUST,Invoice
ASC,SOCIAL SERVICES,VOL ASS,Revenue,SUPPORTED HOUSING PROGRAMME,29-Mar-17,2140.32,THE BRANDON TRUST,Invoice
ASC,SOCIAL SERVICES,VOL ASS,Revenue,SUPPORTED HOUSING PROGRAMME,29-Mar-17,3585.60,THE BRANDON TRUST,Invoice
ASC,SOCIAL SERVICES,VOL ASS,Revenue,SUPPORTED HOUSING PROGRAMME,29-Mar-17,1125.08,THE BRANDON TRUST,Invoice
ASC,SOCIAL SERVICES,VOL ASS,Revenue,SUPPORTED HOUSING PROGRAMME,29-Mar-17,1155.88,THE BRANDON TRUST,Invoice
ASC,SOCIAL SERVICES,VOL ASS,Revenue,SUPPORTED HOUSING PROGRAMME,29-Mar-17,1854.72,THE BRANDON TRUST,Invoice
ASC,SOCIAL SERVICES,VOL ASS,Revenue,SUPPORTED HOUSING PROGRAMME,29-Mar-17,1380.64,THE BRANDON TRUST,Invoice
ASC,SOCIAL SERVICES,VOL ASS,Revenue,SUPPORTED HOUSING PROGRAMME,29-Mar-17,1466.16,THE BRANDON TRUST,Invoice
ASC,SOCIAL SERVICES,VOL ASS,Revenue,SUPPORTED HOUSING PROGRAMME,29-Mar-17,1513.68,THE BRANDON TRUST,Invoice
ASC,SOCIAL SERVICES,VOL ASS,Revenue,SUPPORTED HOUSING PROGRAMME,29-Mar-17,1513.68,THE BRANDON TRUST,Invoice
ASC,SOCIAL SERVICES,VOL ASS,Revenue,SUPPORTED HOUSING PROGRAMME,29-Mar-17,2856.96,THE BRANDON TRUST,Invoice
ASC,SOCIAL SERVICES,VOL ASS,Revenue,SUPPORTED HOUSING PROGRAMME,29-Mar-17,2260.80,THE BRANDON TRUST,Invoice
ASC,SOCIAL SERVICES,VOL ASS,Revenue,SUPPORTED HOUSING PROGRAMME,29-Mar-17,3453.12,THE BRANDON TRUST,Invoice
ASC,SOCIAL SERVICES,VOL ASS,Revenue,SUPPORTED HOUSING PROGRAMME,29-Mar-17,2096.40,THE BRANDON TRUST,Invoice
ASC,SOCIAL SERVICES,VOL ASS,Revenue,SUPPORTED HOUSING PROGRAMME,29-Mar-17,1797.12,THE BRANDON TRUST,Invoice
ASC,SOCIAL SERVICES,VOL ASS,Revenue,SUPPORTED HOUSING PROGRAMME,29-Mar-17,2062.08,THE BRANDON TRUST,Invoice
ASC,SOCIAL SERVICES,VOL ASS,Revenue,SUPPORTED HOUSING PROGRAMME,29-Mar-17,3718.84,THE BRANDON TRUST,Invoice
ASC,SOCIAL SERVICES,VOL ASS,Revenue,SUPPORTED HOUSING PROGRAMME,29-Mar-17,2592.00,THE BRANDON TRUST,Invoice
ASC,SOCIAL SERVICES,VOL ASS,Revenue,SUPPORTED HOUSING PROGRAMME,29-Mar-17,3452.48,THE BRANDON TRUST,Invoice
ASC,SOCIAL SERVICES,VOL ASS,Revenue,SUPPORTED HOUSING PROGRAMME,29-Mar-17,6152.80,THE BRANDON TRUST,Invoice
ASC,SOCIAL SERVICES,VOL ASS,Revenue,SUPPORTED HOUSING PROGRAMME,29-Mar-17,2923.88,THE BRANDON TRUST,Invoice
ASC,SOCIAL SERVICES,VOL ASS,Revenue,SUPPORTED HOUSING PROGRAMME,29-Mar-17,4688.56,THE BRANDON TRUST,Invoice
ASC,SOCIAL SERVICES,VOL ASS,Revenue,SUPPORTED HOUSING PROGRAMME,29-Mar-17,3320.64,THE BRANDON TRUST,Invoice
ASC,SOCIAL SERVICES,VOL ASS,Revenue,SUPPORTED HOUSING PROGRAMME,29-Mar-17,3702.20,THE BRANDON TRUST,Invoice
ASC,SOCIAL SERVICES,VOL ASS,Revenue,SUPPORTED HOUSING PROGRAMME,29-Mar-17,2790.72,THE BRANDON TRUST,Invoice
ASC,SOCIAL SERVICES,VOL ASS,Revenue,SUPPORTED HOUSING PROGRAMME,29-Mar-17,3472.96,THE BRANDON TRUST,Invoice
ASC,SOCIAL SERVICES,VOL ASS,Revenue,SUPPORTED HOUSING PROGRAMME,29-Mar-17,5064.12,THE BRANDON TRUST,Invoice
ASC,SOCIAL SERVICES,VOL ASS,Revenue,SUPPORTED HOUSING PROGRAMME,29-Mar-17,5688.08,THE BRANDON TRUST,Invoice
ASC,SOCIAL SERVICES,VOL ASS,Revenue,SUPPORTED HOUSING PROGRAMME,29-Mar-17,5983.44,THE BRANDON TRUST,Invoice
ASC,SOCIAL SERVICES,VOL ASS,Revenue,SUPPORTED HOUSING PROGRAMME,29-Mar-17,4827.60,THE BRANDON TRUST,Invoice
ASC,SOCIAL SERVICES,VOL ASS,Revenue,SUPPORTED HOUSING PROGRAMME,29-Mar-17,6146.20,THE BRANDON TRUST,Invoice
ASC,SOCIAL SERVICES,VOL ASS,Revenue,SUPPORTED HOUSING PROGRAMME,29-Mar-17,3324.96,THE BRANDON TRUST,Invoice
ASC,SOCIAL SERVICES,VOL ASS,Revenue,SUPPORTED HOUSING PROGRAMME,29-Mar-17,2886.04,THE BRANDON TRUST,Invoice
ASC,SOCIAL SERVICES,VOL ASS,Revenue,SUPPORTED HOUSING PROGRAMME,29-Mar-17,2856.96,THE BRANDON TRUST,Invoice
ASC,SOCIAL SERVICES,VOL ASS,Revenue,SUPPORTED HOUSING PROGRAMME,29-Mar-17,2128.32,THE BRANDON TRUST,Invoice
ASC,SOCIAL SERVICES,VOL ASS,Revenue,SUPPORTED HOUSING PROGRAMME,29-Mar-17,6233.52,THE BRANDON TRUST,Invoice
ASC,SOCIAL SERVICES,VOL ASS,Revenue,SUPPORTED HOUSING PROGRAMME,29-Mar-17,1465.92,THE BRANDON TRUST,Invoice
ASC,SOCIAL SERVICES,VOL ASS,Revenue,SUPPORTED HOUSING PROGRAMME,29-Mar-17,1482.48,THE BRANDON TRUST,Invoice
ASC,SOCIAL SERVICES,VOL ASS,Revenue,SUPPORTED HOUSING PROGRAMME,29-Mar-17,2592.60,THE BRANDON TRUST,Invoice
ASC,SOCIAL SERVICES,VOL ASS,Revenue,SUPPORTED HOUSING PROGRAMME,29-Mar-17,2856.96,THE BRANDON TRUST,Invoice
ASC,SOCIAL SERVICES,VOL ASS,Revenue,SUPPORTED HOUSING PROGRAMME,29-Mar-17,3564.56,THE BRANDON TRUST,Invoice
ASC,SOCIAL SERVICES,VOL ASS,Revenue,SUPPORTED HOUSING PROGRAMME,29-Mar-17,3416.80,THE BRANDON TRUST,Invoice
ASC,SOCIAL SERVICES,VOL ASS,Revenue,SUPPORTED HOUSING PROGRAMME,29-Mar-17,2848.72,THE BRANDON TRUST,Invoice
ASC,SOCIAL SERVICES,VOL ASS,Revenue,SUPPORTED HOUSING PROGRAMME,29-Mar-17,2327.24,THE BRANDON TRUST,Invoice
ASC,SOCIAL SERVICES,VOL ASS,Revenue,SUPPORTED HOUSING PROGRAMME,29-Mar-17,2327.24,THE BRANDON TRUST,Invoice
ASC,SOCIAL SERVICES,VOL ASS,Revenue,SUPPORTED HOUSING PROGRAMME,29-Mar-17,2065.12,THE BRANDON TRUST,Invoice
ASC,SOCIAL SERVICES,VOL ASS,Revenue,SUPPORTED HOUSING PROGRAMME,29-Mar-17,1034.48,THE BRANDON TRUST,Invoice
ASC,SOCIAL SERVICES,VOL ASS,Revenue,SUPPORTED HOUSING PROGRAMME,29-Mar-17,1625.36,THE BRANDON TRUST,Invoice
ASC,SOCIAL SERVICES,VOL ASS,Revenue,SUPPORTED HOUSING PROGRAMME,29-Mar-17,1674.84,THE BRANDON TRUST,Invoice
ASC,SOCIAL SERVICES,VOL ASS,Revenue,SUPPORTED HOUSING PROGRAMME,29-Mar-17,5630.08,THE BRANDON TRUST,Invoice
ASC,SOCIAL SERVICES,VOL ASS,Revenue,SUPPORTED HOUSING PROGRAMME,29-Mar-17,2459.52,THE BRANDON TRUST,Invoice
ASC,SOCIAL SERVICES,VOL ASS,Revenue,SUPPORTED HOUSING PROGRAMME,29-Mar-17,3883.68,THE BRANDON TRUST,Invoice
ASC,SOCIAL SERVICES,VOL ASS,Revenue,SUPPORTED HOUSING PROGRAMME,29-Mar-17,2618.48,THE BRANDON TRUST,Invoice
ASC,SOCIAL SERVICES,VOL ASS,Revenue,SUPPORTED HOUSING PROGRAMME,29-Mar-17,1465.92,THE BRANDON TRUST,Invoice
ASC,SOCIAL SERVICES,VOL ASS,Revenue,SUPPORTED HOUSING PROGRAMME,29-Mar-17,2606.80,THE BRANDON TRUST,Invoice
ASC,SOCIAL SERVICES,VOL ASS,Revenue,SUPPORTED HOUSING PROGRAMME,29-Mar-17,2631.48,THE BRANDON TRUST,Invoice
ASC,SOCIAL SERVICES,VOL ASS,Revenue,SUPPORTED HOUSING PROGRAMME,29-Mar-17,4177.52,THE BRANDON TRUST,Invoice
ASC,SOCIAL SERVICES,VOL ASS,Revenue,SUPPORTED HOUSING PROGRAMME,29-Mar-17,1020.12,THE BRANDON TRUST,Invoice
ASC,SOCIAL SERVICES,VOL ASS,Revenue,SUPPORTED HOUSING PROGRAMME,29-Mar-17,2812.76,THE BRANDON TRUST,Invoice
ASC,SOCIAL SERVICES,VOL ASS,Revenue,SUPPORTED HOUSING PROGRAMME,29-Mar-17,2112.52,THE BRANDON TRUST,Invoice
ASC,SOCIAL SERVICES,VOL ASS,Revenue,SUPPORTED HOUSING PROGRAMME,29-Mar-17,2112.52,THE BRANDON TRUST,Invoice
ASC,SOCIAL SERVICES,VOL ASS,Revenue,SUPPORTED HOUSING PROGRAMME,29-Mar-17,1766.08,THE BRANDON TRUST,Invoice
ASC,SOCIAL SERVICES,VOL ASS,Revenue,SUPPORTED HOUSING PROGRAMME,29-Mar-17,1901.28,THE BRANDON TRUST,Invoice
ASC,SOCIAL SERVICES,VOL ASS,Revenue,SUPPORTED HOUSING PROGRAMME,29-Mar-17,2769.12,THE BRANDON TRUST,Invoice
ASC,SOCIAL SERVICES,VOL ASS,Revenue,SUPPORTED HOUSING PROGRAMME,29-Mar-17,1626.12,THE BRANDON TRUST,Invoice
ASC,SOCIAL SERVICES,VOL ASS,Revenue,SUPPORTED HOUSING PROGRAMME,13-Mar-17,2420.96,THE HOME FARM TRUST LTD,Invoice
ASC,SOCIAL SERVICES,DIRECT,Revenue,DIRECT PAYMENTS,22-Mar-17,2302.20,EPAYROLLUK LTD,Invoice
ASC,SOCIAL SERVICES,DIRECT,Revenue,DIRECT PAYMENTS,22-Mar-17,2326.28,HESTIA HOUSING & SUPPORT,Invoice
ASC,SOCIAL SERVICES,DIRECT,Revenue,DIRECT PAYMENTS,22-Mar-17,1027.48,HESTIA HOUSING & SUPPORT,Invoice
ASC,SOCIAL SERVICES,DIRECT,Revenue,DIRECT PAYMENTS,22-Mar-17,643.88,HESTIA HOUSING & SUPPORT,Invoice
ASC,,DIRECT,Revenue,DIRECT PAYMENTS,31-Mar-17,209.82,PENDERELS TRUST,Invoice
ASC,,DIRECT,Revenue,DIRECT PAYMENTS,31-Mar-17,65.26,PENDERELS TRUST,Invoice
ASC,,DIRECT,Revenue,DIRECT PAYMENTS,31-Mar-17,106.08,PENDERELS TRUST,Invoice
ASC,,DIRECT,Revenue,DIRECT PAYMENTS,03-Mar-17,950.84,SHARE COMMUNITY,Invoice
ASC,,DIRECT,Revenue,DIRECT PAYMENTS,03-Mar-17,950.84,SHARE COMMUNITY,Invoice
ASC,,DIRECT,Revenue,DIRECT PAYMENTS,06-Mar-17,1188.55,SHARE COMMUNITY,Invoice
ASC,,DIRECT,Revenue,DIRECT PAYMENTS,06-Mar-17,950.84,SHARE COMMUNITY,Invoice
ASC,,DIRECT,Revenue,DIRECT PAYMENTS,06-Mar-17,950.84,SHARE COMMUNITY,Invoice
ASC,,DIRECT,Revenue,DIRECT PAYMENTS,06-Mar-17,1188.55,SHARE COMMUNITY,Invoice
ASC,,DIRECT,Revenue,DIRECT PAYMENTS,06-Mar-17,950.84,SHARE COMMUNITY,Invoice
ASC,,DIRECT,Revenue,DIRECT PAYMENTS,06-Mar-17,950.84,SHARE COMMUNITY,Invoice
ASC,SOCIAL SERVICES,DIRECT,Revenue,DIRECT PAYMENTS,22-Mar-17,913.12,VIBRANCE,Invoice
ASC,SOCIAL SERVICES,DIRECT,Revenue,DIRECT PAYMENTS,22-Mar-17,751.24,VIBRANCE,Invoice
ASC,SOCIAL SERVICES,DIRECT,Revenue,DIRECT PAYMENTS,22-Mar-17,556.92,VIBRANCE,Invoice
ASC,SOCIAL SERVICES,DIRECT,Revenue,DIRECT PAYMENTS,22-Mar-17,2703.44,VIBRANCE,Invoice
ASC,SOCIAL SERVICES,DIRECT,Revenue,DIRECT PAYMENTS,22-Mar-17,769.76,VIBRANCE,Invoice
ASC,SOCIAL SERVICES,DIRECT,Revenue,DIRECT PAYMENTS,22-Mar-17,783.68,VIBRANCE,Invoice
ASC,SOCIAL SERVICES,DIRECT,Revenue,DIRECT PAYMENTS,22-Mar-17,608.72,VIBRANCE,Invoice
ASC,SOCIAL SERVICES,DIRECT,Revenue,DIRECT PAYMENTS,22-Mar-17,3764.99,VIBRANCE,Invoice
ASC,SOCIAL SERVICES,DIRECT,Revenue,DIRECT PAYMENTS,22-Mar-17,714.00,VIBRANCE,Invoice
ASC,SOCIAL SERVICES,DIRECT,Revenue,DIRECT PAYMENTS,22-Mar-17,779.31,VIBRANCE,Invoice
ASC,SOCIAL SERVICES,DIRECT,Revenue,DIRECT PAYMENTS,22-Mar-17,1856.16,VIBRANCE,Invoice
ASC,SOCIAL SERVICES,DIRECT,Revenue,DIRECT PAYMENTS,22-Mar-17,930.56,VIBRANCE,Invoice
ASC,SOCIAL SERVICES,DIRECT,Revenue,DIRECT PAYMENTS,22-Mar-17,722.52,VIBRANCE,Invoice
ASC,SOCIAL SERVICES,DIRECT,Revenue,DIRECT PAYMENTS,22-Mar-17,468.96,VIBRANCE,Invoice
ASC,SOCIAL SERVICES,DIRECT,Revenue,DIRECT PAYMENTS,22-Mar-17,895.36,VIBRANCE,Invoice
ASC,SOCIAL SERVICES,DIRECT,Revenue,DIRECT PAYMENTS,22-Mar-17,722.52,VIBRANCE,Invoice
ASC,SOCIAL SERVICES,DIRECT,Revenue,DIRECT PAYMENTS,22-Mar-17,626.88,VIBRANCE,Invoice
ASC,SOCIAL SERVICES,DIRECT,Revenue,DIRECT PAYMENTS,22-Mar-17,595.52,VIBRANCE,Invoice
ASC,SOCIAL SERVICES,DIRECT,Revenue,DIRECT PAYMENTS,22-Mar-17,1942.04,VIBRANCE,Invoice
ASC,SOCIAL SERVICES,DIRECT,Revenue,DIRECT PAYMENTS,22-Mar-17,1316.44,VIBRANCE,Invoice
ASC,SOCIAL SERVICES,DIRECT,Revenue,DIRECT PAYMENTS,22-Mar-17,1603.78,VIBRANCE,Invoice
ASC,SOCIAL SERVICES,DIRECT,Revenue,DIRECT PAYMENTS,22-Mar-17,528.30,VIBRANCE,Invoice
ASC,SOCIAL SERVICES,CUSTOMER & CLIENT RECPTS - EXT,Revenue,CL CONT EXT RESIDEN S28A 100%,09-Mar-17,-505.20,ELEANOR NURSING & SOCIAL CARE,Invoice
ASC,SOCIAL SERVICES,CUSTOMER & CLIENT RECPTS - EXT,Revenue,CL CONT EXT RESIDEN S28A 100%,02-Mar-17,-510.80,VOYAGE CARE LTD,Invoice
ASC,SOCIAL SERVICES,CUSTOMER & CLIENT RECPTS - EXT,Revenue,CL CONT EXT RESIDEN S28A 100%,02-Mar-17,-400.60,VOYAGE CARE LTD,Invoice
ASC,SOCIAL SERVICES,CUSTOMER & CLIENT RECPTS - EXT,Revenue,CL CONT EXTERNAL RESIDENT S28A,09-Mar-17,-522.80,ASHTON CARE,Invoice
ASC,SOCIAL SERVICES,CUSTOMER & CLIENT RECPTS - EXT,Revenue,CL CONT EXTERNAL RESIDENT S28A,29-Mar-17,-522.80,ASHTON CARE,Invoice
ASC,SOCIAL SERVICES,CUSTOMER & CLIENT RECPTS - EXT,Revenue,CL CONT EXTERNAL RESIDENT S28A,24-Mar-17,-356.28,PARKGATE MANOR,Invoice
ASC,SOCIAL SERVICES,CUSTOMER & CLIENT RECPTS - EXT,Revenue,CL CONT EXTERNAL RESIDENT S28A,29-Mar-17,-356.27,PARKGATE MANOR,Invoice
ASC,SOCIAL SERVICES,CUSTOMER & CLIENT RECPTS - EXT,Revenue,CL CONT EXTERNAL RESIDENT S28A,29-Mar-17,-344.79,PARKGATE MANOR,Invoice
ASC,SOCIAL SERVICES,CUSTOMER & CLIENT RECPTS - EXT,Revenue,CL CONT EXTERNAL RESIDENT S28A,29-Mar-17,-578.82,ST MARYS RESIDENTIAL HOME,Invoice
ASC,SOCIAL SERVICES,CUSTOMER & CLIENT RECPTS - EXT,Revenue,CL CONT EXTERNAL RESIDENTIAL,14-Mar-17,116.46,AIMS CARE PARTNERSHIP,Invoice
ASC,SOCIAL SERVICES,CUSTOMER & CLIENT RECPTS - EXT,Revenue,CL CONT EXTERNAL RESIDENTIAL,29-Mar-17,-354.46,AIMS CARE PARTNERSHIP,Invoice
ASC,SOCIAL SERVICES,CUSTOMER & CLIENT RECPTS - EXT,Revenue,CL CONT EXTERNAL RESIDENTIAL,29-Mar-17,-275.51,ALLIED CARE (MHS) LTD,Invoice
ASC,SOCIAL SERVICES,CUSTOMER & CLIENT RECPTS - EXT,Revenue,CL CONT EXTERNAL RESIDENTIAL,29-Mar-17,-356.27,ASHCROFT CARE SERVICES,Invoice
ASC,SOCIAL SERVICES,CUSTOMER & CLIENT RECPTS - EXT,Revenue,CL CONT EXTERNAL RESIDENTIAL,29-Mar-17,-356.27,BEECH LODGE,Invoice
ASC,SOCIAL SERVICES,CUSTOMER & CLIENT RECPTS - EXT,Revenue,CL CONT EXTERNAL RESIDENTIAL,29-Mar-17,-356.27,BEECH LODGE,Invoice
ASC,SOCIAL SERVICES,CUSTOMER & CLIENT RECPTS - EXT,Revenue,CL CONT EXTERNAL RESIDENTIAL,29-Mar-17,-443.53,BEECH LODGE,Invoice
ASC,SOCIAL SERVICES,CUSTOMER & CLIENT RECPTS - EXT,Revenue,CL CONT EXTERNAL RESIDENTIAL,16-Mar-17,-321.80,C.H.O.I.C.E LIMITED,Invoice
ASC,SOCIAL SERVICES,CUSTOMER & CLIENT RECPTS - EXT,Revenue,CL CONT EXTERNAL RESIDENTIAL,09-Mar-17,-620.80,CAMERON LODGE LIMITED,Invoice
ASC,SOCIAL SERVICES,CUSTOMER & CLIENT RECPTS - EXT,Revenue,CL CONT EXTERNAL RESIDENTIAL,29-Mar-17,-620.80,CAMERON LODGE LIMITED,Invoice
ASC,SOCIAL SERVICES,CUSTOMER & CLIENT RECPTS - EXT,Revenue,CL CONT EXTERNAL RESIDENTIAL,29-Mar-17,-356.27,CENTRUST CARE HOMES LTD,Invoice
ASC,SOCIAL SERVICES,CUSTOMER & CLIENT RECPTS - EXT,Revenue,CL CONT EXTERNAL RESIDENTIAL,29-Mar-17,-356.27,CHERRY LODGE,Invoice
ASC,SOCIAL SERVICES,CUSTOMER & CLIENT RECPTS - EXT,Revenue,CL CONT EXTERNAL RESIDENTIAL,13-Mar-17,-400.60,CMG HOMES LTD,Invoice
ASC,SOCIAL SERVICES,CUSTOMER & CLIENT RECPTS - EXT,Revenue,CL CONT EXTERNAL RESIDENTIAL,13-Mar-17,-523.00,CMG HOMES LTD,Invoice
ASC,SOCIAL SERVICES,CUSTOMER & CLIENT RECPTS - EXT,Revenue,CL CONT EXTERNAL RESIDENTIAL,13-Mar-17,-400.60,CMG HOMES LTD,Invoice
ASC,SOCIAL SERVICES,CUSTOMER & CLIENT RECPTS - EXT,Revenue,CL CONT EXTERNAL RESIDENTIAL,13-Mar-17,-400.60,CMG HOMES LTD,Invoice
ASC,SOCIAL SERVICES,CUSTOMER & CLIENT RECPTS - EXT,Revenue,CL CONT EXTERNAL RESIDENTIAL,13-Mar-17,-400.60,CMG HOMES LTD,Invoice
ASC,SOCIAL SERVICES,CUSTOMER & CLIENT RECPTS - EXT,Revenue,CL CONT EXTERNAL RESIDENTIAL,13-Mar-17,-522.80,CMG HOMES LTD,Invoice
ASC,SOCIAL SERVICES,CUSTOMER & CLIENT RECPTS - EXT,Revenue,CL CONT EXTERNAL RESIDENTIAL,13-Mar-17,-359.80,CMG HOMES LTD,Invoice
ASC,SOCIAL SERVICES,CUSTOMER & CLIENT RECPTS - EXT,Revenue,CL CONT EXTERNAL RESIDENTIAL,13-Mar-17,-400.60,CMG HOMES LTD,Invoice
ASC,SOCIAL SERVICES,CUSTOMER & CLIENT RECPTS - EXT,Revenue,CL CONT EXTERNAL RESIDENTIAL,24-Mar-17,-321.80,DOLPHIN HOMES LTD,Invoice
ASC,SOCIAL SERVICES,CUSTOMER & CLIENT RECPTS - EXT,Revenue,CL CONT EXTERNAL RESIDENTIAL,24-Mar-17,-321.80,DOLPHIN HOMES LTD,Invoice
ASC,SOCIAL SERVICES,CUSTOMER & CLIENT RECPTS - EXT,Revenue,CL CONT EXTERNAL RESIDENTIAL,29-Mar-17,-321.79,DOLPHIN HOMES LTD,Invoice
ASC,SOCIAL SERVICES,CUSTOMER & CLIENT RECPTS - EXT,Revenue,CL CONT EXTERNAL RESIDENTIAL,29-Mar-17,-321.80,DOLPHIN HOMES LTD,Invoice
ASC,SOCIAL SERVICES,CUSTOMER & CLIENT RECPTS - EXT,Revenue,CL CONT EXTERNAL RESIDENTIAL,29-Mar-17,-356.27,DOWNING (CHERTSEY ROAD) LTD,Invoice
ASC,SOCIAL SERVICES,CUSTOMER & CLIENT RECPTS - EXT,Revenue,CL CONT EXTERNAL RESIDENTIAL,14-Mar-17,-400.60,ENHAM,Invoice
ASC,SOCIAL SERVICES,CUSTOMER & CLIENT RECPTS - EXT,Revenue,CL CONT EXTERNAL RESIDENTIAL,23-Mar-17,-400.60,ESSEX CARE CONSORTIUM,Invoice
ASC,SOCIAL SERVICES,CUSTOMER & CLIENT RECPTS - EXT,Revenue,CL CONT EXTERNAL RESIDENTIAL,23-Mar-17,-321.80,EVERGREEN PARTNERSHIP,Invoice
ASC,SOCIAL SERVICES,CUSTOMER & CLIENT RECPTS - EXT,Revenue,CL CONT EXTERNAL RESIDENTIAL,29-Mar-17,-634.71,FIRCROFT,Invoice
ASC,SOCIAL SERVICES,CUSTOMER & CLIENT RECPTS - EXT,Revenue,CL CONT EXTERNAL RESIDENTIAL,29-Mar-17,-429.21,FIRCROFT,Invoice
ASC,SOCIAL SERVICES,CUSTOMER & CLIENT RECPTS - EXT,Revenue,CL CONT EXTERNAL RESIDENTIAL,15-Mar-17,-117.86,FLORENCE AVENUE CARE HOME,Invoice
ASC,SOCIAL SERVICES,CUSTOMER & CLIENT RECPTS - EXT,Revenue,CL CONT EXTERNAL RESIDENTIAL,29-Mar-17,-373.78,FRANCES TAYLOR FOUNDATION,Invoice
ASC,SOCIAL SERVICES,CUSTOMER & CLIENT RECPTS - EXT,Revenue,CL CONT EXTERNAL RESIDENTIAL,29-Mar-17,-356.27,FRANCES TAYLOR FOUNDATION,Invoice
ASC,SOCIAL SERVICES,CUSTOMER & CLIENT RECPTS - EXT,Revenue,CL CONT EXTERNAL RESIDENTIAL,29-Mar-17,-443.53,FRANCES TAYLOR FOUNDATION,Invoice
ASC,SOCIAL SERVICES,CUSTOMER & CLIENT RECPTS - EXT,Revenue,CL CONT EXTERNAL RESIDENTIAL,02-Mar-17,-321.80,FREEWAYS TRUST LTD,Invoice
ASC,SOCIAL SERVICES,CUSTOMER & CLIENT RECPTS - EXT,Revenue,CL CONT EXTERNAL RESIDENTIAL,24-Mar-17,-337.60,FREEWAYS TRUST LTD,Invoice
ASC,SOCIAL SERVICES,CUSTOMER & CLIENT RECPTS - EXT,Revenue,CL CONT EXTERNAL RESIDENTIAL,23-Mar-17,-337.60,HAYDON PARK LODGE LTD,Invoice
ASC,SOCIAL SERVICES,CUSTOMER & CLIENT RECPTS - EXT,Revenue,CL CONT EXTERNAL RESIDENTIAL,29-Mar-17,-337.60,HAYDON PARK LODGE LTD,Invoice
ASC,SOCIAL SERVICES,CUSTOMER & CLIENT RECPTS - EXT,Revenue,CL CONT EXTERNAL RESIDENTIAL,29-Mar-17,-348.60,HEATHCOTES(SOUTHERN)LTD,Invoice
ASC,SOCIAL SERVICES,CUSTOMER & CLIENT RECPTS - EXT,Revenue,CL CONT EXTERNAL RESIDENTIAL,29-Mar-17,-578.82,HEYWOODS GRANGE LTD,Invoice
ASC,SOCIAL SERVICES,CUSTOMER & CLIENT RECPTS - EXT,Revenue,CL CONT EXTERNAL RESIDENTIAL,29-Mar-17,-356.27,HOME FROM HOME CARE LIMITED,Invoice
ASC,SOCIAL SERVICES,CUSTOMER & CLIENT RECPTS - EXT,Revenue,CL CONT EXTERNAL RESIDENTIAL,02-Mar-17,-321.80,ILG LTD,Invoice
ASC,SOCIAL SERVICES,CUSTOMER & CLIENT RECPTS - EXT,Revenue,CL CONT EXTERNAL RESIDENTIAL,21-Mar-17,-356.27,IN CHORUS LTD,Invoice
ASC,SOCIAL SERVICES,CUSTOMER & CLIENT RECPTS - EXT,Revenue,CL CONT EXTERNAL RESIDENTIAL,21-Mar-17,-321.80,KENILWORTH RESIDENTIAL HOME,Invoice
ASC,SOCIAL SERVICES,CUSTOMER & CLIENT RECPTS - EXT,Revenue,CL CONT EXTERNAL RESIDENTIAL,21-Mar-17,-522.80,KENILWORTH RESIDENTIAL HOME,Invoice
ASC,SOCIAL SERVICES,CUSTOMER & CLIENT RECPTS - EXT,Revenue,CL CONT EXTERNAL RESIDENTIAL,24-Mar-17,-400.60,LAETUS LODGE,Invoice
ASC,SOCIAL SERVICES,CUSTOMER & CLIENT RECPTS - EXT,Revenue,CL CONT EXTERNAL RESIDENTIAL,24-Mar-17,-192.80,LAETUS LODGE,Invoice
ASC,SOCIAL SERVICES,CUSTOMER & CLIENT RECPTS - EXT,Revenue,CL CONT EXTERNAL RESIDENTIAL,24-Mar-17,-348.60,LAETUS LODGE,Invoice
ASC,SOCIAL SERVICES,CUSTOMER & CLIENT RECPTS - EXT,Revenue,CL CONT EXTERNAL RESIDENTIAL,24-Mar-17,-321.80,LAETUS LODGE,Invoice
ASC,SOCIAL SERVICES,CUSTOMER & CLIENT RECPTS - EXT,Revenue,CL CONT EXTERNAL RESIDENTIAL,24-Mar-17,-321.80,LAETUS LODGE,Invoice
ASC,SOCIAL SERVICES,CUSTOMER & CLIENT RECPTS - EXT,Revenue,CL CONT EXTERNAL RESIDENTIAL,29-Mar-17,-244.83,LARKFIELD HALL LTD T/A PEPENBURY,Invoice
ASC,SOCIAL SERVICES,CUSTOMER & CLIENT RECPTS - EXT,Revenue,CL CONT EXTERNAL RESIDENTIAL,08-Mar-17,-321.80,LEONARD CHESHIRE,Invoice
ASC,SOCIAL SERVICES,CUSTOMER & CLIENT RECPTS - EXT,Revenue,CL CONT EXTERNAL RESIDENTIAL,28-Mar-17,-321.80,LIVABILITY,Invoice
ASC,SOCIAL SERVICES,CUSTOMER & CLIENT RECPTS - EXT,Revenue,CL CONT EXTERNAL RESIDENTIAL,28-Mar-17,-321.80,LIVABILITY,Invoice
ASC,SOCIAL SERVICES,CUSTOMER & CLIENT RECPTS - EXT,Revenue,CL CONT EXTERNAL RESIDENTIAL,24-Mar-17,174.92,LONDON CARE PARTNERSHIP LTD,Invoice
ASC,SOCIAL SERVICES,CUSTOMER & CLIENT RECPTS - EXT,Revenue,CL CONT EXTERNAL RESIDENTIAL,24-Mar-17,-400.60,LONDON CARE PARTNERSHIP LTD,Invoice
ASC,SOCIAL SERVICES,CUSTOMER & CLIENT RECPTS - EXT,Revenue,CL CONT EXTERNAL RESIDENTIAL,24-Mar-17,-1326.50,LONDON CARE PARTNERSHIP LTD,Invoice
ASC,SOCIAL SERVICES,CUSTOMER & CLIENT RECPTS - EXT,Revenue,CL CONT EXTERNAL RESIDENTIAL,24-Mar-17,-400.60,LONDON CARE PARTNERSHIP LTD,Invoice
ASC,SOCIAL SERVICES,CUSTOMER & CLIENT RECPTS - EXT,Revenue,CL CONT EXTERNAL RESIDENTIAL,24-Mar-17,-192.80,LONDON CARE PARTNERSHIP LTD,Invoice
ASC,SOCIAL SERVICES,CUSTOMER & CLIENT RECPTS - EXT,Revenue,CL CONT EXTERNAL RESIDENTIAL,24-Mar-17,-348.60,LONDON CARE PARTNERSHIP LTD,Invoice
ASC,SOCIAL SERVICES,CUSTOMER & CLIENT RECPTS - EXT,Revenue,CL CONT EXTERNAL RESIDENTIAL,02-Mar-17,-321.80,LOTUS CARE HOME LTD,Invoice
ASC,SOCIAL SERVICES,CUSTOMER & CLIENT RECPTS - EXT,Revenue,CL CONT EXTERNAL RESIDENTIAL,29-Mar-17,-321.80,LOTUS CARE HOME LTD,Invoice
ASC,SOCIAL SERVICES,CUSTOMER & CLIENT RECPTS - EXT,Revenue,CL CONT EXTERNAL RESIDENTIAL,24-Mar-17,-577.48,LOVING CARE LTD,Invoice
ASC,SOCIAL SERVICES,CUSTOMER & CLIENT RECPTS - EXT,Revenue,CL CONT EXTERNAL RESIDENTIAL,24-Mar-17,-321.80,LOVING CARE LTD,Invoice
ASC,SOCIAL SERVICES,CUSTOMER & CLIENT RECPTS - EXT,Revenue,CL CONT EXTERNAL RESIDENTIAL,24-Mar-17,-400.60,LOVING CARE LTD,Invoice
ASC,SOCIAL SERVICES,CUSTOMER & CLIENT RECPTS - EXT,Revenue,CL CONT EXTERNAL RESIDENTIAL,24-Mar-17,-400.60,LOVING CARE LTD,Invoice
ASC,SOCIAL SERVICES,CUSTOMER & CLIENT RECPTS - EXT,Revenue,CL CONT EXTERNAL RESIDENTIAL,24-Mar-17,-321.80,LOVING CARE LTD,Invoice
ASC,SOCIAL SERVICES,CUSTOMER & CLIENT RECPTS - EXT,Revenue,CL CONT EXTERNAL RESIDENTIAL,24-Mar-17,-321.80,LOVING CARE LTD,Invoice
ASC,SOCIAL SERVICES,CUSTOMER & CLIENT RECPTS - EXT,Revenue,CL CONT EXTERNAL RESIDENTIAL,24-Mar-17,-321.80,LOVING CARE LTD,Invoice
ASC,SOCIAL SERVICES,CUSTOMER & CLIENT RECPTS - EXT,Revenue,CL CONT EXTERNAL RESIDENTIAL,22-Mar-17,-321.80,MACINTYRE CARE,Invoice
ASC,SOCIAL SERVICES,CUSTOMER & CLIENT RECPTS - EXT,Revenue,CL CONT EXTERNAL RESIDENTIAL,22-Mar-17,-522.80,MACINTYRE CARE,Invoice
ASC,SOCIAL SERVICES,CUSTOMER & CLIENT RECPTS - EXT,Revenue,CL CONT EXTERNAL RESIDENTIAL,22-Mar-17,-400.60,MACINTYRE CARE,Invoice
ASC,SOCIAL SERVICES,CUSTOMER & CLIENT RECPTS - EXT,Revenue,CL CONT EXTERNAL RESIDENTIAL,22-Mar-17,-400.60,MACINTYRE CARE,Invoice
ASC,SOCIAL SERVICES,CUSTOMER & CLIENT RECPTS - EXT,Revenue,CL CONT EXTERNAL RESIDENTIAL,22-Mar-17,-400.60,MACINTYRE CARE,Invoice
ASC,SOCIAL SERVICES,CUSTOMER & CLIENT RECPTS - EXT,Revenue,CL CONT EXTERNAL RESIDENTIAL,22-Mar-17,-308.08,MACINTYRE CARE,Invoice
ASC,SOCIAL SERVICES,CUSTOMER & CLIENT RECPTS - EXT,Revenue,CL CONT EXTERNAL RESIDENTIAL,22-Mar-17,-400.60,MACINTYRE CARE,Invoice
ASC,SOCIAL SERVICES,CUSTOMER & CLIENT RECPTS - EXT,Revenue,CL CONT EXTERNAL RESIDENTIAL,22-Mar-17,-321.80,MACINTYRE CARE,Invoice
ASC,SOCIAL SERVICES,CUSTOMER & CLIENT RECPTS - EXT,Revenue,CL CONT EXTERNAL RESIDENTIAL,22-Mar-17,-522.80,MACINTYRE CARE,Invoice
ASC,SOCIAL SERVICES,CUSTOMER & CLIENT RECPTS - EXT,Revenue,CL CONT EXTERNAL RESIDENTIAL,22-Mar-17,-321.80,MACINTYRE CARE,Invoice
ASC,SOCIAL SERVICES,CUSTOMER & CLIENT RECPTS - EXT,Revenue,CL CONT EXTERNAL RESIDENTIAL,22-Mar-17,-522.80,MACINTYRE CARE,Invoice
ASC,SOCIAL SERVICES,CUSTOMER & CLIENT RECPTS - EXT,Revenue,CL CONT EXTERNAL RESIDENTIAL,22-Mar-17,-522.80,MACINTYRE CARE,Invoice
ASC,SOCIAL SERVICES,CUSTOMER & CLIENT RECPTS - EXT,Revenue,CL CONT EXTERNAL RESIDENTIAL,22-Mar-17,-522.80,MACINTYRE CARE,Invoice
ASC,SOCIAL SERVICES,CUSTOMER & CLIENT RECPTS - EXT,Revenue,CL CONT EXTERNAL RESIDENTIAL,22-Mar-17,-522.80,MACINTYRE CARE,Invoice
ASC,SOCIAL SERVICES,CUSTOMER & CLIENT RECPTS - EXT,Revenue,CL CONT EXTERNAL RESIDENTIAL,22-Mar-17,-526.48,MACINTYRE CARE,Invoice
ASC,SOCIAL SERVICES,CUSTOMER & CLIENT RECPTS - EXT,Revenue,CL CONT EXTERNAL RESIDENTIAL,27-Mar-17,-400.60,MACINTYRE CARE,Invoice
ASC,SOCIAL SERVICES,CUSTOMER & CLIENT RECPTS - EXT,Revenue,CL CONT EXTERNAL RESIDENTIAL,29-Mar-17,-356.27,MENCAP,Invoice
ASC,SOCIAL SERVICES,CUSTOMER & CLIENT RECPTS - EXT,Revenue,CL CONT EXTERNAL RESIDENTIAL,02-Mar-17,-400.60,MIGHOUSE RESIDENTIAL CARE HOME LTD,Invoice
ASC,SOCIAL SERVICES,CUSTOMER & CLIENT RECPTS - EXT,Revenue,CL CONT EXTERNAL RESIDENTIAL,13-Mar-17,-321.80,MISSION CARE,Invoice
ASC,SOCIAL SERVICES,CUSTOMER & CLIENT RECPTS - EXT,Revenue,CL CONT EXTERNAL RESIDENTIAL,13-Mar-17,-321.80,MISSION CARE,Invoice
ASC,SOCIAL SERVICES,CUSTOMER & CLIENT RECPTS - EXT,Revenue,CL CONT EXTERNAL RESIDENTIAL,13-Mar-17,-321.80,MISSION CARE,Invoice
ASC,SOCIAL SERVICES,CUSTOMER & CLIENT RECPTS - EXT,Revenue,CL CONT EXTERNAL RESIDENTIAL,24-Mar-17,-321.80,MISSION CARE,Invoice
ASC,SOCIAL SERVICES,CUSTOMER & CLIENT RECPTS - EXT,Revenue,CL CONT EXTERNAL RESIDENTIAL,08-Mar-17,-400.60,NAS SERVICES LIMITED,Invoice
ASC,SOCIAL SERVICES,CUSTOMER & CLIENT RECPTS - EXT,Revenue,CL CONT EXTERNAL RESIDENTIAL,14-Mar-17,-321.80,NORCREST (2000) HOME LTD,Invoice
ASC,SOCIAL SERVICES,CUSTOMER & CLIENT RECPTS - EXT,Revenue,CL CONT EXTERNAL RESIDENTIAL,14-Mar-17,-321.80,NORCREST (2000) HOME LTD,Invoice
ASC,SOCIAL SERVICES,CUSTOMER & CLIENT RECPTS - EXT,Revenue,CL CONT EXTERNAL RESIDENTIAL,13-Mar-17,-321.80,NORWOOD SCHOOLS LTD,Invoice
ASC,SOCIAL SERVICES,CUSTOMER & CLIENT RECPTS - EXT,Revenue,CL CONT EXTERNAL RESIDENTIAL,13-Mar-17,-400.60,NORWOOD SCHOOLS LTD,Invoice
ASC,SOCIAL SERVICES,CUSTOMER & CLIENT RECPTS - EXT,Revenue,CL CONT EXTERNAL RESIDENTIAL,29-Mar-17,-356.27,PATHWAY HEALTHCARE,Invoice
ASC,SOCIAL SERVICES,CUSTOMER & CLIENT RECPTS - EXT,Revenue,CL CONT EXTERNAL RESIDENTIAL,23-Mar-17,-321.80,POTENSIAL LTD,Invoice
ASC,SOCIAL SERVICES,CUSTOMER & CLIENT RECPTS - EXT,Revenue,CL CONT EXTERNAL RESIDENTIAL,29-Mar-17,-443.53,PROGRESS HOUSING MARLOW,Invoice
ASC,SOCIAL SERVICES,CUSTOMER & CLIENT RECPTS - EXT,Revenue,CL CONT EXTERNAL RESIDENTIAL,24-Mar-17,-321.80,PROSPECTS,Invoice
ASC,SOCIAL SERVICES,CUSTOMER & CLIENT RECPTS - EXT,Revenue,CL CONT EXTERNAL RESIDENTIAL,27-Mar-17,-321.80,PROSPECTS,Invoice
ASC,SOCIAL SERVICES,CUSTOMER & CLIENT RECPTS - EXT,Revenue,CL CONT EXTERNAL RESIDENTIAL,27-Mar-17,-321.80,PROSPECTS,Invoice
ASC,SOCIAL SERVICES,CUSTOMER & CLIENT RECPTS - EXT,Revenue,CL CONT EXTERNAL RESIDENTIAL,29-Mar-17,-578.82,RALEIGH HOUSE LTD,Invoice
ASC,SOCIAL SERVICES,CUSTOMER & CLIENT RECPTS - EXT,Revenue,CL CONT EXTERNAL RESIDENTIAL,09-Mar-17,-321.80,RESIDENTIAL CARE SERVICES T/A FRANKLYN L,Invoice
ASC,SOCIAL SERVICES,CUSTOMER & CLIENT RECPTS - EXT,Revenue,CL CONT EXTERNAL RESIDENTIAL,29-Mar-17,-443.53,RESIDENTIAL COMMUNITY CARE,Invoice
ASC,SOCIAL SERVICES,CUSTOMER & CLIENT RECPTS - EXT,Revenue,CL CONT EXTERNAL RESIDENTIAL,02-Mar-17,-321.80,RIDGEWOOD CARE SERVICES LTD,Invoice
ASC,SOCIAL SERVICES,CUSTOMER & CLIENT RECPTS - EXT,Revenue,CL CONT EXTERNAL RESIDENTIAL,22-Mar-17,-400.60,RIDGEWOOD CARE SERVICES LTD,Invoice
ASC,SOCIAL SERVICES,CUSTOMER & CLIENT RECPTS - EXT,Revenue,CL CONT EXTERNAL RESIDENTIAL,28-Mar-17,-400.60,RIDGEWOOD CARE SERVICES LTD,Invoice
ASC,SOCIAL SERVICES,CUSTOMER & CLIENT RECPTS - EXT,Revenue,CL CONT EXTERNAL RESIDENTIAL,28-Mar-17,-400.60,RIDGEWOOD CARE SERVICES LTD,Invoice
ASC,SOCIAL SERVICES,CUSTOMER & CLIENT RECPTS - EXT,Revenue,CL CONT EXTERNAL RESIDENTIAL,13-Mar-17,-321.80,ROYAL MENCAP SOCIETY,Invoice
ASC,SOCIAL SERVICES,CUSTOMER & CLIENT RECPTS - EXT,Revenue,CL CONT EXTERNAL RESIDENTIAL,13-Mar-17,-321.80,ROYAL MENCAP SOCIETY,Invoice
ASC,SOCIAL SERVICES,CUSTOMER & CLIENT RECPTS - EXT,Revenue,CL CONT EXTERNAL RESIDENTIAL,24-Mar-17,-321.80,SANCTUARY HOME CARE LTD,Invoice
ASC,SOCIAL SERVICES,CUSTOMER & CLIENT RECPTS - EXT,Revenue,CL CONT EXTERNAL RESIDENTIAL,09-Mar-17,-356.28,SAXON COURT,Invoice
ASC,SOCIAL SERVICES,CUSTOMER & CLIENT RECPTS - EXT,Revenue,CL CONT EXTERNAL RESIDENTIAL,09-Mar-17,-321.80,SAXON COURT,Invoice
ASC,SOCIAL SERVICES,CUSTOMER & CLIENT RECPTS - EXT,Revenue,CL CONT EXTERNAL RESIDENTIAL,29-Mar-17,-356.27,SAXON COURT,Invoice
ASC,SOCIAL SERVICES,CUSTOMER & CLIENT RECPTS - EXT,Revenue,CL CONT EXTERNAL RESIDENTIAL,29-Mar-17,-443.53,SCOPE,Invoice
ASC,SOCIAL SERVICES,CUSTOMER & CLIENT RECPTS - EXT,Revenue,CL CONT EXTERNAL RESIDENTIAL,29-Mar-17,-380.63,SCOPE,Invoice
ASC,SOCIAL SERVICES,CUSTOMER & CLIENT RECPTS - EXT,Revenue,CL CONT EXTERNAL RESIDENTIAL,29-Mar-17,-426.02,SEEABILITY,Invoice
ASC,SOCIAL SERVICES,CUSTOMER & CLIENT RECPTS - EXT,Revenue,CL CONT EXTERNAL RESIDENTIAL,14-Mar-17,-366.40,SPRING LAKE,Invoice
ASC,SOCIAL SERVICES,CUSTOMER & CLIENT RECPTS - EXT,Revenue,CL CONT EXTERNAL RESIDENTIAL,14-Mar-17,-366.40,SPRING LAKE,Invoice
ASC,SOCIAL SERVICES,CUSTOMER & CLIENT RECPTS - EXT,Revenue,CL CONT EXTERNAL RESIDENTIAL,21-Mar-17,-321.80,SPRING LAKE,Invoice
ASC,SOCIAL SERVICES,CUSTOMER & CLIENT RECPTS - EXT,Revenue,CL CONT EXTERNAL RESIDENTIAL,21-Mar-17,-321.80,SPRING LAKE,Invoice
ASC,SOCIAL SERVICES,CUSTOMER & CLIENT RECPTS - EXT,Revenue,CL CONT EXTERNAL RESIDENTIAL,21-Mar-17,-321.80,SPRING LAKE,Invoice
ASC,SOCIAL SERVICES,CUSTOMER & CLIENT RECPTS - EXT,Revenue,CL CONT EXTERNAL RESIDENTIAL,21-Mar-17,-366.40,SPRING LAKE,Invoice
ASC,SOCIAL SERVICES,CUSTOMER & CLIENT RECPTS - EXT,Revenue,CL CONT EXTERNAL RESIDENTIAL,02-Mar-17,-713.72,ST MARYS RESIDENTIAL HOME,Invoice
ASC,SOCIAL SERVICES,CUSTOMER & CLIENT RECPTS - EXT,Revenue,CL CONT EXTERNAL RESIDENTIAL,02-Mar-17,-1011.51,ST MARYS RESIDENTIAL HOME,Invoice
ASC,SOCIAL SERVICES,CUSTOMER & CLIENT RECPTS - EXT,Revenue,CL CONT EXTERNAL RESIDENTIAL,02-Mar-17,-522.80,ST MARYS RESIDENTIAL HOME,Invoice
ASC,SOCIAL SERVICES,CUSTOMER & CLIENT RECPTS - EXT,Revenue,CL CONT EXTERNAL RESIDENTIAL,29-Mar-17,-275.33,ST MARYS RESIDENTIAL HOME,Invoice
ASC,SOCIAL SERVICES,CUSTOMER & CLIENT RECPTS - EXT,Revenue,CL CONT EXTERNAL RESIDENTIAL,29-Mar-17,-356.27,ST MARYS RESIDENTIAL HOME,Invoice
ASC,SOCIAL SERVICES,CUSTOMER & CLIENT RECPTS - EXT,Revenue,CL CONT EXTERNAL RESIDENTIAL,29-Mar-17,-578.82,ST MARYS RESIDENTIAL HOME,Invoice
ASC,SOCIAL SERVICES,CUSTOMER & CLIENT RECPTS - EXT,Revenue,CL CONT EXTERNAL RESIDENTIAL,29-Mar-17,-373.78,ST MARYS RESIDENTIAL HOME,Invoice
ASC,SOCIAL SERVICES,CUSTOMER & CLIENT RECPTS - EXT,Revenue,CL CONT EXTERNAL RESIDENTIAL,29-Mar-17,-356.27,ST MARYS RESIDENTIAL HOME,Invoice
ASC,SOCIAL SERVICES,CUSTOMER & CLIENT RECPTS - EXT,Revenue,CL CONT EXTERNAL RESIDENTIAL,29-Mar-17,-443.53,ST MARYS RESIDENTIAL HOME,Invoice
ASC,SOCIAL SERVICES,CUSTOMER & CLIENT RECPTS - EXT,Revenue,CL CONT EXTERNAL RESIDENTIAL,29-Mar-17,-578.82,ST MARYS RESIDENTIAL HOME,Invoice
ASC,SOCIAL SERVICES,CUSTOMER & CLIENT RECPTS - EXT,Revenue,CL CONT EXTERNAL RESIDENTIAL,28-Mar-17,-443.53,STALLCOMBE HOUSE,Invoice
ASC,SOCIAL SERVICES,CUSTOMER & CLIENT RECPTS - EXT,Revenue,CL CONT EXTERNAL RESIDENTIAL,28-Mar-17,-443.53,STALLCOMBE HOUSE,Invoice
ASC,SOCIAL SERVICES,CUSTOMER & CLIENT RECPTS - EXT,Revenue,CL CONT EXTERNAL RESIDENTIAL,28-Mar-17,-443.53,STALLCOMBE HOUSE,Invoice
ASC,SOCIAL SERVICES,CUSTOMER & CLIENT RECPTS - EXT,Revenue,CL CONT EXTERNAL RESIDENTIAL,29-Mar-17,-522.80,SURREY & BORDERS PARTNERSHIP NHS TRUST,Invoice
ASC,SOCIAL SERVICES,CUSTOMER & CLIENT RECPTS - EXT,Revenue,CL CONT EXTERNAL RESIDENTIAL,29-Mar-17,-321.80,SURREY & BORDERS PARTNERSHIP NHS TRUST,Invoice
ASC,SOCIAL SERVICES,CUSTOMER & CLIENT RECPTS - EXT,Revenue,CL CONT EXTERNAL RESIDENTIAL,03-Mar-17,-356.28,SUSSEX AUTISTIC COMMUNITY TRUST(CARE SER,Invoice
ASC,SOCIAL SERVICES,CUSTOMER & CLIENT RECPTS - EXT,Revenue,CL CONT EXTERNAL RESIDENTIAL,14-Mar-17,-321.80,SUSSEX AUTISTIC COMMUNITY TRUST(CARE SER,Invoice
ASC,SOCIAL SERVICES,CUSTOMER & CLIENT RECPTS - EXT,Revenue,CL CONT EXTERNAL RESIDENTIAL,09-Mar-17,-321.80,THE BRANDON TRUST,Invoice
ASC,SOCIAL SERVICES,CUSTOMER & CLIENT RECPTS - EXT,Revenue,CL CONT EXTERNAL RESIDENTIAL,22-Mar-17,-321.80,THE BRANDON TRUST,Invoice
ASC,SOCIAL SERVICES,CUSTOMER & CLIENT RECPTS - EXT,Revenue,CL CONT EXTERNAL RESIDENTIAL,29-Mar-17,-578.82,THE COMMUNITY CARE COMPANY UK LTD,Invoice
ASC,SOCIAL SERVICES,CUSTOMER & CLIENT RECPTS - EXT,Revenue,CL CONT EXTERNAL RESIDENTIAL,29-Mar-17,-443.53,THE COMMUNITY CARE COMPANY UK LTD,Invoice
ASC,SOCIAL SERVICES,CUSTOMER & CLIENT RECPTS - EXT,Revenue,CL CONT EXTERNAL RESIDENTIAL,29-Mar-17,-443.53,THE COMMUNITY CARE COMPANY UK LTD,Invoice
ASC,SOCIAL SERVICES,CUSTOMER & CLIENT RECPTS - EXT,Revenue,CL CONT EXTERNAL RESIDENTIAL,29-Mar-17,-373.78,THE COMMUNITY CARE COMPANY UK LTD,Invoice
ASC,SOCIAL SERVICES,CUSTOMER & CLIENT RECPTS - EXT,Revenue,CL CONT EXTERNAL RESIDENTIAL,29-Mar-17,-435.78,THE COMMUNITY CARE COMPANY UK LTD,Invoice
ASC,SOCIAL SERVICES,CUSTOMER & CLIENT RECPTS - EXT,Revenue,CL CONT EXTERNAL RESIDENTIAL,22-Mar-17,-321.80,THE HOME FARM TRUST LTD,Invoice
ASC,SOCIAL SERVICES,CUSTOMER & CLIENT RECPTS - EXT,Revenue,CL CONT EXTERNAL RESIDENTIAL,22-Mar-17,-522.80,THE HOME FARM TRUST LTD,Invoice
ASC,SOCIAL SERVICES,CUSTOMER & CLIENT RECPTS - EXT,Revenue,CL CONT EXTERNAL RESIDENTIAL,28-Mar-17,-321.80,THE HOME FARM TRUST LTD,Invoice
ASC,SOCIAL SERVICES,CUSTOMER & CLIENT RECPTS - EXT,Revenue,CL CONT EXTERNAL RESIDENTIAL,28-Mar-17,-522.80,THE HOME FARM TRUST LTD,Invoice
ASC,SOCIAL SERVICES,CUSTOMER & CLIENT RECPTS - EXT,Revenue,CL CONT EXTERNAL RESIDENTIAL,23-Mar-17,-321.80,THE LEO TRUST,Invoice
ASC,SOCIAL SERVICES,CUSTOMER & CLIENT RECPTS - EXT,Revenue,CL CONT EXTERNAL RESIDENTIAL,29-Mar-17,-443.53,THE MANOR HOUSE,Invoice
ASC,SOCIAL SERVICES,CUSTOMER & CLIENT RECPTS - EXT,Revenue,CL CONT EXTERNAL RESIDENTIAL,08-Mar-17,-443.53,THE REGARD PARTNERSHIP,Invoice
ASC,SOCIAL SERVICES,CUSTOMER & CLIENT RECPTS - EXT,Revenue,CL CONT EXTERNAL RESIDENTIAL,08-Mar-17,-356.27,THE REGARD PARTNERSHIP,Invoice
ASC,SOCIAL SERVICES,CUSTOMER & CLIENT RECPTS - EXT,Revenue,CL CONT EXTERNAL RESIDENTIAL,08-Mar-17,-578.82,THE REGARD PARTNERSHIP,Invoice
ASC,SOCIAL SERVICES,CUSTOMER & CLIENT RECPTS - EXT,Revenue,CL CONT EXTERNAL RESIDENTIAL,08-Mar-17,-443.53,THE REGARD PARTNERSHIP,Invoice
ASC,SOCIAL SERVICES,CUSTOMER & CLIENT RECPTS - EXT,Revenue,CL CONT EXTERNAL RESIDENTIAL,08-Mar-17,-443.53,THE REGARD PARTNERSHIP,Invoice
ASC,SOCIAL SERVICES,CUSTOMER & CLIENT RECPTS - EXT,Revenue,CL CONT EXTERNAL RESIDENTIAL,14-Mar-17,-400.60,THE REGARD PARTNERSHIP,Invoice
ASC,SOCIAL SERVICES,CUSTOMER & CLIENT RECPTS - EXT,Revenue,CL CONT EXTERNAL RESIDENTIAL,14-Mar-17,-321.80,THE REGARD PARTNERSHIP,Invoice
ASC,SOCIAL SERVICES,CUSTOMER & CLIENT RECPTS - EXT,Revenue,CL CONT EXTERNAL RESIDENTIAL,14-Mar-17,-522.80,THE REGARD PARTNERSHIP,Invoice
ASC,SOCIAL SERVICES,CUSTOMER & CLIENT RECPTS - EXT,Revenue,CL CONT EXTERNAL RESIDENTIAL,14-Mar-17,-400.60,THE REGARD PARTNERSHIP,Invoice
ASC,SOCIAL SERVICES,CUSTOMER & CLIENT RECPTS - EXT,Revenue,CL CONT EXTERNAL RESIDENTIAL,14-Mar-17,-400.60,THE REGARD PARTNERSHIP,Invoice
ASC,SOCIAL SERVICES,CUSTOMER & CLIENT RECPTS - EXT,Revenue,CL CONT EXTERNAL RESIDENTIAL,21-Mar-17,-400.60,THE WELL HOUSE,Invoice
ASC,SOCIAL SERVICES,CUSTOMER & CLIENT RECPTS - EXT,Revenue,CL CONT EXTERNAL RESIDENTIAL,23-Mar-17,-343.80,THE WELL HOUSE,Invoice
ASC,SOCIAL SERVICES,CUSTOMER & CLIENT RECPTS - EXT,Revenue,CL CONT EXTERNAL RESIDENTIAL,29-Mar-17,-146.14,THE WEST OF ENGLAND SCHOOL & COLLEGE,Invoice
ASC,SOCIAL SERVICES,CUSTOMER & CLIENT RECPTS - EXT,Revenue,CL CONT EXTERNAL RESIDENTIAL,29-Mar-17,-215.89,THE WEST OF ENGLAND SCHOOL & COLLEGE,Invoice
ASC,SOCIAL SERVICES,CUSTOMER & CLIENT RECPTS - EXT,Revenue,CL CONT EXTERNAL RESIDENTIAL,24-Mar-17,-348.60,TOTTERDOWN,Invoice
ASC,SOCIAL SERVICES,CUSTOMER & CLIENT RECPTS - EXT,Revenue,CL CONT EXTERNAL RESIDENTIAL,29-Mar-17,-380.63,TRACS,Invoice
ASC,SOCIAL SERVICES,CUSTOMER & CLIENT RECPTS - EXT,Revenue,CL CONT EXTERNAL RESIDENTIAL,23-Mar-17,-400.60,UNITED RESPONSE,Invoice
ASC,SOCIAL SERVICES,CUSTOMER & CLIENT RECPTS - EXT,Revenue,CL CONT EXTERNAL RESIDENTIAL,02-Mar-17,-321.38,VOYAGE CARE LTD,Invoice
ASC,SOCIAL SERVICES,CUSTOMER & CLIENT RECPTS - EXT,Revenue,CL CONT EXTERNAL RESIDENTIAL,02-Mar-17,-523.56,VOYAGE CARE LTD,Invoice
ASC,SOCIAL SERVICES,CUSTOMER & CLIENT RECPTS - EXT,Revenue,CL CONT EXTERNAL RESIDENTIAL,02-Mar-17,-343.80,VOYAGE CARE LTD,Invoice
ASC,SOCIAL SERVICES,CUSTOMER & CLIENT RECPTS - EXT,Revenue,CL CONT EXTERNAL RESIDENTIAL,02-Mar-17,-348.60,VOYAGE CARE LTD,Invoice
ASC,SOCIAL SERVICES,CUSTOMER & CLIENT RECPTS - EXT,Revenue,CL CONT EXTERNAL RESIDENTIAL,21-Mar-17,-296.53,VOYAGE CARE LTD,Invoice
ASC,SOCIAL SERVICES,CUSTOMER & CLIENT RECPTS - EXT,Revenue,CL CONT EXTERNAL RESIDENTIAL,23-Mar-17,-348.60,WHITE ROSE CARE,Invoice
ASC,SOCIAL SERVICES,CUSTOMER & CLIENT RECPTS - EXT,Revenue,CL CONT EXTERNAL RESIDENTIAL,23-Mar-17,-466.79,WHITMORE VALE HOUSING ASSOCIATION LTD,Invoice
ASC,SOCIAL SERVICES,CUSTOMER & CLIENT RECPTS - EXT,Revenue,CL CONT EXTERNAL RESIDENTIAL,06-Mar-17,-310.31,WINSLOW COURT,Invoice
ASC,SOCIAL SERVICES,CUSTOMER & CLIENT RECPTS - EXT,Revenue,CL CONT EXTERNAL RESIDENTIAL,16-Mar-17,-321.80,WINSLOW COURT,Invoice
ASC,SOCIAL SERVICES,CUSTOMER & CLIENT RECPTS - EXT,Revenue,CL CONT EXTERNAL RESIDENTIAL,29-Mar-17,-321.80,WINSLOW COURT,Invoice
ASC,SOCIAL SERVICES,CUSTOMER & CLIENT RECPTS - EXT,Revenue,CL CONTS INTERNAL RESIDENTIAL,22-Mar-17,-321.80,MACINTYRE CARE,Invoice
ASC,SOCIAL SERVICES,CUSTOMER & CLIENT RECPTS - EXT,Revenue,CLIENT CONTS - DIRECT PAYMENTS,22-Mar-17,-74.80,EPAYROLLUK LTD,Invoice
ASC,SOCIAL SERVICES,CUSTOMER & CLIENT RECPTS - EXT,Revenue,CLIENT CONTS - DIRECT PAYMENTS,22-Mar-17,-209.60,HESTIA HOUSING & SUPPORT,Invoice
ASC,SOCIAL SERVICES,CUSTOMER & CLIENT RECPTS - EXT,Revenue,CLIENT CONTS - DIRECT PAYMENTS,22-Mar-17,-38.80,HESTIA HOUSING & SUPPORT,Invoice
ASC,SOCIAL SERVICES,CUSTOMER & CLIENT RECPTS - EXT,Revenue,CLIENT CONTS - DIRECT PAYMENTS,22-Mar-17,-235.40,VIBRANCE,Invoice
ASC,SOCIAL SERVICES,CUSTOMER & CLIENT RECPTS - EXT,Revenue,CLIENT CONTS - DIRECT PAYMENTS,22-Mar-17,-114.52,VIBRANCE,Invoice
ASC,SOCIAL SERVICES,CUSTOMER & CLIENT RECPTS - EXT,Revenue,CLIENT CONTS - DIRECT PAYMENTS,22-Mar-17,764.40,VIBRANCE,Invoice
ASC,SOCIAL SERVICES,CUSTOMER & CLIENT RECPTS - EXT,Revenue,CLIENT CONTS - DIRECT PAYMENTS,22-Mar-17,-57.60,VIBRANCE,Invoice
ASC,SOCIAL SERVICES,CUSTOMER & CLIENT RECPTS - EXT,Revenue,CLIENT CONTS EXTERNAL NURSING,24-Mar-17,-905.84,BUPA CARE SERVICES BACS RECEIPTS,Invoice
ASC,SOCIAL SERVICES,CUSTOMER & CLIENT RECPTS - EXT,Revenue,CLIENT CONTS EXTERNAL NURSING,24-Mar-17,-522.80,BUPA CARE SERVICES BACS RECEIPTS,Invoice
ASC,SOCIAL SERVICES,CUSTOMER & CLIENT RECPTS - EXT,Revenue,CLIENT CONTS EXTERNAL NURSING,24-Mar-17,-321.80,BUPA CARE SERVICES BACS RECEIPTS,Invoice
ASC,SOCIAL SERVICES,CUSTOMER & CLIENT RECPTS - EXT,Revenue,CLIENT CONTS EXTERNAL NURSING,24-Mar-17,-564.88,ROSEDENE NURSING HOME,Invoice
ASC,SOCIAL SERVICES,CUSTOMER & CLIENT RECPTS - EXT,Revenue,CLIENT CONTS EXTERNAL NURSING,29-Mar-17,-443.53,SUSSEX HEALTH CARE,Invoice
ASC,SOCIAL SERVICES,CUSTOMER & CLIENT RECPTS - EXT,Revenue,CLIENT CONTS EXTERNAL NURSING,02-Mar-17,-284.60,VOYAGE CARE LTD,Invoice
ASC,SOCIAL SERVICES,CUSTOMER & CLIENT RECPTS - EXT,Revenue,CLIENT CONTS EXTERNAL NURSING,02-Mar-17,-400.60,VOYAGE CARE LTD,Invoice
ASC,SOCIAL SERVICES,CUSTOMER & CLIENT RECPTS - EXT,Revenue,CLIENT CONTS EXTERNAL NURSING,06-Mar-17,-321.80,WINGHAM COURT,Invoice
ASC,SOCIAL SERVICES,CUSTOMER & CLIENT RECPTS - EXT,Revenue,CLIENT CONTS EXTERNAL NURSING,09-Mar-17,-321.80,WINGHAM COURT,Invoice
ASC,SOCIAL SERVICES,CUSTOMER & CLIENT RECPTS - EXT,Revenue,CLIENT CONTS EXTERNAL NURSING,24-Mar-17,-241.35,WINGHAM COURT,Invoice
ASC,SOCIAL SERVICES,CUSTOMER & CLIENT RECPTS - EXT,Revenue,RNCC,24-Mar-17,-625.00,BUPA CARE SERVICES BACS RECEIPTS,Invoice
ASC,SOCIAL SERVICES,CUSTOMER & CLIENT RECPTS - EXT,Revenue,RNCC,24-Mar-17,-625.00,BUPA CARE SERVICES BACS RECEIPTS,Invoice
ASC,SOCIAL SERVICES,CUSTOMER & CLIENT RECPTS - EXT,Revenue,RNCC,24-Mar-17,-625.00,BUPA CARE SERVICES BACS RECEIPTS,Invoice
ASC,SOCIAL SERVICES,CUSTOMER & CLIENT RECPTS - EXT,Revenue,RNCC,24-Mar-17,-625.00,BUPA CARE SERVICES BACS RECEIPTS,Invoice
ASC,SOCIAL SERVICES,CUSTOMER & CLIENT RECPTS - EXT,Revenue,RNCC,24-Mar-17,-625.00,ROSEDENE NURSING HOME,Invoice
ASC,SOCIAL SERVICES,CUSTOMER & CLIENT RECPTS - EXT,Revenue,RNCC,29-Mar-17,-691.97,SUSSEX HEALTH CARE,Invoice
ASC,SOCIAL SERVICES,CUSTOMER & CLIENT RECPTS - EXT,Revenue,RNCC,02-Mar-17,-625.00,VOYAGE CARE LTD,Invoice
ASC,SOCIAL SERVICES,CUSTOMER & CLIENT RECPTS - EXT,Revenue,RNCC,02-Mar-17,-625.00,VOYAGE CARE LTD,Invoice
ASC,SOCIAL SERVICES,CUSTOMER & CLIENT RECPTS - EXT,Revenue,RNCC,06-Mar-17,-625.00,WINGHAM COURT,Invoice
ASC,SOCIAL SERVICES,CUSTOMER & CLIENT RECPTS - EXT,Revenue,RNCC,09-Mar-17,-625.00,WINGHAM COURT,Invoice
ASC,SOCIAL SERVICES,CUSTOMER & CLIENT RECPTS - EXT,Revenue,RNCC,24-Mar-17,-468.75,WINGHAM COURT,Invoice
PH,,GRANTS & SUBSCRIPTIONS,Revenue,CONTRACTS TO VOLUNTARY ORGS,16-Mar-17,10800.00,GENERATE OPPORTUNITIES LTD,Invoice
PH,,GRANTS & SUBSCRIPTIONS,Revenue,CONTRACTS TO VOLUNTARY ORGS,16-Mar-17,3500.00,GENERATE OPPORTUNITIES LTD,Invoice
PH,,GRANTS & SUBSCRIPTIONS,Revenue,CONTRACTS TO VOLUNTARY ORGS,16-Mar-17,675.00,GENERATE OPPORTUNITIES LTD,Invoice
PH,SOCIAL SERVICES,PRIVATE,Revenue,EXTERNAL RESIDENTIAL CARE,13-Mar-17,2800.00,MOUNT CARMEL,Invoice
PH,SOCIAL SERVICES,PRIVATE,Revenue,EXTERNAL RESIDENTIAL CARE,13-Mar-17,2800.00,MOUNT CARMEL,Invoice
PH,SOCIAL SERVICES,PRIVATE,Revenue,EXTERNAL RESIDENTIAL CARE,08-Mar-17,573.48,THE REHABILITATION FOR ADDICTED PRISONER,Invoice
PH,SOCIAL SERVICES,PRIVATE,Revenue,EXTERNAL RESIDENTIAL CARE,08-Mar-17,2222.25,THE REHABILITATION FOR ADDICTED PRISONER,Invoice
PH,SOCIAL SERVICES,PRIVATE,Revenue,EXTERNAL RESIDENTIAL CARE,08-Mar-17,2007.20,THE REHABILITATION FOR ADDICTED PRISONER,Invoice
PH,SOCIAL SERVICES,PRIVATE,Revenue,EXTERNAL RESIDENTIAL CARE,21-Mar-17,2628.58,TREVI HOUSE LTD,Invoice
PH,SOCIAL SERVICES,VOL ASS,Revenue,SUPPORTED HOUSING PROGRAMME,21-Mar-17,3480.00,EQUINOX CARE,Invoice
PH,SOCIAL SERVICES,CUSTOMER & CLIENT RECPTS - EXT,Revenue,CL CONT EXTERNAL RESIDENTIAL,13-Mar-17,-28.88,MOUNT CARMEL,Invoice
PH,SOCIAL SERVICES,CUSTOMER & CLIENT RECPTS - EXT,Revenue,CL CONT EXTERNAL RESIDENTIAL,13-Mar-17,-400.60,MOUNT CARMEL,Invoice
PH,SOCIAL SERVICES,CUSTOMER & CLIENT RECPTS - EXT,Revenue,CL CONT EXTERNAL RESIDENTIAL,21-Mar-17,-137.72,TREVI HOUSE LTD,Invoice
ASC,SOCIAL SERVICES,OTHER AGENCIES,Revenue,EXTERNAL OUTREACH,13-Mar-17,507.00,ACTION ON HEARING LOSS,Invoice
ASC,SOCIAL SERVICES,OTHER AGENCIES,Revenue,EXTERNAL OUTREACH,22-Mar-17,760.50,ACTION ON HEARING LOSS,Invoice
ASC,SOCIAL SERVICES,SERVICES,Revenue,TRAVEL BUDDY SCHEME,24-Mar-17,2247.86,HARINGEY ASSOCIATION FOR INDEPENDENT LIV,Invoice
ASC,SOCIAL SERVICES,OTHER AGENCIES,Revenue,EXTERNAL LODGINGS,06-Mar-17,1260.00,EURO HOTELS (GILROY COURT) LTD,Invoice
ASC,SOCIAL SERVICES,OTHER AGENCIES,Revenue,EXTERNAL OUTREACH,24-Mar-17,992.00,ACTION ON HEARING LOSS,Invoice
ASC,SOCIAL SERVICES,OTHER AGENCIES,Revenue,EXTERNAL OUTREACH,02-Mar-17,423.36,NAS SERVICES LIMITED,Invoice
ASC,SOCIAL SERVICES,OTHER AGENCIES,Revenue,EXTERNAL OUTREACH,22-Mar-17,617.12,ROYAL ASSOCIATION FOR DEAF PEOPLE,Invoice
ASC,SOCIAL SERVICES,OTHER AGENCIES,Revenue,EXTERNAL OUTREACH,13-Mar-17,560.00,SIGNHEALTH,Invoice
ASC,SOCIAL SERVICES,PRIVATE,Revenue,EXTERNAL DAYCARE,08-Mar-17,515.88,NAS SERVICES LIMITED,Invoice
ASC,SOCIAL SERVICES,PRIVATE,Revenue,EXTERNAL DAYCARE,02-Mar-17,718.12,SHARE COMMUNITY,Invoice
ASC,SOCIAL SERVICES,PRIVATE,Revenue,EXTERNAL DAYCARE,02-Mar-17,957.52,SHARE COMMUNITY,Invoice
ASC,SOCIAL SERVICES,PRIVATE,Revenue,EXTERNAL DAYCARE,13-Mar-17,845.60,WANDSWORTH BENGALI WELFARE ASSOCIATION,Invoice
ASC,SOCIAL SERVICES,PRIVATE,Revenue,EXTERNAL DAYCARE,21-Mar-17,845.60,WANDSWORTH BENGALI WELFARE ASSOCIATION,Invoice
ASC,SOCIAL SERVICES,PRIVATE,Revenue,EXTERNAL HOMECARE,24-Mar-17,540.00,AOCS PROPERTY MAINTENANCE LTD,Invoice
ASC,SOCIAL SERVICES,PRIVATE,Revenue,EXTERNAL HOMECARE,28-Mar-17,1850.00,AOCS PROPERTY MAINTENANCE LTD,Invoice
ASC,SOCIAL SERVICES,PRIVATE,Revenue,EXTERNAL HOMECARE,10-Mar-17,520.50,ASIAN ELDERS SUPPORT SCHEME,Invoice
ASC,SOCIAL SERVICES,PRIVATE,Revenue,EXTERNAL HOMECARE,10-Mar-17,1411.96,ASIAN ELDERS SUPPORT SCHEME,Invoice
ASC,SOCIAL SERVICES,PRIVATE,Revenue,EXTERNAL HOMECARE,03-Mar-17,511.99,CARE OUTLOOK LTD,Invoice
ASC,SOCIAL SERVICES,PRIVATE,Revenue,EXTERNAL HOMECARE,24-Mar-17,570.65,GOLDSBOROUGH HOMECARE & NURSING SERVICES,Invoice
ASC,SOCIAL SERVICES,PRIVATE,Revenue,EXTERNAL HOMECARE,02-Mar-17,595.95,HOLISTIC COMMUNITY CARE LTD,Invoice
ASC,SOCIAL SERVICES,PRIVATE,Revenue,EXTERNAL HOMECARE,03-Mar-17,543.40,HOME INSTEAD SENIOR CARE LTD,Invoice
ASC,SOCIAL SERVICES,PRIVATE,Revenue,EXTERNAL HOMECARE,21-Mar-17,627.00,HOME INSTEAD SENIOR CARE LTD,Invoice
ASC,SOCIAL SERVICES,PRIVATE,Revenue,EXTERNAL HOMECARE,27-Mar-17,1074.52,LONDON HOMECARE LTD,Invoice
ASC,SOCIAL SERVICES,PRIVATE,Revenue,EXTERNAL HOMECARE,14-Mar-17,1793.50,MCCALLUM CARE LTD CAREMARK (WANDSWORTH),Invoice
ASC,SOCIAL SERVICES,PRIVATE,Revenue,EXTERNAL HOMECARE,24-Mar-17,1783.76,MCCALLUM CARE LTD CAREMARK (WANDSWORTH),Invoice
ASC,SOCIAL SERVICES,PRIVATE,Revenue,EXTERNAL HOMECARE,28-Mar-17,863.20,MEARS CARE LTD,Invoice
ASC,SOCIAL SERVICES,PRIVATE,Revenue,EXTERNAL HOMECARE,21-Mar-17,815.04,METRO HOMECARE,Invoice
ASC,SOCIAL SERVICES,PRIVATE,Revenue,EXTERNAL HOMECARE,21-Mar-17,1774.02,MUSHKIL AASAAN LTD,Invoice
ASC,SOCIAL SERVICES,PRIVATE,Revenue,EXTERNAL HOMECARE,24-Mar-17,1660.50,MUSHKIL AASAAN LTD,Invoice
ASC,SOCIAL SERVICES,PRIVATE,Revenue,EXTERNAL HOMECARE,21-Mar-17,1120.04,PARKGATE NURSING AGENCY,Invoice
ASC,SOCIAL SERVICES,PRIVATE,Revenue,EXTERNAL HOMECARE,06-Mar-17,1257.48,PROFESSIONAL CARE SUPPORT SERVICES LTD,Invoice
ASC,SOCIAL SERVICES,PRIVATE,Revenue,EXTERNAL HOMECARE,06-Mar-17,731.88,PROFESSIONAL CARE SUPPORT SERVICES LTD,Invoice
ASC,SOCIAL SERVICES,PRIVATE,Revenue,EXTERNAL HOMECARE,06-Mar-17,807.60,PROFESSIONAL CARE SUPPORT SERVICES LTD,Invoice
ASC,SOCIAL SERVICES,PRIVATE,Revenue,EXTERNAL HOMECARE,22-Mar-17,1079.72,PROFESSIONAL CARE SUPPORT SERVICES LTD,Invoice
ASC,SOCIAL SERVICES,PRIVATE,Revenue,EXTERNAL HOMECARE,23-Mar-17,1170.00,SOMA HEALTHCARE LTD,Invoice
ASC,SOCIAL SERVICES,PRIVATE,Revenue,EXTERNAL HOMECARE,23-Mar-17,649.00,SOMA HEALTHCARE LTD,Invoice
ASC,SOCIAL SERVICES,PRIVATE,Revenue,EXTERNAL HOMECARE,23-Mar-17,969.00,SOMA HEALTHCARE LTD,Invoice
ASC,SOCIAL SERVICES,PRIVATE,Revenue,EXTERNAL HOMECARE,13-Mar-17,1236.04,STOCKWELLCARE SUPPORT SERVICES,Invoice
ASC,SOCIAL SERVICES,PRIVATE,Revenue,EXTERNAL HOMECARE,13-Mar-17,955.44,STOCKWELLCARE SUPPORT SERVICES,Invoice
ASC,SOCIAL SERVICES,PRIVATE,Revenue,EXTERNAL HOMECARE,28-Mar-17,3114.04,STOCKWELLCARE SUPPORT SERVICES,Invoice
ASC,SOCIAL SERVICES,PRIVATE,Revenue,EXTERNAL HOMECARE,28-Mar-17,4125.36,STOCKWELLCARE SUPPORT SERVICES,Invoice
ASC,SOCIAL SERVICES,PRIVATE,Revenue,EXTERNAL HOMECARE,28-Mar-17,3581.76,STOCKWELLCARE SUPPORT SERVICES,Invoice
ASC,SOCIAL SERVICES,PRIVATE,Revenue,EXTERNAL HOMECARE,28-Mar-17,3581.76,STOCKWELLCARE SUPPORT SERVICES,Invoice
ASC,SOCIAL SERVICES,PRIVATE,Revenue,EXTERNAL HOMECARE,02-Mar-17,854.64,SUPREME CARE SERVICE LTD,Invoice
ASC,SOCIAL SERVICES,PRIVATE,Revenue,EXTERNAL HOMECARE,02-Mar-17,663.41,SUPREME CARE SERVICE LTD,Invoice
ASC,SOCIAL SERVICES,PRIVATE,Revenue,EXTERNAL HOMECARE,02-Mar-17,627.04,SUPREME CARE SERVICE LTD,Invoice
ASC,SOCIAL SERVICES,PRIVATE,Revenue,EXTERNAL HOMECARE,28-Mar-17,728.75,WESTMINSTER HOMECARE LTD,Invoice
ASC,SOCIAL SERVICES,PRIVATE,Revenue,EXTERNAL HOMECARE,28-Mar-17,816.24,WESTMINSTER HOMECARE LTD,Invoice
ASC,SOCIAL SERVICES,PRIVATE,Revenue,EXTERNAL HOMECARE,28-Mar-17,546.55,WESTMINSTER HOMECARE LTD,Invoice
ASC,SOCIAL SERVICES,PRIVATE,Revenue,EXTERNAL NURSING CARE,24-Mar-17,2893.60,GEORGE POTTER CARE HOME LTD,Invoice
ASC,SOCIAL SERVICES,PRIVATE,Revenue,EXTERNAL NURSING CARE,24-Mar-17,3674.96,HAVELOCK COURT NURSING HOME,Invoice
ASC,SOCIAL SERVICES,PRIVATE,Revenue,EXTERNAL NURSING CARE,13-Mar-17,3792.96,HEALTH CARE HOMES - SOVEREIGN LODGE,Invoice
ASC,SOCIAL SERVICES,PRIVATE,Revenue,EXTERNAL NURSING CARE,29-Mar-17,3792.96,HEALTH CARE HOMES - SOVEREIGN LODGE,Invoice
ASC,SOCIAL SERVICES,PRIVATE,Revenue,EXTERNAL NURSING CARE,24-Mar-17,2999.16,LIFE STYLE CARE (2011) PLC,Invoice
ASC,SOCIAL SERVICES,PRIVATE,Revenue,EXTERNAL NURSING CARE,24-Mar-17,2792.52,LIFESTYLE CARE MANAGEMENT LTD,Invoice
ASC,SOCIAL SERVICES,PRIVATE,Revenue,EXTERNAL NURSING CARE,24-Mar-17,2880.84,LIFESTYLE CARE MANAGEMENT LTD,Invoice
ASC,SOCIAL SERVICES,PRIVATE,Revenue,EXTERNAL NURSING CARE,24-Mar-17,3053.40,LYNTON HALL NURSING HOME,Invoice
ASC,SOCIAL SERVICES,PRIVATE,Revenue,EXTERNAL NURSING CARE,23-Mar-17,3198.00,MHA CARE GROUP,Invoice
ASC,SOCIAL SERVICES,PRIVATE,Revenue,EXTERNAL NURSING CARE,24-Mar-17,9107.14,ROSEDENE NURSING HOME,Invoice
ASC,SOCIAL SERVICES,PRIVATE,Revenue,EXTERNAL NURSING CARE,24-Mar-17,3546.80,ROSEDENE NURSING HOME,Invoice
ASC,SOCIAL SERVICES,PRIVATE,Revenue,EXTERNAL NURSING CARE,24-Mar-17,3546.80,ROSEDENE NURSING HOME,Invoice
ASC,SOCIAL SERVICES,PRIVATE,Revenue,EXTERNAL NURSING CARE,24-Mar-17,3546.80,ROSEDENE NURSING HOME,Invoice
ASC,SOCIAL SERVICES,PRIVATE,Revenue,EXTERNAL NURSING CARE,24-Mar-17,4177.00,ROSEDENE NURSING HOME,Invoice
ASC,SOCIAL SERVICES,PRIVATE,Revenue,EXTERNAL NURSING CARE,24-Mar-17,3577.00,ROSEDENE NURSING HOME,Invoice
ASC,SOCIAL SERVICES,PRIVATE,Revenue,EXTERNAL NURSING CARE,24-Mar-17,3957.00,ROSEDENE NURSING HOME,Invoice
ASC,SOCIAL SERVICES,PRIVATE,Revenue,EXTERNAL NURSING CARE,24-Mar-17,3434.00,ROSEDENE NURSING HOME,Invoice
ASC,SOCIAL SERVICES,PRIVATE,Revenue,EXTERNAL NURSING CARE,24-Mar-17,3560.00,ROSEDENE NURSING HOME,Invoice
ASC,SOCIAL SERVICES,PRIVATE,Revenue,EXTERNAL NURSING CARE,24-Mar-17,3369.80,ROSEDENE NURSING HOME,Invoice
ASC,SOCIAL SERVICES,PRIVATE,Revenue,EXTERNAL NURSING CARE,24-Mar-17,3400.00,ROSEDENE NURSING HOME,Invoice
ASC,SOCIAL SERVICES,PRIVATE,Revenue,EXTERNAL NURSING CARE,29-Mar-17,3774.04,TRILODGE LTD,Invoice
ASC,SOCIAL SERVICES,PRIVATE,Revenue,EXTERNAL NURSING CARE,24-Mar-17,3406.68,TRINITY COURT NURSING HOME,Invoice
ASC,SOCIAL SERVICES,PRIVATE,Revenue,EXTERNAL NURSING CARE,24-Mar-17,3096.44,TRINITY COURT NURSING HOME,Invoice
ASC,SOCIAL SERVICES,PRIVATE,Revenue,EXTERNAL NURSING CARE,24-Mar-17,3416.52,TRINITY COURT NURSING HOME,Invoice
ASC,SOCIAL SERVICES,PRIVATE,Revenue,EXTERNAL NURSING CARE,24-Mar-17,3146.44,TRINITY COURT NURSING HOME,Invoice
ASC,SOCIAL SERVICES,PRIVATE,Revenue,EXTERNAL NURSING CARE,24-Mar-17,2969.44,TRINITY COURT NURSING HOME,Invoice
ASC,SOCIAL SERVICES,PRIVATE,Revenue,EXTERNAL NURSING CARE,24-Mar-17,2948.80,TRINITY COURT NURSING HOME,Invoice
ASC,SOCIAL SERVICES,PRIVATE,Revenue,EXTERNAL NURSING CARE,24-Mar-17,3054.72,TRINITY COURT NURSING HOME,Invoice
ASC,SOCIAL SERVICES,PRIVATE,Revenue,EXTERNAL NURSING CARE,24-Mar-17,3150.12,TRINITY COURT NURSING HOME,Invoice
ASC,SOCIAL SERVICES,PRIVATE,Revenue,EXTERNAL NURSING CARE,24-Mar-17,3146.44,TRINITY COURT NURSING HOME,Invoice
ASC,SOCIAL SERVICES,PRIVATE,Revenue,EXTERNAL RESIDENTIAL CARE,03-Mar-17,12750.00,ABBEY CARE CENTRE T/A BHAKTI SHYAMA CARE,Invoice
ASC,SOCIAL SERVICES,PRIVATE,Revenue,EXTERNAL RESIDENTIAL CARE,29-Mar-17,3321.43,ABBEY CARE CENTRE T/A BHAKTI SHYAMA CARE,Invoice
ASC,SOCIAL SERVICES,PRIVATE,Revenue,EXTERNAL RESIDENTIAL CARE,23-Mar-17,5200.00,ABBEY HOUSE,Invoice
ASC,SOCIAL SERVICES,PRIVATE,Revenue,EXTERNAL RESIDENTIAL CARE,23-Mar-17,3000.00,ABBEY HOUSE,Invoice
ASC,SOCIAL SERVICES,PRIVATE,Revenue,EXTERNAL RESIDENTIAL CARE,23-Mar-17,3400.00,ABBEY HOUSE,Invoice
ASC,SOCIAL SERVICES,PRIVATE,Revenue,EXTERNAL RESIDENTIAL CARE,23-Mar-17,2440.00,ABBEY HOUSE,Invoice
ASC,SOCIAL SERVICES,PRIVATE,Revenue,EXTERNAL RESIDENTIAL CARE,14-Mar-17,7885.71,ACTION ON HEARING LOSS,Invoice
ASC,SOCIAL SERVICES,PRIVATE,Revenue,EXTERNAL RESIDENTIAL CARE,21-Mar-17,3480.00,ACTION ON HEARING LOSS,Invoice
ASC,SOCIAL SERVICES,PRIVATE,Revenue,EXTERNAL RESIDENTIAL CARE,13-Mar-17,6800.00,ADMIRAL HEALTHCARE LTD,Invoice
ASC,SOCIAL SERVICES,PRIVATE,Revenue,EXTERNAL RESIDENTIAL CARE,22-Mar-17,3400.00,ADMIRAL HEALTHCARE LTD,Invoice
ASC,SOCIAL SERVICES,PRIVATE,Revenue,EXTERNAL RESIDENTIAL CARE,22-Mar-17,3628.00,ADMIRAL HEALTHCARE LTD,Invoice
ASC,SOCIAL SERVICES,PRIVATE,Revenue,EXTERNAL RESIDENTIAL CARE,22-Mar-17,3434.00,ADMIRAL HEALTHCARE LTD,Invoice
ASC,SOCIAL SERVICES,PRIVATE,Revenue,EXTERNAL RESIDENTIAL CARE,22-Mar-17,7000.00,ADMIRAL HEALTHCARE LTD,Invoice
ASC,SOCIAL SERVICES,PRIVATE,Revenue,EXTERNAL RESIDENTIAL CARE,22-Mar-17,3400.00,ADMIRAL HEALTHCARE LTD,Invoice
ASC,SOCIAL SERVICES,PRIVATE,Revenue,EXTERNAL RESIDENTIAL CARE,24-Mar-17,3500.00,ADMIRAL HEALTHCARE LTD,Invoice
ASC,SOCIAL SERVICES,PRIVATE,Revenue,EXTERNAL RESIDENTIAL CARE,24-Mar-17,4702.00,ADMIRAL HEALTHCARE LTD,Invoice
ASC,SOCIAL SERVICES,PRIVATE,Revenue,EXTERNAL RESIDENTIAL CARE,29-Mar-17,3400.00,ADMIRAL HEALTHCARE LTD,Invoice
ASC,SOCIAL SERVICES,PRIVATE,Revenue,EXTERNAL RESIDENTIAL CARE,29-Mar-17,4096.43,AMBLESIDE LODGE,Invoice
ASC,SOCIAL SERVICES,PRIVATE,Revenue,EXTERNAL RESIDENTIAL CARE,29-Mar-17,4030.00,AMBLESIDE LODGE,Invoice
ASC,SOCIAL SERVICES,PRIVATE,Revenue,EXTERNAL RESIDENTIAL CARE,29-Mar-17,3764.33,ASSURANCE CARE SERVICES LTD,Invoice
ASC,SOCIAL SERVICES,PRIVATE,Revenue,EXTERNAL RESIDENTIAL CARE,29-Mar-17,3454.02,ASSURANCE CARE SERVICES LTD,Invoice
ASC,SOCIAL SERVICES,PRIVATE,Revenue,EXTERNAL RESIDENTIAL CARE,29-Mar-17,3675.67,ASSURANCE CARE SERVICES LTD,Invoice
ASC,SOCIAL SERVICES,PRIVATE,Revenue,EXTERNAL RESIDENTIAL CARE,29-Mar-17,3525.01,ASSURANCE CARE SERVICES LTD,Invoice
ASC,SOCIAL SERVICES,PRIVATE,Revenue,EXTERNAL RESIDENTIAL CARE,29-Mar-17,3542.87,ASTRA HOMES LTD,Invoice
ASC,SOCIAL SERVICES,PRIVATE,Revenue,EXTERNAL RESIDENTIAL CARE,29-Mar-17,3542.86,ASTRA HOMES LTD,Invoice
ASC,SOCIAL SERVICES,PRIVATE,Revenue,EXTERNAL RESIDENTIAL CARE,13-Mar-17,10511.04,BUTTERFLYS CARE HOMES LTD,Invoice
ASC,SOCIAL SERVICES,PRIVATE,Revenue,EXTERNAL RESIDENTIAL CARE,13-Mar-17,10584.60,BUTTERFLYS CARE HOMES LTD,Invoice
ASC,SOCIAL SERVICES,PRIVATE,Revenue,EXTERNAL RESIDENTIAL CARE,29-Mar-17,9981.04,BUTTERFLYS CARE HOMES LTD,Invoice
ASC,SOCIAL SERVICES,PRIVATE,Revenue,EXTERNAL RESIDENTIAL CARE,29-Mar-17,10043.60,BUTTERFLYS CARE HOMES LTD,Invoice
ASC,SOCIAL SERVICES,PRIVATE,Revenue,EXTERNAL RESIDENTIAL CARE,29-Mar-17,2829.19,CENTRAL AND CECIL HOUSING TRUST,Invoice
ASC,SOCIAL SERVICES,PRIVATE,Revenue,EXTERNAL RESIDENTIAL CARE,29-Mar-17,3525.01,CHRIST THE KING RESIDENTIAL CARE,Invoice
ASC,SOCIAL SERVICES,PRIVATE,Revenue,EXTERNAL RESIDENTIAL CARE,13-Mar-17,8075.64,CMG HOMES LTD,Invoice
ASC,SOCIAL SERVICES,PRIVATE,Revenue,EXTERNAL RESIDENTIAL CARE,21-Mar-17,2870.00,COMFORT CARE SERVICES (UK) LTD,Invoice
ASC,SOCIAL SERVICES,PRIVATE,Revenue,EXTERNAL RESIDENTIAL CARE,13-Mar-17,1597.14,COMMUNITY HOUSING & THERAPY,Invoice
ASC,SOCIAL SERVICES,PRIVATE,Revenue,EXTERNAL RESIDENTIAL CARE,24-Mar-17,2783.44,COUNTRY COURT CARE,Invoice
ASC,SOCIAL SERVICES,PRIVATE,Revenue,EXTERNAL RESIDENTIAL CARE,24-Mar-17,2800.00,CROWNWISE LTD,Invoice
ASC,SOCIAL SERVICES,PRIVATE,Revenue,EXTERNAL RESIDENTIAL CARE,24-Mar-17,2280.00,CROWNWISE LTD,Invoice
ASC,SOCIAL SERVICES,PRIVATE,Revenue,EXTERNAL RESIDENTIAL CARE,24-Mar-17,2800.00,CROWNWISE LTD,Invoice
ASC,SOCIAL SERVICES,PRIVATE,Revenue,EXTERNAL RESIDENTIAL CARE,29-Mar-17,3077.87,DEEPDENE CARE LTD,Invoice
ASC,SOCIAL SERVICES,PRIVATE,Revenue,EXTERNAL RESIDENTIAL CARE,29-Mar-17,3058.99,DEEPDENE CARE LTD,Invoice
ASC,SOCIAL SERVICES,PRIVATE,Revenue,EXTERNAL RESIDENTIAL CARE,29-Mar-17,2228.73,DEEPDENE CARE LTD,Invoice
ASC,SOCIAL SERVICES,PRIVATE,Revenue,EXTERNAL RESIDENTIAL CARE,29-Mar-17,2460.08,DEEPDENE CARE LTD,Invoice
ASC,SOCIAL SERVICES,PRIVATE,Revenue,EXTERNAL RESIDENTIAL CARE,29-Mar-17,3156.16,DEEPDENE CARE LTD,Invoice
ASC,SOCIAL SERVICES,PRIVATE,Revenue,EXTERNAL RESIDENTIAL CARE,29-Mar-17,2228.68,DEEPDENE CARE LTD,Invoice
ASC,SOCIAL SERVICES,PRIVATE,Revenue,EXTERNAL RESIDENTIAL CARE,21-Mar-17,2154.40,EVERSLEIGH CARE HOME,Invoice
ASC,SOCIAL SERVICES,PRIVATE,Revenue,EXTERNAL RESIDENTIAL CARE,21-Mar-17,2677.20,EVERSLEIGH CARE HOME,Invoice
ASC,SOCIAL SERVICES,PRIVATE,Revenue,EXTERNAL RESIDENTIAL CARE,29-Mar-17,2677.20,EVERSLEIGH CARE HOME,Invoice
ASC,SOCIAL SERVICES,PRIVATE,Revenue,EXTERNAL RESIDENTIAL CARE,02-Mar-17,2200.00,FIRST CARE LODGE,Invoice
ASC,SOCIAL SERVICES,PRIVATE,Revenue,EXTERNAL RESIDENTIAL CARE,08-Mar-17,2435.71,FIRST CARE LODGE,Invoice
ASC,SOCIAL SERVICES,PRIVATE,Revenue,EXTERNAL RESIDENTIAL CARE,13-Mar-17,2284.43,JEWISH CARE,Invoice
ASC,SOCIAL SERVICES,PRIVATE,Revenue,EXTERNAL RESIDENTIAL CARE,29-Mar-17,2284.43,JEWISH CARE,Invoice
ASC,SOCIAL SERVICES,PRIVATE,Revenue,EXTERNAL RESIDENTIAL CARE,24-Mar-17,2545.20,JOYCARE HOME SERVICES LTD,Invoice
ASC,SOCIAL SERVICES,PRIVATE,Revenue,EXTERNAL RESIDENTIAL CARE,29-Mar-17,3542.99,LANGLEY COURT REST HOME,Invoice
ASC,SOCIAL SERVICES,PRIVATE,Revenue,EXTERNAL RESIDENTIAL CARE,02-Mar-17,742.85,LONA LODGE,Invoice
ASC,SOCIAL SERVICES,PRIVATE,Revenue,EXTERNAL RESIDENTIAL CARE,21-Mar-17,3600.00,MANOR HOUSE RESIDENTIAL HOME,Invoice
ASC,SOCIAL SERVICES,PRIVATE,Revenue,EXTERNAL RESIDENTIAL CARE,22-Mar-17,1600.00,MANOR HOUSE RESIDENTIAL HOME,Invoice
ASC,SOCIAL SERVICES,PRIVATE,Revenue,EXTERNAL RESIDENTIAL CARE,08-Mar-17,2435.67,MINSA CARE LTD,Invoice
ASC,SOCIAL SERVICES,PRIVATE,Revenue,EXTERNAL RESIDENTIAL CARE,08-Mar-17,2546.34,MINSA CARE LTD,Invoice
ASC,SOCIAL SERVICES,PRIVATE,Revenue,EXTERNAL RESIDENTIAL CARE,29-Mar-17,2907.36,ORCHID HOMES T/A LA ROSA 2,Invoice
ASC,SOCIAL SERVICES,PRIVATE,Revenue,EXTERNAL RESIDENTIAL CARE,24-Mar-17,2262.40,QUANTUM CARE LTD,Invoice
ASC,SOCIAL SERVICES,PRIVATE,Revenue,EXTERNAL RESIDENTIAL CARE,23-Mar-17,2625.04,REDACTED PERSONAL DATA,Invoice
ASC,SOCIAL SERVICES,PRIVATE,Revenue,EXTERNAL RESIDENTIAL CARE,23-Mar-17,2625.04,REDACTED PERSONAL DATA,Invoice
ASC,SOCIAL SERVICES,PRIVATE,Revenue,EXTERNAL RESIDENTIAL CARE,23-Mar-17,2714.40,REDACTED PERSONAL DATA,Invoice
ASC,SOCIAL SERVICES,PRIVATE,Revenue,EXTERNAL RESIDENTIAL CARE,02-Mar-17,2731.36,ROSCLARE,Invoice
ASC,SOCIAL SERVICES,PRIVATE,Revenue,EXTERNAL RESIDENTIAL CARE,29-Mar-17,2989.29,ROSENMANOR LTD,Invoice
ASC,SOCIAL SERVICES,PRIVATE,Revenue,EXTERNAL RESIDENTIAL CARE,29-Mar-17,3675.72,ROSENMANOR LTD,Invoice
ASC,SOCIAL SERVICES,PRIVATE,Revenue,EXTERNAL RESIDENTIAL CARE,29-Mar-17,3100.00,ROSENMANOR LTD,Invoice
ASC,SOCIAL SERVICES,PRIVATE,Revenue,EXTERNAL RESIDENTIAL CARE,29-Mar-17,3493.04,ROSENMANOR LTD,Invoice
ASC,SOCIAL SERVICES,PRIVATE,Revenue,EXTERNAL RESIDENTIAL CARE,29-Mar-17,2421.00,SANCTUARY CARE,Invoice
ASC,SOCIAL SERVICES,PRIVATE,Revenue,EXTERNAL RESIDENTIAL CARE,02-Mar-17,2421.00,SANCTUARY HOME CARE LTD,Invoice
ASC,SOCIAL SERVICES,PRIVATE,Revenue,EXTERNAL RESIDENTIAL CARE,29-Mar-17,3475.32,SIGNATURE HEALTH AND LIVING LTD,Invoice
ASC,SOCIAL SERVICES,PRIVATE,Revenue,EXTERNAL RESIDENTIAL CARE,29-Mar-17,3320.32,SIGNATURE HEALTH AND LIVING LTD,Invoice
ASC,SOCIAL SERVICES,PRIVATE,Revenue,EXTERNAL RESIDENTIAL CARE,29-Mar-17,3321.43,SIGNATURE HEALTH AND LIVING LTD,Invoice
ASC,SOCIAL SERVICES,PRIVATE,Revenue,EXTERNAL RESIDENTIAL CARE,29-Mar-17,6038.36,SIGNHEALTH,Invoice
ASC,SOCIAL SERVICES,PRIVATE,Revenue,EXTERNAL RESIDENTIAL CARE,29-Mar-17,7041.92,SIGNHEALTH,Invoice
ASC,SOCIAL SERVICES,PRIVATE,Revenue,EXTERNAL RESIDENTIAL CARE,29-Mar-17,5758.80,SIGNHEALTH,Invoice
ASC,SOCIAL SERVICES,PRIVATE,Revenue,EXTERNAL RESIDENTIAL CARE,29-Mar-17,7085.67,THANET HEALTHCARE LTD,Invoice
ASC,SOCIAL SERVICES,PRIVATE,Revenue,EXTERNAL RESIDENTIAL CARE,08-Mar-17,2524.29,THORNTON LODGE,Invoice
ASC,SOCIAL SERVICES,PRIVATE,Revenue,EXTERNAL RESIDENTIAL CARE,08-Mar-17,2418.00,THORNTON LODGE,Invoice
ASC,SOCIAL SERVICES,PRIVATE,Revenue,EXTERNAL RESIDENTIAL CARE,08-Mar-17,2250.56,THORNTON LODGE,Invoice
ASC,SOCIAL SERVICES,PRIVATE,Revenue,EXTERNAL RESIDENTIAL CARE,29-Mar-17,1975.88,WILLOWMEAD RESIDENTIAL HOME LTD,Invoice
ASC,SOCIAL SERVICES,VOL ASS,Revenue,SUPPORTED HOUSING PROGRAMME,29-Mar-17,1545.57,ASTRA HOMES LTD,Invoice
ASC,SOCIAL SERVICES,VOL ASS,Revenue,SUPPORTED HOUSING PROGRAMME,29-Mar-17,1550.00,ASTRA HOMES LTD,Invoice
ASC,SOCIAL SERVICES,VOL ASS,Revenue,SUPPORTED HOUSING PROGRAMME,16-Mar-17,1218.44,C M CARE LTD,Invoice
ASC,SOCIAL SERVICES,VOL ASS,Revenue,SUPPORTED HOUSING PROGRAMME,16-Mar-17,1803.00,C M CARE LTD,Invoice
ASC,SOCIAL SERVICES,VOL ASS,Revenue,SUPPORTED HOUSING PROGRAMME,16-Mar-17,473.20,C M CARE LTD,Invoice
ASC,SOCIAL SERVICES,VOL ASS,Revenue,SUPPORTED HOUSING PROGRAMME,16-Mar-17,1895.04,C M CARE LTD,Invoice
ASC,SOCIAL SERVICES,VOL ASS,Revenue,SUPPORTED HOUSING PROGRAMME,16-Mar-17,2576.68,C M CARE LTD,Invoice
ASC,SOCIAL SERVICES,VOL ASS,Revenue,SUPPORTED HOUSING PROGRAMME,16-Mar-17,1961.64,C M CARE LTD,Invoice
ASC,SOCIAL SERVICES,VOL ASS,Revenue,SUPPORTED HOUSING PROGRAMME,16-Mar-17,1895.04,C M CARE LTD,Invoice
ASC,SOCIAL SERVICES,VOL ASS,Revenue,SUPPORTED HOUSING PROGRAMME,16-Mar-17,1803.00,C M CARE LTD,Invoice
ASC,SOCIAL SERVICES,VOL ASS,Revenue,SUPPORTED HOUSING PROGRAMME,16-Mar-17,1803.00,C M CARE LTD,Invoice
ASC,SOCIAL SERVICES,VOL ASS,Revenue,SUPPORTED HOUSING PROGRAMME,16-Mar-17,1895.04,C M CARE LTD,Invoice
ASC,SOCIAL SERVICES,VOL ASS,Revenue,SUPPORTED HOUSING PROGRAMME,16-Mar-17,1895.04,C M CARE LTD,Invoice
ASC,SOCIAL SERVICES,VOL ASS,Revenue,SUPPORTED HOUSING PROGRAMME,16-Mar-17,432.00,C M CARE LTD,Invoice
ASC,SOCIAL SERVICES,VOL ASS,Revenue,SUPPORTED HOUSING PROGRAMME,16-Mar-17,1895.04,C M CARE LTD,Invoice
ASC,SOCIAL SERVICES,VOL ASS,Revenue,SUPPORTED HOUSING PROGRAMME,16-Mar-17,1803.00,C M CARE LTD,Invoice
ASC,SOCIAL SERVICES,VOL ASS,Revenue,SUPPORTED HOUSING PROGRAMME,16-Mar-17,1895.04,C M CARE LTD,Invoice
ASC,SOCIAL SERVICES,VOL ASS,Revenue,SUPPORTED HOUSING PROGRAMME,16-Mar-17,1803.00,C M CARE LTD,Invoice
ASC,SOCIAL SERVICES,VOL ASS,Revenue,SUPPORTED HOUSING PROGRAMME,16-Mar-17,1803.00,C M CARE LTD,Invoice
ASC,SOCIAL SERVICES,VOL ASS,Revenue,SUPPORTED HOUSING PROGRAMME,16-Mar-17,2274.84,C M CARE LTD,Invoice
ASC,SOCIAL SERVICES,VOL ASS,Revenue,SUPPORTED HOUSING PROGRAMME,29-Mar-17,1218.44,C M CARE LTD,Invoice
ASC,SOCIAL SERVICES,VOL ASS,Revenue,SUPPORTED HOUSING PROGRAMME,29-Mar-17,1803.00,C M CARE LTD,Invoice
ASC,SOCIAL SERVICES,VOL ASS,Revenue,SUPPORTED HOUSING PROGRAMME,29-Mar-17,1895.04,C M CARE LTD,Invoice
ASC,SOCIAL SERVICES,VOL ASS,Revenue,SUPPORTED HOUSING PROGRAMME,29-Mar-17,1961.64,C M CARE LTD,Invoice
ASC,SOCIAL SERVICES,VOL ASS,Revenue,SUPPORTED HOUSING PROGRAMME,29-Mar-17,1895.04,C M CARE LTD,Invoice
ASC,SOCIAL SERVICES,VOL ASS,Revenue,SUPPORTED HOUSING PROGRAMME,29-Mar-17,1803.00,C M CARE LTD,Invoice
ASC,SOCIAL SERVICES,VOL ASS,Revenue,SUPPORTED HOUSING PROGRAMME,29-Mar-17,1803.00,C M CARE LTD,Invoice
ASC,SOCIAL SERVICES,VOL ASS,Revenue,SUPPORTED HOUSING PROGRAMME,29-Mar-17,1895.04,C M CARE LTD,Invoice
ASC,SOCIAL SERVICES,VOL ASS,Revenue,SUPPORTED HOUSING PROGRAMME,29-Mar-17,1803.00,C M CARE LTD,Invoice
ASC,SOCIAL SERVICES,VOL ASS,Revenue,SUPPORTED HOUSING PROGRAMME,29-Mar-17,1895.04,C M CARE LTD,Invoice
ASC,SOCIAL SERVICES,VOL ASS,Revenue,SUPPORTED HOUSING PROGRAMME,29-Mar-17,1803.00,C M CARE LTD,Invoice
ASC,SOCIAL SERVICES,VOL ASS,Revenue,SUPPORTED HOUSING PROGRAMME,29-Mar-17,1803.00,C M CARE LTD,Invoice
ASC,SOCIAL SERVICES,VOL ASS,Revenue,SUPPORTED HOUSING PROGRAMME,29-Mar-17,2274.84,C M CARE LTD,Invoice
ASC,SOCIAL SERVICES,VOL ASS,Revenue,SUPPORTED HOUSING PROGRAMME,29-Mar-17,473.20,C M CARE LTD,Invoice
ASC,SOCIAL SERVICES,VOL ASS,Revenue,SUPPORTED HOUSING PROGRAMME,29-Mar-17,2576.68,C M CARE LTD,Invoice
ASC,SOCIAL SERVICES,VOL ASS,Revenue,SUPPORTED HOUSING PROGRAMME,29-Mar-17,1895.04,C M CARE LTD,Invoice
ASC,SOCIAL SERVICES,VOL ASS,Revenue,SUPPORTED HOUSING PROGRAMME,29-Mar-17,432.00,C M CARE LTD,Invoice
ASC,SOCIAL SERVICES,VOL ASS,Revenue,SUPPORTED HOUSING PROGRAMME,29-Mar-17,1895.04,C M CARE LTD,Invoice
ASC,SOCIAL SERVICES,VOL ASS,Revenue,SUPPORTED HOUSING PROGRAMME,24-Mar-17,3526.96,COGHLAN LODGES LIMITED,Invoice
ASC,SOCIAL SERVICES,VOL ASS,Revenue,SUPPORTED HOUSING PROGRAMME,13-Mar-17,1940.00,COMMUNITY HOUSING & THERAPY,Invoice
ASC,SOCIAL SERVICES,VOL ASS,Revenue,SUPPORTED HOUSING PROGRAMME,24-Mar-17,2700.00,CROWNWISE LTD,Invoice
ASC,SOCIAL SERVICES,VOL ASS,Revenue,SUPPORTED HOUSING PROGRAMME,24-Mar-17,1800.00,CROWNWISE LTD,Invoice
ASC,SOCIAL SERVICES,VOL ASS,Revenue,SUPPORTED HOUSING PROGRAMME,24-Mar-17,2200.00,CROWNWISE LTD,Invoice
ASC,SOCIAL SERVICES,VOL ASS,Revenue,SUPPORTED HOUSING PROGRAMME,24-Mar-17,1800.00,CROWNWISE LTD,Invoice
ASC,SOCIAL SERVICES,VOL ASS,Revenue,SUPPORTED HOUSING PROGRAMME,24-Mar-17,1800.00,CROWNWISE LTD,Invoice
ASC,SOCIAL SERVICES,VOL ASS,Revenue,SUPPORTED HOUSING PROGRAMME,24-Mar-17,2700.00,CROWNWISE LTD,Invoice
ASC,SOCIAL SERVICES,VOL ASS,Revenue,SUPPORTED HOUSING PROGRAMME,24-Mar-17,1160.16,CROWNWISE LTD,Invoice
ASC,SOCIAL SERVICES,VOL ASS,Revenue,SUPPORTED HOUSING PROGRAMME,24-Mar-17,2000.00,CROWNWISE LTD,Invoice
ASC,SOCIAL SERVICES,VOL ASS,Revenue,SUPPORTED HOUSING PROGRAMME,24-Mar-17,1800.00,CROWNWISE LTD,Invoice
ASC,SOCIAL SERVICES,VOL ASS,Revenue,SUPPORTED HOUSING PROGRAMME,24-Mar-17,1800.00,CROWNWISE LTD,Invoice
ASC,SOCIAL SERVICES,VOL ASS,Revenue,SUPPORTED HOUSING PROGRAMME,22-Mar-17,1600.00,H FRANCIS,Invoice
ASC,SOCIAL SERVICES,VOL ASS,Revenue,SUPPORTED HOUSING PROGRAMME,22-Mar-17,1600.00,H FRANCIS,Invoice
ASC,SOCIAL SERVICES,VOL ASS,Revenue,SUPPORTED HOUSING PROGRAMME,28-Mar-17,3600.00,H FRANCIS,Invoice
ASC,SOCIAL SERVICES,VOL ASS,Revenue,SUPPORTED HOUSING PROGRAMME,28-Mar-17,1600.00,H FRANCIS,Invoice
ASC,SOCIAL SERVICES,VOL ASS,Revenue,SUPPORTED HOUSING PROGRAMME,08-Mar-17,626.24,METROPOLITAN HOUSING TRUST,Invoice
ASC,SOCIAL SERVICES,VOL ASS,Revenue,SUPPORTED HOUSING PROGRAMME,08-Mar-17,626.24,METROPOLITAN HOUSING TRUST,Invoice
ASC,SOCIAL SERVICES,VOL ASS,Revenue,SUPPORTED HOUSING PROGRAMME,24-Mar-17,626.24,METROPOLITAN HOUSING TRUST,Invoice
ASC,SOCIAL SERVICES,VOL ASS,Revenue,SUPPORTED HOUSING PROGRAMME,24-Mar-17,626.24,METROPOLITAN HOUSING TRUST,Invoice
ASC,SOCIAL SERVICES,VOL ASS,Revenue,SUPPORTED HOUSING PROGRAMME,24-Mar-17,626.24,METROPOLITAN HOUSING TRUST,Invoice
ASC,SOCIAL SERVICES,VOL ASS,Revenue,SUPPORTED HOUSING PROGRAMME,24-Mar-17,626.24,METROPOLITAN HOUSING TRUST,Invoice
ASC,SOCIAL SERVICES,VOL ASS,Revenue,SUPPORTED HOUSING PROGRAMME,24-Mar-17,626.24,METROPOLITAN HOUSING TRUST,Invoice
ASC,SOCIAL SERVICES,VOL ASS,Revenue,SUPPORTED HOUSING PROGRAMME,13-Mar-17,550.00,MR A A PALMER,Invoice
ASC,SOCIAL SERVICES,VOL ASS,Revenue,SUPPORTED HOUSING PROGRAMME,13-Mar-17,550.00,MR A A PALMER,Invoice
ASC,SOCIAL SERVICES,VOL ASS,Revenue,SUPPORTED HOUSING PROGRAMME,13-Mar-17,550.00,MR A A PALMER,Invoice
ASC,SOCIAL SERVICES,VOL ASS,Revenue,SUPPORTED HOUSING PROGRAMME,13-Mar-17,550.00,MR A A PALMER,Invoice
ASC,SOCIAL SERVICES,VOL ASS,Revenue,SUPPORTED HOUSING PROGRAMME,21-Mar-17,1500.00,MR A A PALMER,Invoice
ASC,SOCIAL SERVICES,VOL ASS,Revenue,SUPPORTED HOUSING PROGRAMME,21-Mar-17,1000.00,MR A A PALMER,Invoice
ASC,SOCIAL SERVICES,VOL ASS,Revenue,SUPPORTED HOUSING PROGRAMME,21-Mar-17,500.00,MR A A PALMER,Invoice
ASC,SOCIAL SERVICES,VOL ASS,Revenue,SUPPORTED HOUSING PROGRAMME,29-Mar-17,2200.00,MR A A PALMER,Invoice
ASC,SOCIAL SERVICES,VOL ASS,Revenue,SUPPORTED HOUSING PROGRAMME,29-Mar-17,3450.00,MR A A PALMER,Invoice
ASC,SOCIAL SERVICES,VOL ASS,Revenue,SUPPORTED HOUSING PROGRAMME,29-Mar-17,2200.00,MR A A PALMER,Invoice
ASC,SOCIAL SERVICES,VOL ASS,Revenue,SUPPORTED HOUSING PROGRAMME,29-Mar-17,2200.00,MR A A PALMER,Invoice
ASC,SOCIAL SERVICES,VOL ASS,Revenue,SUPPORTED HOUSING PROGRAMME,29-Mar-17,2200.00,MR A A PALMER,Invoice
ASC,SOCIAL SERVICES,VOL ASS,Revenue,SUPPORTED HOUSING PROGRAMME,29-Mar-17,1920.00,MR A A PALMER,Invoice
ASC,SOCIAL SERVICES,VOL ASS,Revenue,SUPPORTED HOUSING PROGRAMME,23-Mar-17,2610.72,ORDINARY LIVING LTD,Invoice
ASC,SOCIAL SERVICES,VOL ASS,Revenue,SUPPORTED HOUSING PROGRAMME,21-Mar-17,1573.45,SERVOL COMMUNITY TRUST,Invoice
ASC,SOCIAL SERVICES,VOL ASS,Revenue,SUPPORTED HOUSING PROGRAMME,29-Mar-17,745.90,SERVOL COMMUNITY TRUST,Invoice
ASC,SOCIAL SERVICES,VOL ASS,Revenue,SUPPORTED HOUSING PROGRAMME,29-Mar-17,678.19,SERVOL COMMUNITY TRUST,Invoice
